Department Family,Entity,Date of Payment,Expense Type,Expense Area,Supplier,Transaction number,Amount in Sterling
Communities & Local Government,DCLG,02/08/2010,Agency Staff,Finance and Corporate Services,BADENOCH & CLARK,5106142563,"1,427.63"
Communities & Local Government,DCLG,02/08/2010,Agency Staff,Finance and Corporate Services,BADENOCH & CLARK,5106142565,"1,427.63"
Communities & Local Government,DCLG,02/08/2010,Agency Staff,Finance and Corporate Services,BADENOCH & CLARK,5106142571,"1,427.63"
Communities & Local Government,DCLG,02/08/2010,Agency Staff,Finance and Corporate Services,SQUARE ONE RESOURCES LTD,5106142269,"2,799.26"
Communities & Local Government,DCLG,02/08/2010,Agency Staff,Finance and Corporate Services,VENN GROUP,5106142509,"1,888.40"
Communities & Local Government,DCLG,02/08/2010,Agency Staff,"Local Gov & Reg(LG DEL,AME, RfR2)",ALPHA CONSOLIDATED TRAINING LTD,5106142533,928.25
Communities & Local Government,DCLG,02/08/2010,Conferences,Housing and Planning,BRITISH BOARD AGREMENT,5106142588,"28,435.00"
Communities & Local Government,DCLG,02/08/2010,Conferences,Communities Group,CHADWICK STREET RECREATION CENTRE,2300001645,-547.11
Communities & Local Government,DCLG,02/08/2010,"IT - PC, Network & Hardware",Communities Group,COMPUTACENTER (UK) LTD,5106142604,759.05
Communities & Local Government,DCLG,02/08/2010,IT Maintenance,Communities Group,AIMEDIACOMMS,5106141897,"1,078.65"
Communities & Local Government,DCLG,02/08/2010,Fixed Maintenance,Finance and Corporate Services,DEPT FOR TRANSPORT,2100193622,"-356,094.05"
Communities & Local Government,DCLG,02/08/2010,Fixed Maintenance,Finance and Corporate Services,DEPT FOR TRANSPORT,5106138505,"356,094.05"
Communities & Local Government,DCLG,02/08/2010,Fixed Maintenance,Communities Group,FLAGSHIP TRAINING LIMITED,5106139309,755.18
Communities & Local Government,DCLG,02/08/2010,Fixed Maintenance,Communities Group,FLAGSHIP TRAINING LIMITED,5106139311,957.75
Communities & Local Government,DCLG,02/08/2010,Office Machinery Rental,Finance and Corporate Services,DANWOOD GROUP LTD,2100193598,-670.38
Communities & Local Government,DCLG,02/08/2010,Office Machinery Rental,Finance and Corporate Services,DANWOOD GROUP LTD,5106141762,670.38
Communities & Local Government,DCLG,02/08/2010,IT Consumables,Housing and Planning,BANNER BUSINESS SUPPLIES LTD,5106142558,583.56
Communities & Local Government,DCLG,02/08/2010,IT Consumables,"Local Gov & Reg(LG DEL,AME, RfR2)",BANNER BUSINESS SUPPLIES LTD,5106142386,614.06
Communities & Local Government,DCLG,02/08/2010,Publicity,Communities Group,OPTIMISA RESEARCH LIMITED,5106142551,"2,875.00"
Communities & Local Government,DCLG,02/08/2010,Publishing,Communities Group,CHANDLER GOODING LIMITED,5106142594,"1,987.50"
Communities & Local Government,DCLG,02/08/2010,Software Licences,Housing and Planning,SIFT LTD,5106140648,"1,762.50"
Communities & Local Government,DCLG,02/08/2010,Subscriptions,Finance and Corporate Services,H M TREASURY,2100193627,"-28,792.20"
Communities & Local Government,DCLG,02/08/2010,Subscriptions,Finance and Corporate Services,H M TREASURY,5106141942,"28,792.20"
Communities & Local Government,DCLG,02/08/2010,Training,Human Resources,NATIONAL SCHOOL OF GOVERNMENT,5106141905,805.00
Communities & Local Government,DCLG,02/08/2010,Training,Human Resources,NATIONAL SCHOOL OF GOVERNMENT,5106141915,805.00
Communities & Local Government,DCLG,02/08/2010,Medals,Communities Group,ROYAL MINT,5106142282,610.71
Communities & Local Government,DCLG,02/08/2010,Medals,Communities Group,ROYAL MINT,5106142291,581.63
Communities & Local Government,DCLG,02/08/2010,Medals,Communities Group,ROYAL MINT,5106142293,"1,134.17"
Communities & Local Government,DCLG,02/08/2010,Stationery,Housing and Planning,BANNER BUSINESS SUPPLIES LTD,5106142558,22.59
Communities & Local Government,DCLG,02/08/2010,Stationery,"Local Gov & Reg(LG DEL,AME, RfR2)",BANNER BUSINESS SUPPLIES LTD,5106142386,251.54
Communities & Local Government,DCLG,02/08/2010,Capl paymt betwn central governt bodies,Regions and Communities,DEPT CULTURE MEDIA & SPORT,2100193549,"37,785,718.48"
Communities & Local Government,DCLG,02/08/2010,NNDR Outturn Adjustments,"Local Gov & Reg(LG DEL,AME, RfR2)",CROYDON LB,5000135689,"7,275,022.00"
Communities & Local Government,DCLG,02/08/2010,NNDR Outturn Adjustments,"Local Gov & Reg(LG DEL,AME, RfR2)",EAST RIDING OF YORKS,5000135740,"3,101,690.00"
Communities & Local Government,DCLG,02/08/2010,NNDR Outturn Adjustments,"Local Gov & Reg(LG DEL,AME, RfR2)",GREENWICH LB,5000135794,"5,506,038.00"
Communities & Local Government,DCLG,02/08/2010,NNDR Outturn Adjustments,"Local Gov & Reg(LG DEL,AME, RfR2)",ISLE OF WIGHT CNCL,5000135853,"2,098,942.00"
Communities & Local Government,DCLG,02/08/2010,NNDR Outturn Adjustments,"Local Gov & Reg(LG DEL,AME, RfR2)",SCARBOROUGH BC,5000136069,"1,947,735.00"
Communities & Local Government,DCLG,02/08/2010,NNDR Outturn Adjustments,"Local Gov & Reg(LG DEL,AME, RfR2)",TONBRIDGE & MALLING BC,5000136211,"443,456.00"
Communities & Local Government,DCLG,02/08/2010,Services provided by other Govt Orgs,Finance and Corporate Services,DEFENCE VETTING AGENCY,5106142338,"1,102.06"
Communities & Local Government,DCLG,02/08/2010,Grant in Aid to NDPBs (non budget),Housing and Planning,HOMES & COMMUNITIES AGENCY,2100193548,"4,097,424.00"
Communities & Local Government,DCLG,02/08/2010,HR Consultancy,Human Resources,SCOUT ENTERPRISES (WESTERN) LTD,5106142534,"3,240.65"
Communities & Local Government,DCLG,02/08/2010,HR Consultancy,Human Resources,SCOUT ENTERPRISES (WESTERN) LTD,5106142549,"3,240.65"
Communities & Local Government,DCLG,03/08/2010,NNDR Billing Authorities Receipts,"Local Gov & Reg(LG DEL,AME, RfR2)",BARKING & DAGENHAM LB,5000135553,"-2,400,120.00"
Communities & Local Government,DCLG,03/08/2010,NNDR Billing Authorities Receipts,"Local Gov & Reg(LG DEL,AME, RfR2)",BARNSLEY MBC,5000135557,"-2,174,152.00"
Communities & Local Government,DCLG,03/08/2010,NNDR Billing Authorities Receipts,"Local Gov & Reg(LG DEL,AME, RfR2)",BIRMINGHAM CITY CNCL,5000135576,"-18,518,504.00"
Communities & Local Government,DCLG,03/08/2010,NNDR Billing Authorities Receipts,"Local Gov & Reg(LG DEL,AME, RfR2)",BLACKBURN WITH DARWEN BC,5000135579,"-1,916,643.00"
Communities & Local Government,DCLG,03/08/2010,NNDR Billing Authorities Receipts,"Local Gov & Reg(LG DEL,AME, RfR2)",BLACKPOOL BC,5000135582,"-2,092,410.00"
Communities & Local Government,DCLG,03/08/2010,NNDR Billing Authorities Receipts,"Local Gov & Reg(LG DEL,AME, RfR2)",BOLTON MBC,5000135586,"-3,981,585.00"
Communities & Local Government,DCLG,03/08/2010,NNDR Billing Authorities Receipts,"Local Gov & Reg(LG DEL,AME, RfR2)",BRADFORD MBC,5000135597,"-6,195,178.00"
Communities & Local Government,DCLG,03/08/2010,NNDR Billing Authorities Receipts,"Local Gov & Reg(LG DEL,AME, RfR2)",BRENT LB,5000135603,"-4,513,345.00"
Communities & Local Government,DCLG,03/08/2010,NNDR Billing Authorities Receipts,"Local Gov & Reg(LG DEL,AME, RfR2)",BRIGHTON & HOVE CITY COUNCIL,5000135607,"-4,485,650.00"
Communities & Local Government,DCLG,03/08/2010,NNDR Billing Authorities Receipts,"Local Gov & Reg(LG DEL,AME, RfR2)",BURY MBC,5000135625,"-2,094,759.00"
Communities & Local Government,DCLG,03/08/2010,NNDR Billing Authorities Receipts,"Local Gov & Reg(LG DEL,AME, RfR2)",CALDERDALE MBC,5000135628,"-2,509,830.00"
Communities & Local Government,DCLG,03/08/2010,NNDR Billing Authorities Receipts,"Local Gov & Reg(LG DEL,AME, RfR2)",COVENTRY CITY CNCL,5000135682,"-5,170,429.00"
Communities & Local Government,DCLG,03/08/2010,NNDR Billing Authorities Receipts,"Local Gov & Reg(LG DEL,AME, RfR2)",DARLINGTON BC,5000135694,"-1,511,096.00"
Communities & Local Government,DCLG,03/08/2010,NNDR Billing Authorities Receipts,"Local Gov & Reg(LG DEL,AME, RfR2)",DERBY CITY CNCL,5000135700,"-3,898,390.00"
Communities & Local Government,DCLG,03/08/2010,NNDR Billing Authorities Receipts,"Local Gov & Reg(LG DEL,AME, RfR2)",DONCASTER MBC,5000135711,"-3,770,450.00"
Communities & Local Government,DCLG,03/08/2010,NNDR Billing Authorities Receipts,"Local Gov & Reg(LG DEL,AME, RfR2)",DUDLEY MBC,5000135717,"-4,448,903.00"
Communities & Local Government,DCLG,03/08/2010,NNDR Billing Authorities Receipts,"Local Gov & Reg(LG DEL,AME, RfR2)",EALING LB,5000135722,"-5,336,125.00"
Communities & Local Government,DCLG,03/08/2010,NNDR Billing Authorities Receipts,"Local Gov & Reg(LG DEL,AME, RfR2)",EAST RIDING OF YORKS,5000135738,"-3,754,617.00"
Communities & Local Government,DCLG,03/08/2010,NNDR Billing Authorities Receipts,"Local Gov & Reg(LG DEL,AME, RfR2)",ENFIELD LB,5000135753,"-4,475,824.00"
Communities & Local Government,DCLG,03/08/2010,NNDR Billing Authorities Receipts,"Local Gov & Reg(LG DEL,AME, RfR2)",GATESHEAD MBC,5000135777,"-3,601,667.00"
Communities & Local Government,DCLG,03/08/2010,NNDR Billing Authorities Receipts,"Local Gov & Reg(LG DEL,AME, RfR2)",GREENWICH LB,5000135792,"-2,629,069.00"
Communities & Local Government,DCLG,03/08/2010,NNDR Billing Authorities Receipts,"Local Gov & Reg(LG DEL,AME, RfR2)",LONDON BOROUGH OF HACKNEY,5000135798,"-3,237,337.00"
Communities & Local Government,DCLG,03/08/2010,NNDR Billing Authorities Receipts,"Local Gov & Reg(LG DEL,AME, RfR2)",HALTON BC,5000135799,"-2,041,964.00"
Communities & Local Government,DCLG,03/08/2010,NNDR Billing Authorities Receipts,"Local Gov & Reg(LG DEL,AME, RfR2)",HARINGEY LB,5000135810,"-2,684,028.00"
Communities & Local Government,DCLG,03/08/2010,NNDR Billing Authorities Receipts,"Local Gov & Reg(LG DEL,AME, RfR2)",HARROW LB,5000135817,"-2,130,848.00"
Communities & Local Government,DCLG,03/08/2010,NNDR Billing Authorities Receipts,"Local Gov & Reg(LG DEL,AME, RfR2)",HARTLEPOOL BOROUGH COUNCIL,5000135820,"-1,258,517.00"
Communities & Local Government,DCLG,03/08/2010,NNDR Billing Authorities Receipts,"Local Gov & Reg(LG DEL,AME, RfR2)",HEREFORDSHIRE DISTRICT COUNCIL,5000135829,"-2,012,489.00"
Communities & Local Government,DCLG,03/08/2010,NNDR Billing Authorities Receipts,"Local Gov & Reg(LG DEL,AME, RfR2)",ISLE OF WIGHT CNCL,5000135851,"-1,446,965.00"
Communities & Local Government,DCLG,03/08/2010,NNDR Billing Authorities Receipts,"Local Gov & Reg(LG DEL,AME, RfR2)",ISLES OF SCILLY COUNCIL,5000135857,"-77,074.00"
Communities & Local Government,DCLG,03/08/2010,NNDR Billing Authorities Receipts,"Local Gov & Reg(LG DEL,AME, RfR2)",HULL CITY COUNCIL,5000135870,"-4,140,970.00"
Communities & Local Government,DCLG,03/08/2010,NNDR Billing Authorities Receipts,"Local Gov & Reg(LG DEL,AME, RfR2)",KIRKLEES MBC,5000135874,"-4,693,642.00"
Communities & Local Government,DCLG,03/08/2010,NNDR Billing Authorities Receipts,"Local Gov & Reg(LG DEL,AME, RfR2)",KNOWSLEY MBC,5000135876,"-1,747,558.00"
Communities & Local Government,DCLG,03/08/2010,NNDR Billing Authorities Receipts,"Local Gov & Reg(LG DEL,AME, RfR2)",LONDON BOROUGH OF LAMBETH,5000135878,"-4,700,526.00"
Communities & Local Government,DCLG,03/08/2010,NNDR Billing Authorities Receipts,"Local Gov & Reg(LG DEL,AME, RfR2)",LEICESTER CITY CNCL,5000135889,"-4,799,818.00"
Communities & Local Government,DCLG,03/08/2010,NNDR Billing Authorities Receipts,"Local Gov & Reg(LG DEL,AME, RfR2)",LEWISHAM LB,5000135895,"-2,206,221.00"
Communities & Local Government,DCLG,03/08/2010,NNDR Billing Authorities Receipts,"Local Gov & Reg(LG DEL,AME, RfR2)",LIVERPOOL CITY COUNCIL,5000135904,"-8,133,665.00"
Communities & Local Government,DCLG,03/08/2010,NNDR Billing Authorities Receipts,"Local Gov & Reg(LG DEL,AME, RfR2)",LUTON BC,5000135906,"-2,932,016.00"
Communities & Local Government,DCLG,03/08/2010,NNDR Billing Authorities Receipts,"Local Gov & Reg(LG DEL,AME, RfR2)",MANCHESTER CITY CNCL,5000135914,"-13,301,673.00"
Communities & Local Government,DCLG,03/08/2010,NNDR Billing Authorities Receipts,"Local Gov & Reg(LG DEL,AME, RfR2)",MEDWAY COUNCIL,5000135919,"-3,292,083.00"
Communities & Local Government,DCLG,03/08/2010,NNDR Billing Authorities Receipts,"Local Gov & Reg(LG DEL,AME, RfR2)",MIDDLESBROUGH BC,5000135936,"-1,910,393.00"
Communities & Local Government,DCLG,03/08/2010,NNDR Billing Authorities Receipts,"Local Gov & Reg(LG DEL,AME, RfR2)",NEWCASTLE UPON TYNE DC,5000135947,"-6,187,922.00"
Communities & Local Government,DCLG,03/08/2010,NNDR Billing Authorities Receipts,"Local Gov & Reg(LG DEL,AME, RfR2)",LONDON BOROUGH OF NEWHAM,5000135952,"-3,830,257.00"
Communities & Local Government,DCLG,03/08/2010,NNDR Billing Authorities Receipts,"Local Gov & Reg(LG DEL,AME, RfR2)",NORTH EAST LINCOLN DC,5000135959,"-2,940,629.00"
Communities & Local Government,DCLG,03/08/2010,NNDR Billing Authorities Receipts,"Local Gov & Reg(LG DEL,AME, RfR2)",NORTH TYNESIDE MBC,5000135972,"-2,589,971.00"
Communities & Local Government,DCLG,03/08/2010,NNDR Billing Authorities Receipts,"Local Gov & Reg(LG DEL,AME, RfR2)",NOTTINGHAM CITY COUNCIL,5000135987,"-5,808,626.00"
Communities & Local Government,DCLG,03/08/2010,NNDR Billing Authorities Receipts,"Local Gov & Reg(LG DEL,AME, RfR2)",OLDHAM MBC,5000136000,"-2,609,944.00"
Communities & Local Government,DCLG,03/08/2010,NNDR Billing Authorities Receipts,"Local Gov & Reg(LG DEL,AME, RfR2)",PLYMOUTH CITY CNCL,5000136010,"-3,770,389.00"
Communities & Local Government,DCLG,03/08/2010,NNDR Billing Authorities Receipts,"Local Gov & Reg(LG DEL,AME, RfR2)",PORTSMOUTH CITY COUNCIL,5000136014,"-3,545,393.00"
Communities & Local Government,DCLG,03/08/2010,NNDR Billing Authorities Receipts,"Local Gov & Reg(LG DEL,AME, RfR2)",LONDON BOROUGH OF REDBRIDGE,5000136023,"-2,326,654.00"
Communities & Local Government,DCLG,03/08/2010,NNDR Billing Authorities Receipts,"Local Gov & Reg(LG DEL,AME, RfR2)",REDCAR & CLEVELAND BOROUGH COUNCIL,5000136025,"-1,963,558.00"
Communities & Local Government,DCLG,03/08/2010,NNDR Billing Authorities Receipts,"Local Gov & Reg(LG DEL,AME, RfR2)",ROCHDALE MBC,5000136039,"-2,777,983.00"
Communities & Local Government,DCLG,03/08/2010,NNDR Billing Authorities Receipts,"Local Gov & Reg(LG DEL,AME, RfR2)",ROTHERHAM MBC,5000136047,"-3,172,550.00"
Communities & Local Government,DCLG,03/08/2010,NNDR Billing Authorities Receipts,"Local Gov & Reg(LG DEL,AME, RfR2)",SALFORD CITY CNCL,5000136064,"-3,682,746.00"
Communities & Local Government,DCLG,03/08/2010,NNDR Billing Authorities Receipts,"Local Gov & Reg(LG DEL,AME, RfR2)",SANDWELL MBC,5000136066,"-4,308,789.00"
Communities & Local Government,DCLG,03/08/2010,NNDR Billing Authorities Receipts,"Local Gov & Reg(LG DEL,AME, RfR2)",SEFTON MBC,5000136072,"-3,160,953.00"
Communities & Local Government,DCLG,03/08/2010,NNDR Billing Authorities Receipts,"Local Gov & Reg(LG DEL,AME, RfR2)",SHEFFIELD CITY CNCL,5000136078,"-8,931,243.00"
Communities & Local Government,DCLG,03/08/2010,NNDR Billing Authorities Receipts,"Local Gov & Reg(LG DEL,AME, RfR2)",SHEPWAY DC,5000136080,"1,467,816.00"
Communities & Local Government,DCLG,03/08/2010,NNDR Billing Authorities Receipts,"Local Gov & Reg(LG DEL,AME, RfR2)",SHEPWAY DC,5000136081,"-729,780.00"
Communities & Local Government,DCLG,03/08/2010,NNDR Billing Authorities Receipts,"Local Gov & Reg(LG DEL,AME, RfR2)",SHEPWAY DC,5000136083,"-590,796.00"
Communities & Local Government,DCLG,03/08/2010,NNDR Billing Authorities Receipts,"Local Gov & Reg(LG DEL,AME, RfR2)",SOUTH HOLLAND,5000136102,"-263,836.00"
Communities & Local Government,DCLG,03/08/2010,NNDR Billing Authorities Receipts,"Local Gov & Reg(LG DEL,AME, RfR2)",SOUTH HOLLAND,5000136103,"655,492.00"
Communities & Local Government,DCLG,03/08/2010,NNDR Billing Authorities Receipts,"Local Gov & Reg(LG DEL,AME, RfR2)",SOUTH HOLLAND,5000136104,"-569,678.00"
Communities & Local Government,DCLG,03/08/2010,NNDR Billing Authorities Receipts,"Local Gov & Reg(LG DEL,AME, RfR2)",SOUTH TYNESIDE COUNCIL,5000136123,"-1,319,741.00"
Communities & Local Government,DCLG,03/08/2010,NNDR Billing Authorities Receipts,"Local Gov & Reg(LG DEL,AME, RfR2)",SOUTHEND ON SEA BC,5000136129,"-2,057,497.00"
Communities & Local Government,DCLG,03/08/2010,NNDR Billing Authorities Receipts,"Local Gov & Reg(LG DEL,AME, RfR2)",SOUTHWARK LB,5000136131,"-8,294,834.00"
Communities & Local Government,DCLG,03/08/2010,NNDR Billing Authorities Receipts,"Local Gov & Reg(LG DEL,AME, RfR2)",SPELTHORNE DC,5000136133,"-919,209.00"
Communities & Local Government,DCLG,03/08/2010,NNDR Billing Authorities Receipts,"Local Gov & Reg(LG DEL,AME, RfR2)",SPELTHORNE DC,5000136134,"2,283,750.00"
Communities & Local Government,DCLG,03/08/2010,NNDR Billing Authorities Receipts,"Local Gov & Reg(LG DEL,AME, RfR2)",SPELTHORNE DC,5000136136,"-891,939.00"
Communities & Local Government,DCLG,03/08/2010,NNDR Billing Authorities Receipts,"Local Gov & Reg(LG DEL,AME, RfR2)",ST HELENS MBC,5000136142,"-2,265,681.00"
Communities & Local Government,DCLG,03/08/2010,NNDR Billing Authorities Receipts,"Local Gov & Reg(LG DEL,AME, RfR2)",STOKE ON TRENT CITY COUNCIL,5000136158,"-3,620,823.00"
Communities & Local Government,DCLG,03/08/2010,NNDR Billing Authorities Receipts,"Local Gov & Reg(LG DEL,AME, RfR2)",SUNDERLAND DC,5000136170,"-3,763,715.00"
Communities & Local Government,DCLG,03/08/2010,NNDR Billing Authorities Receipts,"Local Gov & Reg(LG DEL,AME, RfR2)",TAMESIDE MBC,5000136182,"-2,548,219.00"
Communities & Local Government,DCLG,03/08/2010,NNDR Billing Authorities Receipts,"Local Gov & Reg(LG DEL,AME, RfR2)",TORBAY BC,5000136212,"-1,531,294.00"
Communities & Local Government,DCLG,03/08/2010,NNDR Billing Authorities Receipts,"Local Gov & Reg(LG DEL,AME, RfR2)",CITY OF WAKEFIELD MDC,5000136228,"-5,177,628.00"
Communities & Local Government,DCLG,03/08/2010,NNDR Billing Authorities Receipts,"Local Gov & Reg(LG DEL,AME, RfR2)",WALSALL MBC,5000136230,"-3,021,491.00"
Communities & Local Government,DCLG,03/08/2010,NNDR Billing Authorities Receipts,"Local Gov & Reg(LG DEL,AME, RfR2)",WALTHAM FOREST LB,5000136232,"-2,341,061.00"
Communities & Local Government,DCLG,03/08/2010,NNDR Billing Authorities Receipts,"Local Gov & Reg(LG DEL,AME, RfR2)",WANDSWORTH LB,5000136235,"-4,117,732.00"
Communities & Local Government,DCLG,03/08/2010,NNDR Billing Authorities Receipts,"Local Gov & Reg(LG DEL,AME, RfR2)",WIGAN MBC,5000136280,"-3,517,026.00"
Communities & Local Government,DCLG,03/08/2010,NNDR Billing Authorities Receipts,"Local Gov & Reg(LG DEL,AME, RfR2)",WIRRAL MBC,5000136291,"-3,014,734.00"
Communities & Local Government,DCLG,03/08/2010,NNDR Billing Authorities Receipts,"Local Gov & Reg(LG DEL,AME, RfR2)",WOLVERHAMPTON MBC,5000136297,"-3,291,213.00"
Communities & Local Government,DCLG,03/08/2010,NNDR Billing Authorities Receipts,"Local Gov & Reg(LG DEL,AME, RfR2)",CORNWALL COUNCIL,5000136320,"-7,609,362.00"
Communities & Local Government,DCLG,03/08/2010,NNDR Billing Authorities Receipts,"Local Gov & Reg(LG DEL,AME, RfR2)",DURHAM COUNTY COUNCIL,5000136322,"-4,810,219.00"
Communities & Local Government,DCLG,03/08/2010,NNDR Billing Authorities Receipts,"Local Gov & Reg(LG DEL,AME, RfR2)",NORTHUMBERLAND,5000136324,"-3,149,770.00"
Communities & Local Government,DCLG,03/08/2010,NNDR Billing Authorities Receipts,"Local Gov & Reg(LG DEL,AME, RfR2)",SHROPSHIRE COUNCIL,5000136327,"-3,286,079.00"
Communities & Local Government,DCLG,03/08/2010,Agency Staff,Finance and Corporate Services,OPEN SPACES LTD,5106142668,"1,078.65"
Communities & Local Government,DCLG,03/08/2010,Agency Staff,Finance and Corporate Services,VENN GROUP,5106142624,"1,699.58"
Communities & Local Government,DCLG,03/08/2010,Agency Staff,Finance and Corporate Services,ALLEN LANE FINANCIAL RECRUITMENT,5106142597,"3,172.50"
Communities & Local Government,DCLG,03/08/2010,Agency Staff,Communities Group,LA INT COMPUTER CONSULTANTS LTD,5106142400,"6,027.20"
Communities & Local Government,DCLG,03/08/2010,Domestic Services,Finance and Corporate Services,MITIE SECURITY LTD,5106142424,"1,388.87"
Communities & Local Government,DCLG,03/08/2010,"IT - PC, Network & Hardware",Housing and Planning,WTG TECHNOLOGIES LTD,5106142540,"1,747.81"
Communities & Local Government,DCLG,03/08/2010,IT Maintenance,Housing and Planning,STERIA LIMITED,5106142692,"1,153.04"
Communities & Local Government,DCLG,03/08/2010,Legal Fees,Finance and Corporate Services,DENTON WILDE SAPTE LLP,5106142581,"14,531.35"
Communities & Local Government,DCLG,03/08/2010,Fixed Maintenance,Finance and Corporate Services,DEPT FOR TRANSPORT,5106138824,"305,006.45"
Communities & Local Government,DCLG,03/08/2010,Travel and Subsistence Account,Finance and Corporate Services,BROOKLEIGH CONSULTING LTD,5106142716,106.80
Communities & Local Government,DCLG,03/08/2010,Travel and Subsistence Account,Communities Group,STH WALES FIRE & RESCUE SERVICE,5106142724,890.40
Communities & Local Government,DCLG,03/08/2010,Office Machinery Rental,Finance and Corporate Services,DANWOOD GROUP LTD,5106141874,"1,966.36"
Communities & Local Government,DCLG,03/08/2010,Grant in Aid NDPB's,"Local Gov & Reg(LG DEL,AME, RfR2)",VALUATION TRIBUNAL SERVICE,2100193631,"777,383.00"
Communities & Local Government,DCLG,03/08/2010,IT Consumables,Finance and Corporate Services,BANNER BUSINESS SUPPLIES LTD,5106142560,590.19
Communities & Local Government,DCLG,03/08/2010,Office Machinery (<5000),Finance and Corporate Services,DANWOOD GROUP LTD,5106142355,525.53
Communities & Local Government,DCLG,03/08/2010,Office Machinery (<5000),Finance and Corporate Services,DANWOOD FINANCE LIMITED,5106142705,787.70
Communities & Local Government,DCLG,03/08/2010,Statutory Instruments,"Local Gov & Reg(LG DEL,AME, RfR2)",STATIONERY OFFICE LTD,5106141903,800.00
Communities & Local Government,DCLG,03/08/2010,EC Current Grants to Local Authorities,Regions and Communities,KENT UNIVERSITY,2500121579,"24,491.48"
Communities & Local Government,DCLG,03/08/2010,EC Current Grants to Local Authorities,Communities Group,BRIGHTON FESTIVAL LIMITED,2500121581,"2,369.00"
Communities & Local Government,DCLG,03/08/2010,Current (non AEF) Grants to Local Authorities,Communities Group,THURROCK DC,2100193684,"100,000.00"
Communities & Local Government,DCLG,03/08/2010,Current (non AEF) Grants to Local Authorities,Communities Group,THURROCK DC,2300001642,"-100,000.00"
Communities & Local Government,DCLG,03/08/2010,Current (non AEF) Grants to Local Authorities,Communities Group,BIRMINGHAM CITY COUNCIL,2100193667,"100,000.00"
Communities & Local Government,DCLG,03/08/2010,Current (non AEF) Grants to Local Authorities,Communities Group,BIRMINGHAM CITY COUNCIL,2300001641,"-100,000.00"
Communities & Local Government,DCLG,03/08/2010,Current (non AEF) Grants to Local Authorities,Communities Group,LB WALTHAM FOREST,2100193683,"100,000.00"
Communities & Local Government,DCLG,03/08/2010,Current (non AEF) Grants to Local Authorities,Communities Group,LB WALTHAM FOREST,2300001640,"-100,000.00"
Communities & Local Government,DCLG,03/08/2010,Current (non AEF) Grants to Local Authorities,"Local Gov & Reg(LG DEL,AME, RfR2)",EREWASH BOROUGH COUNCIL,2100193626,"82,137.00"
Communities & Local Government,DCLG,03/08/2010,Professional services,"Local Gov & Reg(LG DEL,AME, RfR2)",GOVT ACTUARYS DEPARTMENT,5106142660,"54,717.35"
Communities & Local Government,DCLG,03/08/2010,Professional services,"Local Gov & Reg(LG DEL,AME, RfR2)",VALUATION OFFICE AGENCY,2100193632,"12,280,000.00"
Communities & Local Government,DCLG,03/08/2010,Publications,Finance and Corporate Services,LEXIS-NEXIS UK,5106142645,"1,305.45"
Communities & Local Government,DCLG,03/08/2010,Publishing,Communities Group,GWS LIMITED,5106142664,"1,600.00"
Communities & Local Government,DCLG,03/08/2010,Research,Finance and Corporate Services,DAMOVO UK LTD,5106142208,"4,067.85"
Communities & Local Government,DCLG,03/08/2010,Research,Finance and Corporate Services,"CENTRE FOR HOUSING POLICY, UNI OF Y",5106142524,"36,899.00"
Communities & Local Government,DCLG,03/08/2010,Research,Communities Group,FIRE SERVICE COLLEGE,2100193686,"-6,360.00"
Communities & Local Government,DCLG,03/08/2010,Research,Communities Group,FIRE SERVICE COLLEGE,5106133981,"6,360.00"
Communities & Local Government,DCLG,03/08/2010,Security,Finance and Corporate Services,MITIE SECURITY LTD,5106142454,"4,246.40"
Communities & Local Government,DCLG,03/08/2010,Subscriptions,Finance and Corporate Services,H M TREASURY,5106142699,"28,792.20"
Communities & Local Government,DCLG,03/08/2010,Subscriptions,Finance and Corporate Services,MICROSOFT DEVELOPER NETWORK,2100193666,"-1,542.86"
Communities & Local Government,DCLG,03/08/2010,Subscriptions,Finance and Corporate Services,MICROSOFT DEVELOPER NETWORK,2100193668,"-1,542.86"
Communities & Local Government,DCLG,03/08/2010,Subscriptions,Finance and Corporate Services,MICROSOFT DEVELOPER NETWORK,5106142554,"1,542.86"
Communities & Local Government,DCLG,03/08/2010,Subscriptions,Finance and Corporate Services,MICROSOFT DEVELOPER NETWORK,5106142555,"1,542.86"
Communities & Local Government,DCLG,03/08/2010,Training,Housing and Planning,COMMUNITY DEVELOPMENT FOUNDATION,5106142679,"128,605.00"
Communities & Local Government,DCLG,03/08/2010,Training,Human Resources,NATIONAL SCHOOL OF GOVERNMENT,5106142552,"1,620.00"
Communities & Local Government,DCLG,03/08/2010,Training,Human Resources,NATIONAL SCHOOL OF GOVERNMENT,5106142553,"1,620.00"
Communities & Local Government,DCLG,03/08/2010,Vehicle hire,Housing and Planning,CYCLONE COURIER CO LTD,2100193685,"-1,210.26"
Communities & Local Government,DCLG,03/08/2010,Vehicle hire,Housing and Planning,CYCLONE COURIER CO LTD,5106141984,"1,210.26"
Communities & Local Government,DCLG,03/08/2010,National Non Domestic Rates (NNDR) Payments,"Local Gov & Reg(LG DEL,AME, RfR2)",AVON & SOMERSET POLICE AUTHORITY,5000135547,"3,097,405.00"
Communities & Local Government,DCLG,03/08/2010,National Non Domestic Rates (NNDR) Payments,"Local Gov & Reg(LG DEL,AME, RfR2)",AVON FIRE AUTHORITY,5000135548,"1,031,898.00"
Communities & Local Government,DCLG,03/08/2010,National Non Domestic Rates (NNDR) Payments,"Local Gov & Reg(LG DEL,AME, RfR2)",BARKING & DAGENHAM LB,5000135554,"4,263,209.00"
Communities & Local Government,DCLG,03/08/2010,National Non Domestic Rates (NNDR) Payments,"Local Gov & Reg(LG DEL,AME, RfR2)",BARNSLEY MBC,5000135558,"4,558,016.00"
Communities & Local Government,DCLG,03/08/2010,National Non Domestic Rates (NNDR) Payments,"Local Gov & Reg(LG DEL,AME, RfR2)",BEDS & LUTON FIRE & RESCUE SERVICE,5000135570,"472,247.00"
Communities & Local Government,DCLG,03/08/2010,National Non Domestic Rates (NNDR) Payments,"Local Gov & Reg(LG DEL,AME, RfR2)",BEDFORDSHIRE POLICE AUTH,5000135571,"1,262,575.00"
Communities & Local Government,DCLG,03/08/2010,National Non Domestic Rates (NNDR) Payments,"Local Gov & Reg(LG DEL,AME, RfR2)",ROYAL BERKSHIRE FIRE AUTHORITY,5000135572,"639,691.00"
Communities & Local Government,DCLG,03/08/2010,National Non Domestic Rates (NNDR) Payments,"Local Gov & Reg(LG DEL,AME, RfR2)",BIRMINGHAM CITY CNCL,5000135575,"28,122,191.00"
Communities & Local Government,DCLG,03/08/2010,National Non Domestic Rates (NNDR) Payments,"Local Gov & Reg(LG DEL,AME, RfR2)",BLACKBURN WITH DARWEN BC,5000135580,"3,385,907.00"
Communities & Local Government,DCLG,03/08/2010,National Non Domestic Rates (NNDR) Payments,"Local Gov & Reg(LG DEL,AME, RfR2)",BLACKPOOL BC,5000135581,"3,392,703.00"
Communities & Local Government,DCLG,03/08/2010,National Non Domestic Rates (NNDR) Payments,"Local Gov & Reg(LG DEL,AME, RfR2)",BOLTON MBC,5000135587,"5,292,088.00"
Communities & Local Government,DCLG,03/08/2010,National Non Domestic Rates (NNDR) Payments,"Local Gov & Reg(LG DEL,AME, RfR2)",BRADFORD MBC,5000135596,"11,280,375.00"
Communities & Local Government,DCLG,03/08/2010,National Non Domestic Rates (NNDR) Payments,"Local Gov & Reg(LG DEL,AME, RfR2)",BRENT LB,5000135602,"6,822,527.00"
Communities & Local Government,DCLG,03/08/2010,National Non Domestic Rates (NNDR) Payments,"Local Gov & Reg(LG DEL,AME, RfR2)",BRIGHTON & HOVE CITY COUNCIL,5000135608,"4,528,662.00"
Communities & Local Government,DCLG,03/08/2010,National Non Domestic Rates (NNDR) Payments,"Local Gov & Reg(LG DEL,AME, RfR2)",BUCKS & MILTON KEYNES FIRE AUTH,5000135621,"474,977.00"
Communities & Local Government,DCLG,03/08/2010,National Non Domestic Rates (NNDR) Payments,"Local Gov & Reg(LG DEL,AME, RfR2)",BUCKINGHAMSHIRE CC,5000135622,"2,470,001.00"
Communities & Local Government,DCLG,03/08/2010,National Non Domestic Rates (NNDR) Payments,"Local Gov & Reg(LG DEL,AME, RfR2)",BURY MBC,5000135626,"2,743,251.00"
Communities & Local Government,DCLG,03/08/2010,National Non Domestic Rates (NNDR) Payments,"Local Gov & Reg(LG DEL,AME, RfR2)",CALDERDALE MBC,5000135627,"3,380,777.00"
Communities & Local Government,DCLG,03/08/2010,National Non Domestic Rates (NNDR) Payments,"Local Gov & Reg(LG DEL,AME, RfR2)",CAMBS & PETERBOROUGH FIRE AUTHORITY,5000135631,"599,074.00"
Communities & Local Government,DCLG,03/08/2010,National Non Domestic Rates (NNDR) Payments,"Local Gov & Reg(LG DEL,AME, RfR2)",CAMBRIDGESHIRE POLICE AUT,5000135632,"1,385,373.00"
Communities & Local Government,DCLG,03/08/2010,National Non Domestic Rates (NNDR) Payments,"Local Gov & Reg(LG DEL,AME, RfR2)",CAMBRIDGESHIRE COUNTY CNCL,5000135633,"4,606,248.00"
Communities & Local Government,DCLG,03/08/2010,National Non Domestic Rates (NNDR) Payments,"Local Gov & Reg(LG DEL,AME, RfR2)",CHESHIRE FIRE AUTHORITY,5000135654,"772,344.00"
Communities & Local Government,DCLG,03/08/2010,National Non Domestic Rates (NNDR) Payments,"Local Gov & Reg(LG DEL,AME, RfR2)",CHESHIRE POLICE AUTHORITY,5000135655,"2,343,701.00"
Communities & Local Government,DCLG,03/08/2010,National Non Domestic Rates (NNDR) Payments,"Local Gov & Reg(LG DEL,AME, RfR2)",CLEVELAND FIRE AUTHORITY,5000135671,"928,329.00"
Communities & Local Government,DCLG,03/08/2010,National Non Domestic Rates (NNDR) Payments,"Local Gov & Reg(LG DEL,AME, RfR2)",CLEVELAND POLICE AUTHORITY,5000135672,"2,071,907.00"
Communities & Local Government,DCLG,03/08/2010,National Non Domestic Rates (NNDR) Payments,"Local Gov & Reg(LG DEL,AME, RfR2)",COVENTRY CITY CNCL,5000135681,"6,347,077.00"
Communities & Local Government,DCLG,03/08/2010,National Non Domestic Rates (NNDR) Payments,"Local Gov & Reg(LG DEL,AME, RfR2)",CUMBRIA COUNTY CNCL,5000135690,"5,993,665.00"
Communities & Local Government,DCLG,03/08/2010,National Non Domestic Rates (NNDR) Payments,"Local Gov & Reg(LG DEL,AME, RfR2)",CUMBRIA POLICE AUTHORITY,5000135691,"1,512,827.00"
Communities & Local Government,DCLG,03/08/2010,National Non Domestic Rates (NNDR) Payments,"Local Gov & Reg(LG DEL,AME, RfR2)",DARLINGTON BC,5000135695,"1,610,612.00"
Communities & Local Government,DCLG,03/08/2010,National Non Domestic Rates (NNDR) Payments,"Local Gov & Reg(LG DEL,AME, RfR2)",DERBY CITY CNCL,5000135701,"4,547,927.00"
Communities & Local Government,DCLG,03/08/2010,National Non Domestic Rates (NNDR) Payments,"Local Gov & Reg(LG DEL,AME, RfR2)",DERBYSHIRE FIRE AUTHORITY,5000135702,"816,028.00"
Communities & Local Government,DCLG,03/08/2010,National Non Domestic Rates (NNDR) Payments,"Local Gov & Reg(LG DEL,AME, RfR2)",DERBYSHIRE POLICE AUTHORITY,5000135703,"2,036,342.00"
Communities & Local Government,DCLG,03/08/2010,National Non Domestic Rates (NNDR) Payments,"Local Gov & Reg(LG DEL,AME, RfR2)",DERBYSHIRE COUNTYCOUNCIL,5000135704,"7,679,497.00"
Communities & Local Government,DCLG,03/08/2010,National Non Domestic Rates (NNDR) Payments,"Local Gov & Reg(LG DEL,AME, RfR2)",DEVON & CORNWALL POLICE A,5000135707,"3,313,804.00"
Communities & Local Government,DCLG,03/08/2010,National Non Domestic Rates (NNDR) Payments,"Local Gov & Reg(LG DEL,AME, RfR2)",DEVON COUNTY CNCL,5000135708,"6,683,079.00"
Communities & Local Government,DCLG,03/08/2010,National Non Domestic Rates (NNDR) Payments,"Local Gov & Reg(LG DEL,AME, RfR2)",DEVON & SOMERSET FIRE & RESCUE SERV,5000135709,"1,295,960.00"
Communities & Local Government,DCLG,03/08/2010,National Non Domestic Rates (NNDR) Payments,"Local Gov & Reg(LG DEL,AME, RfR2)",DONCASTER MBC,5000135710,"5,940,273.00"
Communities & Local Government,DCLG,03/08/2010,National Non Domestic Rates (NNDR) Payments,"Local Gov & Reg(LG DEL,AME, RfR2)",DORSET COUNTY CNCL,5000135712,"2,105,021.00"
Communities & Local Government,DCLG,03/08/2010,National Non Domestic Rates (NNDR) Payments,"Local Gov & Reg(LG DEL,AME, RfR2)",DORSET FIRE AUTHORITY,5000135713,"456,301.00"
Communities & Local Government,DCLG,03/08/2010,National Non Domestic Rates (NNDR) Payments,"Local Gov & Reg(LG DEL,AME, RfR2)",DORSET POLICE AUTHORITY,5000135714,"1,043,505.00"
Communities & Local Government,DCLG,03/08/2010,National Non Domestic Rates (NNDR) Payments,"Local Gov & Reg(LG DEL,AME, RfR2)",DUDLEY MBC,5000135718,"5,208,597.00"
Communities & Local Government,DCLG,03/08/2010,National Non Domestic Rates (NNDR) Payments,"Local Gov & Reg(LG DEL,AME, RfR2)",CO DURHAM & DARLINGTON FIRE SERVICE,5000135720,"602,631.00"
Communities & Local Government,DCLG,03/08/2010,National Non Domestic Rates (NNDR) Payments,"Local Gov & Reg(LG DEL,AME, RfR2)",DURHAM POLICE AUTHORITY,5000135721,"1,971,619.00"
Communities & Local Government,DCLG,03/08/2010,National Non Domestic Rates (NNDR) Payments,"Local Gov & Reg(LG DEL,AME, RfR2)",EALING LB,5000135723,"5,991,165.00"
Communities & Local Government,DCLG,03/08/2010,National Non Domestic Rates (NNDR) Payments,"Local Gov & Reg(LG DEL,AME, RfR2)",EAST RIDING OF YORKS,5000135739,"4,203,061.00"
Communities & Local Government,DCLG,03/08/2010,National Non Domestic Rates (NNDR) Payments,"Local Gov & Reg(LG DEL,AME, RfR2)",EAST SUSSEX COUNTY CNCL,5000135743,"4,152,619.00"
Communities & Local Government,DCLG,03/08/2010,National Non Domestic Rates (NNDR) Payments,"Local Gov & Reg(LG DEL,AME, RfR2)",EAST SUSSEX FIRE AUTHORITY,5000135744,"608,588.00"
Communities & Local Government,DCLG,03/08/2010,National Non Domestic Rates (NNDR) Payments,"Local Gov & Reg(LG DEL,AME, RfR2)",ENFIELD LB,5000135754,"5,056,906.00"
Communities & Local Government,DCLG,03/08/2010,National Non Domestic Rates (NNDR) Payments,"Local Gov & Reg(LG DEL,AME, RfR2)",ESSEX COUNTY CNCL,5000135761,"10,232,600.00"
Communities & Local Government,DCLG,03/08/2010,National Non Domestic Rates (NNDR) Payments,"Local Gov & Reg(LG DEL,AME, RfR2)",ESSEX FIRE AUTHORITY,5000135762,"1,342,653.00"
Communities & Local Government,DCLG,03/08/2010,National Non Domestic Rates (NNDR) Payments,"Local Gov & Reg(LG DEL,AME, RfR2)",ESSEX POLICE AUTHORITY,5000135763,"2,961,570.00"
Communities & Local Government,DCLG,03/08/2010,National Non Domestic Rates (NNDR) Payments,"Local Gov & Reg(LG DEL,AME, RfR2)",GATESHEAD MBC,5000135778,"4,388,865.00"
Communities & Local Government,DCLG,03/08/2010,National Non Domestic Rates (NNDR) Payments,"Local Gov & Reg(LG DEL,AME, RfR2)",GREATER LONDON AUTHORITY,5000135781,"37,867,928.00"
Communities & Local Government,DCLG,03/08/2010,National Non Domestic Rates (NNDR) Payments,"Local Gov & Reg(LG DEL,AME, RfR2)",GLOUCESTERSHIRE COUNTY CNCL,5000135784,"4,850,982.00"
Communities & Local Government,DCLG,03/08/2010,National Non Domestic Rates (NNDR) Payments,"Local Gov & Reg(LG DEL,AME, RfR2)",GLOUCESTERSHIRE POLICE AUTHORITY,5000135785,"1,039,499.00"
Communities & Local Government,DCLG,03/08/2010,National Non Domestic Rates (NNDR) Payments,"Local Gov & Reg(LG DEL,AME, RfR2)",GREENWICH LB,5000135793,"6,917,703.00"
Communities & Local Government,DCLG,03/08/2010,National Non Domestic Rates (NNDR) Payments,"Local Gov & Reg(LG DEL,AME, RfR2)",LONDON BOROUGH OF HACKNEY,5000135797,"9,123,950.00"
Communities & Local Government,DCLG,03/08/2010,National Non Domestic Rates (NNDR) Payments,"Local Gov & Reg(LG DEL,AME, RfR2)",HALTON BC,5000135800,"2,653,232.00"
Communities & Local Government,DCLG,03/08/2010,National Non Domestic Rates (NNDR) Payments,"Local Gov & Reg(LG DEL,AME, RfR2)",HAMPSHIRE COUNTY COUNCIL,5000135805,"6,090,329.00"
Communities & Local Government,DCLG,03/08/2010,National Non Domestic Rates (NNDR) Payments,"Local Gov & Reg(LG DEL,AME, RfR2)",HAMPSHIRE FIRE & RESCUE AUTHORITY,5000135806,"1,213,882.00"
Communities & Local Government,DCLG,03/08/2010,National Non Domestic Rates (NNDR) Payments,"Local Gov & Reg(LG DEL,AME, RfR2)",HAMPSHIRE POLICE AUTHORITY,5000135807,"3,637,187.00"
Communities & Local Government,DCLG,03/08/2010,National Non Domestic Rates (NNDR) Payments,"Local Gov & Reg(LG DEL,AME, RfR2)",HARINGEY LB,5000135811,"5,998,625.00"
Communities & Local Government,DCLG,03/08/2010,National Non Domestic Rates (NNDR) Payments,"Local Gov & Reg(LG DEL,AME, RfR2)",HARROW LB,5000135816,"2,810,645.00"
Communities & Local Government,DCLG,03/08/2010,National Non Domestic Rates (NNDR) Payments,"Local Gov & Reg(LG DEL,AME, RfR2)",HARTLEPOOL BOROUGH COUNCIL,5000135821,"2,136,994.00"
Communities & Local Government,DCLG,03/08/2010,National Non Domestic Rates (NNDR) Payments,"Local Gov & Reg(LG DEL,AME, RfR2)",HEREFORD WORCESTER FIRE BRIGADE,5000135828,"442,484.00"
Communities & Local Government,DCLG,03/08/2010,National Non Domestic Rates (NNDR) Payments,"Local Gov & Reg(LG DEL,AME, RfR2)",HEREFORDSHIRE DISTRICT COUNCIL,5000135830,"2,388,414.00"
Communities & Local Government,DCLG,03/08/2010,National Non Domestic Rates (NNDR) Payments,"Local Gov & Reg(LG DEL,AME, RfR2)",HERTFORDSHIRE POLICE AUTH,5000135831,"1,967,085.00"
Communities & Local Government,DCLG,03/08/2010,National Non Domestic Rates (NNDR) Payments,"Local Gov & Reg(LG DEL,AME, RfR2)",HERTFORDSHIRE CONTY CNCL,5000135832,"7,298,519.00"
Communities & Local Government,DCLG,03/08/2010,National Non Domestic Rates (NNDR) Payments,"Local Gov & Reg(LG DEL,AME, RfR2)",HUMBERSIDE FIRE & RESCUE SERVICE,5000135845,"1,127,113.00"
Communities & Local Government,DCLG,03/08/2010,National Non Domestic Rates (NNDR) Payments,"Local Gov & Reg(LG DEL,AME, RfR2)",HUMBERSIDE POLICE,5000135846,"2,562,180.00"
Communities & Local Government,DCLG,03/08/2010,National Non Domestic Rates (NNDR) Payments,"Local Gov & Reg(LG DEL,AME, RfR2)",ISLE OF WIGHT CNCL,5000135852,"2,546,558.00"
Communities & Local Government,DCLG,03/08/2010,National Non Domestic Rates (NNDR) Payments,"Local Gov & Reg(LG DEL,AME, RfR2)",ISLES OF SCILLY COUNCIL,5000135856,"94,610.00"
Communities & Local Government,DCLG,03/08/2010,National Non Domestic Rates (NNDR) Payments,"Local Gov & Reg(LG DEL,AME, RfR2)",KENT COUNTY CNCL,5000135863,"11,435,881.00"
Communities & Local Government,DCLG,03/08/2010,National Non Domestic Rates (NNDR) Payments,"Local Gov & Reg(LG DEL,AME, RfR2)",KENT & MEDWAY TOWNS FIRE AUTHORITY,5000135864,"1,227,552.00"
Communities & Local Government,DCLG,03/08/2010,National Non Domestic Rates (NNDR) Payments,"Local Gov & Reg(LG DEL,AME, RfR2)",KENT POLICE AUTHORITY,5000135865,"3,366,838.00"
Communities & Local Government,DCLG,03/08/2010,National Non Domestic Rates (NNDR) Payments,"Local Gov & Reg(LG DEL,AME, RfR2)",HULL CITY COUNCIL,5000135871,"6,303,025.00"
Communities & Local Government,DCLG,03/08/2010,National Non Domestic Rates (NNDR) Payments,"Local Gov & Reg(LG DEL,AME, RfR2)",KIRKLEES MBC,5000135875,"6,516,937.00"
Communities & Local Government,DCLG,03/08/2010,National Non Domestic Rates (NNDR) Payments,"Local Gov & Reg(LG DEL,AME, RfR2)",KNOWSLEY MBC,5000135877,"4,913,999.00"
Communities & Local Government,DCLG,03/08/2010,National Non Domestic Rates (NNDR) Payments,"Local Gov & Reg(LG DEL,AME, RfR2)",LONDON BOROUGH OF LAMBETH,5000135879,"8,873,351.00"
Communities & Local Government,DCLG,03/08/2010,National Non Domestic Rates (NNDR) Payments,"Local Gov & Reg(LG DEL,AME, RfR2)",LANCASHIRE COUNTY CNCL,5000135880,"12,530,382.00"
Communities & Local Government,DCLG,03/08/2010,National Non Domestic Rates (NNDR) Payments,"Local Gov & Reg(LG DEL,AME, RfR2)",LANCASHIRE COMBINED FIRE AUTHORITY,5000135881,"1,352,484.00"
Communities & Local Government,DCLG,03/08/2010,National Non Domestic Rates (NNDR) Payments,"Local Gov & Reg(LG DEL,AME, RfR2)",LANCASHIRE POLICE AUTHORITY,5000135882,"4,017,966.00"
Communities & Local Government,DCLG,03/08/2010,National Non Domestic Rates (NNDR) Payments,"Local Gov & Reg(LG DEL,AME, RfR2)",LEICESTER CITY CNCL,5000135888,"7,564,186.00"
Communities & Local Government,DCLG,03/08/2010,National Non Domestic Rates (NNDR) Payments,"Local Gov & Reg(LG DEL,AME, RfR2)",LEICS LEICESTERSHIRE RUTLAND CFA,5000135890,"781,420.00"
Communities & Local Government,DCLG,03/08/2010,National Non Domestic Rates (NNDR) Payments,"Local Gov & Reg(LG DEL,AME, RfR2)",LEICESTERSHIRE POLICE AUTHORITY,5000135891,"2,214,297.00"
Communities & Local Government,DCLG,03/08/2010,National Non Domestic Rates (NNDR) Payments,"Local Gov & Reg(LG DEL,AME, RfR2)",LEICESTERSHIRE COUNTY CNCL,5000135892,"4,175,374.00"
Communities & Local Government,DCLG,03/08/2010,National Non Domestic Rates (NNDR) Payments,"Local Gov & Reg(LG DEL,AME, RfR2)",LEWISHAM LB,5000135896,"7,474,940.00"
Communities & Local Government,DCLG,03/08/2010,National Non Domestic Rates (NNDR) Payments,"Local Gov & Reg(LG DEL,AME, RfR2)",LINCOLNSHIRE POLICE AUTH,5000135901,"1,059,314.00"
Communities & Local Government,DCLG,03/08/2010,National Non Domestic Rates (NNDR) Payments,"Local Gov & Reg(LG DEL,AME, RfR2)",LINCOLNSHIRE COUNTY CNCL,5000135902,"7,966,469.00"
Communities & Local Government,DCLG,03/08/2010,National Non Domestic Rates (NNDR) Payments,"Local Gov & Reg(LG DEL,AME, RfR2)",LIVERPOOL CITY COUNCIL,5000135903,"13,483,663.00"
Communities & Local Government,DCLG,03/08/2010,National Non Domestic Rates (NNDR) Payments,"Local Gov & Reg(LG DEL,AME, RfR2)",LUTON BC,5000135905,"3,728,555.00"
Communities & Local Government,DCLG,03/08/2010,National Non Domestic Rates (NNDR) Payments,"Local Gov & Reg(LG DEL,AME, RfR2)",MANCHESTER CITY CNCL,5000135913,"14,203,359.00"
Communities & Local Government,DCLG,03/08/2010,National Non Domestic Rates (NNDR) Payments,"Local Gov & Reg(LG DEL,AME, RfR2)",GREATER MANCHESTER FIRE,5000135915,"3,124,666.00"
Communities & Local Government,DCLG,03/08/2010,National Non Domestic Rates (NNDR) Payments,"Local Gov & Reg(LG DEL,AME, RfR2)",GREATER MANCHESTER POL AUTH,5000135916,"9,418,874.00"
Communities & Local Government,DCLG,03/08/2010,National Non Domestic Rates (NNDR) Payments,"Local Gov & Reg(LG DEL,AME, RfR2)",MEDWAY COUNCIL,5000135920,"3,530,945.00"
Communities & Local Government,DCLG,03/08/2010,National Non Domestic Rates (NNDR) Payments,"Local Gov & Reg(LG DEL,AME, RfR2)",MERSEYSIDE FIRE & RESCUE SERVICE,5000135925,"1,920,590.00"
Communities & Local Government,DCLG,03/08/2010,National Non Domestic Rates (NNDR) Payments,"Local Gov & Reg(LG DEL,AME, RfR2)",MERSEYSIDE POLICE AUTH,5000135926,"5,679,286.00"
Communities & Local Government,DCLG,03/08/2010,National Non Domestic Rates (NNDR) Payments,"Local Gov & Reg(LG DEL,AME, RfR2)",MIDDLESBROUGH BC,5000135935,"3,468,796.00"
Communities & Local Government,DCLG,03/08/2010,National Non Domestic Rates (NNDR) Payments,"Local Gov & Reg(LG DEL,AME, RfR2)",NEWCASTLE UPON TYNE DC,5000135948,"6,924,893.00"
Communities & Local Government,DCLG,03/08/2010,National Non Domestic Rates (NNDR) Payments,"Local Gov & Reg(LG DEL,AME, RfR2)",LONDON BOROUGH OF NEWHAM,5000135951,"9,290,081.00"
Communities & Local Government,DCLG,03/08/2010,National Non Domestic Rates (NNDR) Payments,"Local Gov & Reg(LG DEL,AME, RfR2)",NORFOLK COUNTY COUNCIL,5000135953,"9,882,001.00"
Communities & Local Government,DCLG,03/08/2010,National Non Domestic Rates (NNDR) Payments,"Local Gov & Reg(LG DEL,AME, RfR2)",NORFOLK POLICE AUTHORITY,5000135954,"1,566,751.00"
Communities & Local Government,DCLG,03/08/2010,National Non Domestic Rates (NNDR) Payments,"Local Gov & Reg(LG DEL,AME, RfR2)",NORTH EAST LINCOLN DC,5000135960,"3,018,393.00"
Communities & Local Government,DCLG,03/08/2010,National Non Domestic Rates (NNDR) Payments,"Local Gov & Reg(LG DEL,AME, RfR2)",NORTH TYNESIDE MBC,5000135973,"3,646,215.00"
Communities & Local Government,DCLG,03/08/2010,National Non Domestic Rates (NNDR) Payments,"Local Gov & Reg(LG DEL,AME, RfR2)",NORTH YORKSHIRE CC,5000135977,"4,328,348.00"
Communities & Local Government,DCLG,03/08/2010,National Non Domestic Rates (NNDR) Payments,"Local Gov & Reg(LG DEL,AME, RfR2)",NORTH YORKSHIRE FIRE & RESCUE AUTH,5000135978,"537,875.00"
Communities & Local Government,DCLG,03/08/2010,National Non Domestic Rates (NNDR) Payments,"Local Gov & Reg(LG DEL,AME, RfR2)",NORTH YORKSHIRE POLICE AUTHORITY,5000135979,"1,364,413.00"
Communities & Local Government,DCLG,03/08/2010,National Non Domestic Rates (NNDR) Payments,"Local Gov & Reg(LG DEL,AME, RfR2)",NORTHAMPTONSHIRE COUNTY COUNCIL,5000135982,"6,392,281.00"
Communities & Local Government,DCLG,03/08/2010,National Non Domestic Rates (NNDR) Payments,"Local Gov & Reg(LG DEL,AME, RfR2)",NORTHAMPTONSHIRE POLICE AUTH,5000135983,"1,353,611.00"
Communities & Local Government,DCLG,03/08/2010,National Non Domestic Rates (NNDR) Payments,"Local Gov & Reg(LG DEL,AME, RfR2)",NORTHUMBRIA POLICE AUTH,5000135984,"5,902,573.00"
Communities & Local Government,DCLG,03/08/2010,National Non Domestic Rates (NNDR) Payments,"Local Gov & Reg(LG DEL,AME, RfR2)",NOTTINGHAM CITY COUNCIL,5000135988,"7,158,759.00"
Communities & Local Government,DCLG,03/08/2010,National Non Domestic Rates (NNDR) Payments,"Local Gov & Reg(LG DEL,AME, RfR2)",NOTTINGHAMSHIRE COUNTY CNCL,5000135989,"7,303,056.00"
Communities & Local Government,DCLG,03/08/2010,National Non Domestic Rates (NNDR) Payments,"Local Gov & Reg(LG DEL,AME, RfR2)",NOTTS & CITY NOTTINGHAM FIRE AUTH,5000135990,"1,037,330.00"
Communities & Local Government,DCLG,03/08/2010,National Non Domestic Rates (NNDR) Payments,"Local Gov & Reg(LG DEL,AME, RfR2)",NOTTINGHAMSHIRE POLICE AU,5000135991,"2,708,407.00"
Communities & Local Government,DCLG,03/08/2010,National Non Domestic Rates (NNDR) Payments,"Local Gov & Reg(LG DEL,AME, RfR2)",OLDHAM MBC,5000136001,"5,043,513.00"
Communities & Local Government,DCLG,03/08/2010,National Non Domestic Rates (NNDR) Payments,"Local Gov & Reg(LG DEL,AME, RfR2)",OXFORDSHIRE CC,5000136004,"4,409,886.00"
Communities & Local Government,DCLG,03/08/2010,National Non Domestic Rates (NNDR) Payments,"Local Gov & Reg(LG DEL,AME, RfR2)",PLYMOUTH CITY CNCL,5000136011,"4,397,481.00"
Communities & Local Government,DCLG,03/08/2010,National Non Domestic Rates (NNDR) Payments,"Local Gov & Reg(LG DEL,AME, RfR2)",PORTSMOUTH CITY COUNCIL,5000136015,"3,630,058.00"
Communities & Local Government,DCLG,03/08/2010,National Non Domestic Rates (NNDR) Payments,"Local Gov & Reg(LG DEL,AME, RfR2)",LONDON BOROUGH OF REDBRIDGE,5000136024,"4,065,505.00"
Communities & Local Government,DCLG,03/08/2010,National Non Domestic Rates (NNDR) Payments,"Local Gov & Reg(LG DEL,AME, RfR2)",REDCAR & CLEVELAND BOROUGH COUNCIL,5000136026,"2,849,921.00"
Communities & Local Government,DCLG,03/08/2010,National Non Domestic Rates (NNDR) Payments,"Local Gov & Reg(LG DEL,AME, RfR2)",ROCHDALE MBC,5000136038,"4,549,468.00"
Communities & Local Government,DCLG,03/08/2010,National Non Domestic Rates (NNDR) Payments,"Local Gov & Reg(LG DEL,AME, RfR2)",ROTHERHAM MBC,5000136046,"5,115,864.00"
Communities & Local Government,DCLG,03/08/2010,National Non Domestic Rates (NNDR) Payments,"Local Gov & Reg(LG DEL,AME, RfR2)",SALFORD CITY CNCL,5000136063,"5,401,618.00"
Communities & Local Government,DCLG,03/08/2010,National Non Domestic Rates (NNDR) Payments,"Local Gov & Reg(LG DEL,AME, RfR2)",SANDWELL MBC,5000136065,"7,603,265.00"
Communities & Local Government,DCLG,03/08/2010,National Non Domestic Rates (NNDR) Payments,"Local Gov & Reg(LG DEL,AME, RfR2)",SEFTON MBC,5000136073,"5,171,078.00"
Communities & Local Government,DCLG,03/08/2010,National Non Domestic Rates (NNDR) Payments,"Local Gov & Reg(LG DEL,AME, RfR2)",SHEFFIELD CITY CNCL,5000136079,"11,514,162.00"
Communities & Local Government,DCLG,03/08/2010,National Non Domestic Rates (NNDR) Payments,"Local Gov & Reg(LG DEL,AME, RfR2)",SHEPWAY DC,5000136082,"415,584.00"
Communities & Local Government,DCLG,03/08/2010,National Non Domestic Rates (NNDR) Payments,"Local Gov & Reg(LG DEL,AME, RfR2)",SHROPSHIRE & WREKIN FIRE AUTHORITY,5000136084,"342,919.00"
Communities & Local Government,DCLG,03/08/2010,National Non Domestic Rates (NNDR) Payments,"Local Gov & Reg(LG DEL,AME, RfR2)",SOMERSET COUNTY CNCL,5000136089,"4,558,227.00"
Communities & Local Government,DCLG,03/08/2010,National Non Domestic Rates (NNDR) Payments,"Local Gov & Reg(LG DEL,AME, RfR2)",SOUTH HOLLAND,5000136105,"372,529.00"
Communities & Local Government,DCLG,03/08/2010,National Non Domestic Rates (NNDR) Payments,"Local Gov & Reg(LG DEL,AME, RfR2)",SOUTH TYNESIDE COUNCIL,5000136122,"3,744,784.00"
Communities & Local Government,DCLG,03/08/2010,National Non Domestic Rates (NNDR) Payments,"Local Gov & Reg(LG DEL,AME, RfR2)",SOUTH YORKSHIRE FIRE & CD,5000136124,"1,525,135.00"
Communities & Local Government,DCLG,03/08/2010,National Non Domestic Rates (NNDR) Payments,"Local Gov & Reg(LG DEL,AME, RfR2)",SOUTH YORKSHIRE P A,5000136125,"4,238,904.00"
Communities & Local Government,DCLG,03/08/2010,National Non Domestic Rates (NNDR) Payments,"Local Gov & Reg(LG DEL,AME, RfR2)",SOUTHEND ON SEA BC,5000136130,"2,550,796.00"
Communities & Local Government,DCLG,03/08/2010,National Non Domestic Rates (NNDR) Payments,"Local Gov & Reg(LG DEL,AME, RfR2)",SOUTHWARK LB,5000136132,"9,569,962.00"
Communities & Local Government,DCLG,03/08/2010,National Non Domestic Rates (NNDR) Payments,"Local Gov & Reg(LG DEL,AME, RfR2)",SPELTHORNE DC,5000136135,"235,546.00"
Communities & Local Government,DCLG,03/08/2010,National Non Domestic Rates (NNDR) Payments,"Local Gov & Reg(LG DEL,AME, RfR2)",ST HELENS MBC,5000136141,"3,649,790.00"
Communities & Local Government,DCLG,03/08/2010,National Non Domestic Rates (NNDR) Payments,"Local Gov & Reg(LG DEL,AME, RfR2)",STAFFORDSHIRE COUNTY CNCL,5000136147,"6,521,878.00"
Communities & Local Government,DCLG,03/08/2010,National Non Domestic Rates (NNDR) Payments,"Local Gov & Reg(LG DEL,AME, RfR2)",STAFFORDSHIRE  FIRE & RESCUE SERV,5000136148,"771,462.00"
Communities & Local Government,DCLG,03/08/2010,National Non Domestic Rates (NNDR) Payments,"Local Gov & Reg(LG DEL,AME, RfR2)",STAFFORDSHIRE POLICE AUTHORITY,5000136151,"2,208,894.00"
Communities & Local Government,DCLG,03/08/2010,National Non Domestic Rates (NNDR) Payments,"Local Gov & Reg(LG DEL,AME, RfR2)",STOKE ON TRENT CITY COUNCIL,5000136159,"5,279,738.00"
Communities & Local Government,DCLG,03/08/2010,National Non Domestic Rates (NNDR) Payments,"Local Gov & Reg(LG DEL,AME, RfR2)",SUFFOLK COUNTY CNCL,5000136165,"7,006,677.00"
Communities & Local Government,DCLG,03/08/2010,National Non Domestic Rates (NNDR) Payments,"Local Gov & Reg(LG DEL,AME, RfR2)",SUFFOLK POLICE AUTHORITY,5000136168,"1,242,265.00"
Communities & Local Government,DCLG,03/08/2010,National Non Domestic Rates (NNDR) Payments,"Local Gov & Reg(LG DEL,AME, RfR2)",SUNDERLAND DC,5000136169,"6,531,066.00"
Communities & Local Government,DCLG,03/08/2010,National Non Domestic Rates (NNDR) Payments,"Local Gov & Reg(LG DEL,AME, RfR2)",SURREY COUNTY CNCL,5000136171,"5,287,798.00"
Communities & Local Government,DCLG,03/08/2010,National Non Domestic Rates (NNDR) Payments,"Local Gov & Reg(LG DEL,AME, RfR2)",SURREY POLICE AUTHORITY,5000136174,"1,509,372.00"
Communities & Local Government,DCLG,03/08/2010,National Non Domestic Rates (NNDR) Payments,"Local Gov & Reg(LG DEL,AME, RfR2)",SUSSEX POLICE AUTHORITY,5000136175,"2,985,604.00"
Communities & Local Government,DCLG,03/08/2010,National Non Domestic Rates (NNDR) Payments,"Local Gov & Reg(LG DEL,AME, RfR2)",TAMESIDE MBC,5000136183,"4,375,811.00"
Communities & Local Government,DCLG,03/08/2010,National Non Domestic Rates (NNDR) Payments,"Local Gov & Reg(LG DEL,AME, RfR2)",THAMES VALLEY POLICE AUTHORITY,5000136202,"3,986,270.00"
Communities & Local Government,DCLG,03/08/2010,National Non Domestic Rates (NNDR) Payments,"Local Gov & Reg(LG DEL,AME, RfR2)",TORBAY BC,5000136213,"2,446,805.00"
Communities & Local Government,DCLG,03/08/2010,National Non Domestic Rates (NNDR) Payments,"Local Gov & Reg(LG DEL,AME, RfR2)",TYNE & WEAR FIRE AUTHORITY,5000136222,"1,475,326.00"
Communities & Local Government,DCLG,03/08/2010,National Non Domestic Rates (NNDR) Payments,"Local Gov & Reg(LG DEL,AME, RfR2)",CITY OF WAKEFIELD MDC,5000136227,"5,857,934.00"
Communities & Local Government,DCLG,03/08/2010,National Non Domestic Rates (NNDR) Payments,"Local Gov & Reg(LG DEL,AME, RfR2)",WALSALL MBC,5000136231,"5,692,460.00"
Communities & Local Government,DCLG,03/08/2010,National Non Domestic Rates (NNDR) Payments,"Local Gov & Reg(LG DEL,AME, RfR2)",WALTHAM FOREST LB,5000136233,"5,100,091.00"
Communities & Local Government,DCLG,03/08/2010,National Non Domestic Rates (NNDR) Payments,"Local Gov & Reg(LG DEL,AME, RfR2)",WANDSWORTH LB,5000136234,"6,230,036.00"
Communities & Local Government,DCLG,03/08/2010,National Non Domestic Rates (NNDR) Payments,"Local Gov & Reg(LG DEL,AME, RfR2)",WARWICKSHIRE COUNTY CNCL,5000136240,"3,819,698.00"
Communities & Local Government,DCLG,03/08/2010,National Non Domestic Rates (NNDR) Payments,"Local Gov & Reg(LG DEL,AME, RfR2)",WARWICKSHIRE POLICE AUTHORITY,5000136241,"910,503.00"
Communities & Local Government,DCLG,03/08/2010,National Non Domestic Rates (NNDR) Payments,"Local Gov & Reg(LG DEL,AME, RfR2)",WEST MERCIA POLICE AUTH,5000136264,"2,283,639.00"
Communities & Local Government,DCLG,03/08/2010,National Non Domestic Rates (NNDR) Payments,"Local Gov & Reg(LG DEL,AME, RfR2)",WEST MIDLANDS FIRE & CIVIL DEFENCE,5000136265,"3,351,884.00"
Communities & Local Government,DCLG,03/08/2010,National Non Domestic Rates (NNDR) Payments,"Local Gov & Reg(LG DEL,AME, RfR2)",WEST MIDLANDS POLICE AUTH,5000136266,"9,783,415.00"
Communities & Local Government,DCLG,03/08/2010,National Non Domestic Rates (NNDR) Payments,"Local Gov & Reg(LG DEL,AME, RfR2)",WEST SUSSEX CC,5000136271,"4,093,493.00"
Communities & Local Government,DCLG,03/08/2010,National Non Domestic Rates (NNDR) Payments,"Local Gov & Reg(LG DEL,AME, RfR2)",W YORKSHIRE FIRE & RESCUE AUTH,5000136272,"2,384,518.00"
Communities & Local Government,DCLG,03/08/2010,National Non Domestic Rates (NNDR) Payments,"Local Gov & Reg(LG DEL,AME, RfR2)",WEST YORKSHIRE POLICE AUTHORITY,5000136273,"6,714,111.00"
Communities & Local Government,DCLG,03/08/2010,National Non Domestic Rates (NNDR) Payments,"Local Gov & Reg(LG DEL,AME, RfR2)",WIGAN MBC,5000136281,"5,519,812.00"
Communities & Local Government,DCLG,03/08/2010,National Non Domestic Rates (NNDR) Payments,"Local Gov & Reg(LG DEL,AME, RfR2)",WILTSHIRE & SWINDON FIRE AUTHORITY,5000136283,"397,631.00"
Communities & Local Government,DCLG,03/08/2010,National Non Domestic Rates (NNDR) Payments,"Local Gov & Reg(LG DEL,AME, RfR2)",WILTSHIRE POLICE,5000136284,"1,121,656.00"
Communities & Local Government,DCLG,03/08/2010,National Non Domestic Rates (NNDR) Payments,"Local Gov & Reg(LG DEL,AME, RfR2)",WIRRAL MBC,5000136292,"6,547,599.00"
Communities & Local Government,DCLG,03/08/2010,National Non Domestic Rates (NNDR) Payments,"Local Gov & Reg(LG DEL,AME, RfR2)",WOLVERHAMPTON MBC,5000136298,"5,976,575.00"
Communities & Local Government,DCLG,03/08/2010,National Non Domestic Rates (NNDR) Payments,"Local Gov & Reg(LG DEL,AME, RfR2)",WORCESTERSHIRE COUNTY COUNCIL,5000136301,"3,739,531.00"
Communities & Local Government,DCLG,03/08/2010,National Non Domestic Rates (NNDR) Payments,"Local Gov & Reg(LG DEL,AME, RfR2)",GREATER LONDON AUTHORITY-FIRE,5000136312,"10,766,401.00"
Communities & Local Government,DCLG,03/08/2010,National Non Domestic Rates (NNDR) Payments,"Local Gov & Reg(LG DEL,AME, RfR2)",CORNWALL COUNCIL,5000136321,"8,861,604.00"
Communities & Local Government,DCLG,03/08/2010,National Non Domestic Rates (NNDR) Payments,"Local Gov & Reg(LG DEL,AME, RfR2)",DURHAM COUNTY COUNCIL,5000136323,"9,595,358.00"
Communities & Local Government,DCLG,03/08/2010,National Non Domestic Rates (NNDR) Payments,"Local Gov & Reg(LG DEL,AME, RfR2)",NORTHUMBERLAND,5000136325,"5,401,942.00"
Communities & Local Government,DCLG,03/08/2010,National Non Domestic Rates (NNDR) Payments,"Local Gov & Reg(LG DEL,AME, RfR2)",SHROPSHIRE COUNCIL,5000136326,"3,877,595.00"
Communities & Local Government,DCLG,03/08/2010,Medals,Communities Group,ROYAL MINT,5106142621,552.54
Communities & Local Government,DCLG,03/08/2010,Medals,Communities Group,ROYAL MINT,5106142710,"2,152.01"
Communities & Local Government,DCLG,03/08/2010,Services provided by other Govt Orgs,Housing and Planning,AFFINITY SUTTON GROUP LIMITED,5106142651,"1,203.72"
Communities & Local Government,DCLG,03/08/2010,Steady State Service Provision,Finance and Corporate Services,LB WALTHAM FOREST,5106142637,615.00
Communities & Local Government,DCLG,03/08/2010,Steady State Service Provision,Communities Group,EADS DEFENCE & SECURITY SYSTEMS LTD,5106142608,"30,604.76"
Communities & Local Government,DCLG,03/08/2010,Steady State Service Provision,Communities Group,EADS DEFENCE & SECURITY SYSTEMS LTD,5106142630,"2,598.99"
Communities & Local Government,DCLG,03/08/2010,Steady State Service Provision,Communities Group,EADS DEFENCE & SECURITY SYSTEMS LTD,5106142686,"5,336.52"
Communities & Local Government,DCLG,03/08/2010,Steady State Service Provision,Communities Group,EADS DEFENCE & SECURITY SYSTEMS LTD,5106142708,"2,893.78"
Communities & Local Government,DCLG,03/08/2010,Steady State Service Provision,Communities Group,EADS DEFENCE & SECURITY SYSTEMS LTD,5106142734,"19,006.49"
Communities & Local Government,DCLG,03/08/2010,Steady State Service Provision,Communities Group,EADS DEFENCE & SECURITY SYSTEMS LTD,5106142736,"24,838.40"
Communities & Local Government,DCLG,03/08/2010,Steady State Service Provision,Communities Group,EADS DEFENCE & SECURITY SYSTEMS LTD,5106142738,"28,491.22"
Communities & Local Government,DCLG,03/08/2010,Management Consultancy,Finance and Corporate Services,BROOKLEIGH CONSULTING LTD,5106142716,470.00
Communities & Local Government,DCLG,03/08/2010,Management Consultancy,Communities Group,EQUAL TO THE OCCASION,5106142649,"11,838.13"
Communities & Local Government,DCLG,03/08/2010,Management Consultancy,"Local Gov & Reg(LG DEL,AME, RfR2)",ROCKPOOLS PEOPLE & PERFORMANCE,5106142654,"23,500.00"
Communities & Local Government,DCLG,03/08/2010,Property/Estates Consultancy,Finance and Corporate Services,TURNER & TOWNSEND,5106142567,"48,804.80"
Communities & Local Government,DCLG,04/08/2010,Agency Staff,Housing and Planning,REED SPECIALIST RECRUITMENT LTD,5106142715,720.31
Communities & Local Government,DCLG,04/08/2010,Agency Staff,Housing and Planning,REED SPECIALIST RECRUITMENT LTD,5106142806,697.07
Communities & Local Government,DCLG,04/08/2010,Agency Staff,Finance and Corporate Services,REED SPECIALIST RECRUITMENT LTD,5106142839,883.22
Communities & Local Government,DCLG,04/08/2010,Agency Staff,Finance and Corporate Services,VENN GROUP,5106142712,"1,699.58"
Communities & Local Government,DCLG,04/08/2010,Domestic Services,Communities Group,FIRE SERVICE COLLEGE,5106142785,"2,179.28"
Communities & Local Government,DCLG,04/08/2010,Heating and lighting,Communities Group,FIRE SERVICE COLLEGE,5106142785,100.08
Communities & Local Government,DCLG,04/08/2010,Fixed Maintenance,Communities Group,FIRE SERVICE COLLEGE,5106142785,409.58
Communities & Local Government,DCLG,04/08/2010,Printers,Regions and Communities,STERIA LIMITED,5106137678,"3,124.45"
Communities & Local Government,DCLG,04/08/2010,Printers,"Local Gov & Reg(LG DEL,AME, RfR2)",RICOH CAPITAL LTD,5106142860,"1,040.17"
Communities & Local Government,DCLG,04/08/2010,Post,Communities Group,FIRE SERVICE COLLEGE,5106142785,87.33
Communities & Local Government,DCLG,04/08/2010,Publications,Finance and Corporate Services,LEXIS-NEXIS UK,5106142822,803.45
Communities & Local Government,DCLG,04/08/2010,Publishing,Housing and Planning,TUDORSEED LIMITED,5106142756,"3,119.63"
Communities & Local Government,DCLG,04/08/2010,Removals and Porterage,Finance and Corporate Services,HARROW GREEN REMOVALS GROUP,2100193757,"-5,125.00"
Communities & Local Government,DCLG,04/08/2010,Removals and Porterage,Finance and Corporate Services,HARROW GREEN REMOVALS GROUP,5106141920,"5,125.00"
Communities & Local Government,DCLG,04/08/2010,Research,Finance and Corporate Services,OXFORD UNIVERSITY,5106142810,"5,523.68"
Communities & Local Government,DCLG,04/08/2010,Research,Finance and Corporate Services,TENANT SERVICES AUTHORIT Y,5106142758,"107,322.74"
Communities & Local Government,DCLG,04/08/2010,Research,Communities Group,SHARED INTELLIGENCE,5106142543,"6,220.16"
Communities & Local Government,DCLG,04/08/2010,Research,Communities Group,FIRE SERVICE COLLEGE,2100193731,"49,966.80"
Communities & Local Government,DCLG,04/08/2010,Research,Communities Group,FIRE SERVICE COLLEGE,5106141330,"22,413.00"
Communities & Local Government,DCLG,04/08/2010,Research,Communities Group,FIRE SERVICE COLLEGE,5106141332,"18,015.00"
Communities & Local Government,DCLG,04/08/2010,Research,Communities Group,FIRE SERVICE COLLEGE,5106142647,"-49,966.80"
Communities & Local Government,DCLG,04/08/2010,Security,Communities Group,FIRE SERVICE COLLEGE,5106142785,457.73
Communities & Local Government,DCLG,04/08/2010,Training,Finance and Corporate Services,BPP PROFESSIONAL EDUCATION,5106142865,"1,759.21"
Communities & Local Government,DCLG,04/08/2010,Waste Disposal and pest control,Communities Group,FIRE SERVICE COLLEGE,5106142785,78.75
Communities & Local Government,DCLG,04/08/2010,Vehicle hire,Communities Group,GOVERNMENT CAR & DESPATCH AGENCY,5106142862,798.01
Communities & Local Government,DCLG,04/08/2010,Licence Fees/Levies,Finance and Corporate Services,LANDMARK INFORMATION GROUP LTD,5106142933,"-1,216,859.38"
Communities & Local Government,DCLG,04/08/2010,Licence Fees/Levies,Finance and Corporate Services,LANDMARK INFORMATION GROUP LTD,5106142948,"1,150.00"
Communities & Local Government,DCLG,04/08/2010,Licence Fees/Levies,Finance and Corporate Services,LANDMARK INFORMATION GROUP LTD,5106142962,"-1,208,880.00"
Communities & Local Government,DCLG,04/08/2010,Licence Fees/Levies,Finance and Corporate Services,LANDMARK INFORMATION GROUP LTD,5106142971,"1,193,634.94"
Communities & Local Government,DCLG,04/08/2010,Licence Fees/Levies,Finance and Corporate Services,LANDMARK INFORMATION GROUP LTD,5106142978,"-1,014.50"
Communities & Local Government,DCLG,04/08/2010,Licence Fees/Levies,Finance and Corporate Services,LANDMARK INFORMATION GROUP LTD,5106142980,"1,053,147.39"
Communities & Local Government,DCLG,04/08/2010,Gas,Communities Group,FIRE SERVICE COLLEGE,5106142785,707.79
Communities & Local Government,DCLG,04/08/2010,Electricity,Communities Group,FIRE SERVICE COLLEGE,5106142785,151.40
Communities & Local Government,DCLG,04/08/2010,Web Services,Communities Group,CENTRAL OFFICE OF INFORMATION,5106142426,"3,872.80"
Communities & Local Government,DCLG,04/08/2010,Grant in Aid to NDPBs (non budget),Housing and Planning,HOMES & COMMUNITIES AGENCY,2100193673,"26,513,178.00"
Communities & Local Government,DCLG,04/08/2010,Steady State Service Provision,Communities Group,AIRWAVE SOLUTIONS LTD,5106142614,"61,248.00"
Communities & Local Government,DCLG,04/08/2010,Steady State Service Provision,Communities Group,AIRWAVE SOLUTIONS LTD,5106142853,"56,497.00"
Communities & Local Government,DCLG,04/08/2010,Steady State Service Provision,"Local Gov & Reg(LG DEL,AME, RfR2)",LA INT COMPUTER CONSULTANTS LTD,5106142464,"3,421.60"
Communities & Local Government,DCLG,04/08/2010,IT Consultancy,"Local Gov & Reg(LG DEL,AME, RfR2)",OXFORD CONSULT SOCIAL INCLUSION LTD,5106141062,"2,937.50"
Communities & Local Government,DCLG,04/08/2010,Management Consultancy,Regions and Communities,DELOITTE LLP,5106142672,"57,767.37"
Communities & Local Government,DCLG,04/08/2010,Management Consultancy,Communities Group,PA CONSULTING SERVICES LIMITED,5106142856,"10,898.69"
Communities & Local Government,DCLG,04/08/2010,Management Consultancy,Communities Group,PA CONSULTING SERVICES LIMITED,5106142858,"456,341.19"
Communities & Local Government,DCLG,04/08/2010,Legal Consultancy,Housing and Planning,DCLG GOVERNMENT PROCUREMENT CARD,1000002288,998.75
Communities & Local Government,DCLG,05/08/2010,Agency Staff,Housing and Planning,REED SPECIALIST RECRUITMENT LTD,5106142883,914.73
Communities & Local Government,DCLG,05/08/2010,Agency Staff,Housing and Planning,REED SPECIALIST RECRUITMENT LTD,5106142885,885.22
Communities & Local Government,DCLG,05/08/2010,Agency Staff,Housing and Planning,REED SPECIALIST RECRUITMENT LTD,5106142887,885.22
Communities & Local Government,DCLG,05/08/2010,Agency Staff,Housing and Planning,REED SPECIALIST RECRUITMENT LTD,5106142901,720.31
Communities & Local Government,DCLG,05/08/2010,Agency Staff,Housing and Planning,REED SPECIALIST RECRUITMENT LTD,5106142902,885.22
Communities & Local Government,DCLG,05/08/2010,Agency Staff,Housing and Planning,REED SPECIALIST RECRUITMENT LTD,5106142990,697.07
Communities & Local Government,DCLG,05/08/2010,Agency Staff,Housing and Planning,REED SPECIALIST RECRUITMENT LTD,5106142993,914.73
Communities & Local Government,DCLG,05/08/2010,Agency Staff,Finance and Corporate Services,OPEN SPACES LTD,5106142927,"1,092.75"
Communities & Local Government,DCLG,05/08/2010,Agency Staff,Finance and Corporate Services,REED SPECIALIST RECRUITMENT LTD,5106142904,432.75
Communities & Local Government,DCLG,05/08/2010,Agency Staff,Finance and Corporate Services,REED SPECIALIST RECRUITMENT LTD,5106142905,"2,625.69"
Communities & Local Government,DCLG,05/08/2010,Agency Staff,Finance and Corporate Services,REED SPECIALIST RECRUITMENT LTD,5106142907,452.95
Communities & Local Government,DCLG,05/08/2010,Agency Staff,Finance and Corporate Services,REED SPECIALIST RECRUITMENT LTD,5106142910,426.98
Communities & Local Government,DCLG,05/08/2010,Agency Staff,Finance and Corporate Services,VENN GROUP,5106142983,"1,699.58"
Communities & Local Government,DCLG,05/08/2010,Agency Staff,Communities Group,REED SPECIALIST RECRUITMENT LTD,5106142906,873.00
Communities & Local Government,DCLG,05/08/2010,Agency Staff,Communities Group,REED SPECIALIST RECRUITMENT LTD,5106142985,552.53
Communities & Local Government,DCLG,05/08/2010,Agency Staff,Communities Group,REED SPECIALIST RECRUITMENT LTD,5106142987,784.11
Communities & Local Government,DCLG,05/08/2010,IT Maintenance,Housing and Planning,LA INT COMPUTER CONSULTANTS LTD,5106143021,"14,867.78"
Communities & Local Government,DCLG,05/08/2010,Legal Fees,Communities Group,DENTON WILDE SAPTE LLP,5106142916,"1,185.37"
Communities & Local Government,DCLG,05/08/2010,Legal Fees,Communities Group,DENTON WILDE SAPTE LLP,5106142935,504.47
Communities & Local Government,DCLG,05/08/2010,Office Machinery Rental,Housing and Planning,OCE FINANCE,5106142970,"1,310.69"
Communities & Local Government,DCLG,05/08/2010,Office Machinery Rental,Housing and Planning,OCE FINANCE,5106142973,"1,310.39"
Communities & Local Government,DCLG,05/08/2010,Office Machinery Rental,Housing and Planning,OCE FINANCE,5106142977,"1,049.50"
Communities & Local Government,DCLG,05/08/2010,Current Grants to Non Profit Bodies,Regions and Communities,STRIDE (SOUTH TYNESIDE) LTD,2100193781,"121,406.00"
Communities & Local Government,DCLG,05/08/2010,Current Grants to Non Profit Bodies,Regions and Communities,STRIDE (SOUTH TYNESIDE) LTD,2300000929,"-121,406.00"
Communities & Local Government,DCLG,05/08/2010,Current Grants to Non Profit Bodies,Communities Group,BLACK COMMUNITY FORUM LTD(DO NOT US,2100193780,"16,744.00"
Communities & Local Government,DCLG,05/08/2010,Current Grants to Non Profit Bodies,Communities Group,BLACK COMMUNITY FORUM LTD(DO NOT US,2300000802,"-16,744.00"
Communities & Local Government,DCLG,05/08/2010,Current Grants to Non Profit Bodies,Communities Group,PARTNERS FOR JOBS (IN RECEIVERSHIP),2100193779,"73,553.00"
Communities & Local Government,DCLG,05/08/2010,Current Grants to Non Profit Bodies,Communities Group,PARTNERS FOR JOBS (IN RECEIVERSHIP),2300000588,"-73,553.00"
Communities & Local Government,DCLG,05/08/2010,Current Grants to Non Profit Bodies,Communities Group,GROUNDWORK TRUST,2100193782,"9,152.00"
Communities & Local Government,DCLG,05/08/2010,Current Grants to Non Profit Bodies,Communities Group,GROUNDWORK TRUST,2100193783,"5,129.00"
Communities & Local Government,DCLG,05/08/2010,Current Grants to Non Profit Bodies,Communities Group,GROUNDWORK TRUST,2300001019,"-9,152.00"
Communities & Local Government,DCLG,05/08/2010,Current Grants to Non Profit Bodies,Communities Group,GROUNDWORK TRUST,2300001020,"-5,129.00"
Communities & Local Government,DCLG,05/08/2010,EC Current Grants to Local Authorities,Regions and Communities,DUDLEY MBC,7500027720,"-36,911.93"
Communities & Local Government,DCLG,05/08/2010,EC Current Grants to Local Authorities,Regions and Communities,DUDLEY MBC,7500029121,"36,911.93"
Communities & Local Government,DCLG,05/08/2010,EC Current Grants to Local Authorities,Communities Group,DUDLEY MBC,7500027600,"-2,923.98"
Communities & Local Government,DCLG,05/08/2010,EC Current Grants to Local Authorities,Communities Group,DUDLEY MBC,7500029117,"2,923.98"
Communities & Local Government,DCLG,05/08/2010,EC Current Grants to Local Authorities,Communities Group,HEREFORDSHIRE COUNCIL,7500027969,"-6,285.00"
Communities & Local Government,DCLG,05/08/2010,EC Current Grants to Local Authorities,Communities Group,HEREFORDSHIRE COUNCIL,7500027987,"-4,633.00"
Communities & Local Government,DCLG,05/08/2010,EC Current Grants to Local Authorities,Communities Group,HEREFORDSHIRE COUNCIL,7500027989,"-8,382.00"
Communities & Local Government,DCLG,05/08/2010,EC Current Grants to Local Authorities,Communities Group,HEREFORDSHIRE COUNCIL,7500027993,"-10,808.00"
Communities & Local Government,DCLG,05/08/2010,EC Current Grants to Local Authorities,Communities Group,HEREFORDSHIRE COUNCIL,7500028011,"-29,478.00"
Communities & Local Government,DCLG,05/08/2010,EC Current Grants to Local Authorities,Communities Group,HEREFORDSHIRE COUNCIL,7500029125,"6,285.00"
Communities & Local Government,DCLG,05/08/2010,EC Current Grants to Local Authorities,Communities Group,HEREFORDSHIRE COUNCIL,7500029134,"4,633.00"
Communities & Local Government,DCLG,05/08/2010,EC Current Grants to Local Authorities,Communities Group,HEREFORDSHIRE COUNCIL,7500029135,"8,382.00"
Communities & Local Government,DCLG,05/08/2010,EC Current Grants to Local Authorities,Communities Group,HEREFORDSHIRE COUNCIL,7500029137,"10,808.00"
Communities & Local Government,DCLG,05/08/2010,EC Current Grants to Local Authorities,Communities Group,HEREFORDSHIRE COUNCIL,7500029146,"29,478.00"
Communities & Local Government,DCLG,05/08/2010,EC Current Grants to Local Authorities,Communities Group,SANDWELL MBC,7500021759,"-34,633.00"
Communities & Local Government,DCLG,05/08/2010,EC Current Grants to Local Authorities,Communities Group,SANDWELL MBC,7500029088,"34,633.00"
Communities & Local Government,DCLG,05/08/2010,EC Current Grants to Local Authorities,Communities Group,LEICESTER CITY COUNCIL,7500026939,"-43,364.00"
Communities & Local Government,DCLG,05/08/2010,EC Current Grants to Local Authorities,Communities Group,LEICESTER CITY COUNCIL,7500029098,"43,364.00"
Communities & Local Government,DCLG,05/08/2010,EC Current Grants to Local Authorities,Communities Group,WAKEFIELD MDC,7500014631,"-15,864.04"
Communities & Local Government,DCLG,05/08/2010,EC Current Grants to Local Authorities,Communities Group,WAKEFIELD MDC,7500029080,"15,864.04"
Communities & Local Government,DCLG,05/08/2010,Printing,Housing and Planning,FORMARA LTD,5106142900,"2,058.58"
Communities & Local Government,DCLG,05/08/2010,Printing,Communities Group,FORMARA LTD,5106142900,246.12
Communities & Local Government,DCLG,05/08/2010,Publications,Finance and Corporate Services,JUSTIS PUBLISHING  LTD,5106142911,"5,379.15"
Communities & Local Government,DCLG,05/08/2010,Rates,Finance and Corporate Services,STEVENAGE BOROUGH COUNCIL,5106143016,"1,873.00"
Communities & Local Government,DCLG,05/08/2010,Research,Housing and Planning,BUILDING RESEARCH ESTABLISHMENT,5106142960,"32,394.75"
Communities & Local Government,DCLG,05/08/2010,Research,Communities Group,FIRE SERVICE COLLEGE,5106139149,"49,966.80"
Communities & Local Government,DCLG,05/08/2010,Research,Communities Group,FIRE SERVICE COLLEGE,5106142850,"6,360.00"
Communities & Local Government,DCLG,05/08/2010,Research,"Local Gov & Reg(LG DEL,AME, RfR2)",MEDIA TRUST,5106142541,"88,125.00"
Communities & Local Government,DCLG,05/08/2010,Research,"Local Gov & Reg(LG DEL,AME, RfR2)",CHANCELLOR MASTERS & SCHOLARS,5106142895,"18,868.00"
Communities & Local Government,DCLG,05/08/2010,Software Licences,Housing and Planning,SIFT LTD,5106142964,"1,762.50"
Communities & Local Government,DCLG,05/08/2010,Training,Housing and Planning,REED LEARNING PLC,5106142439,870.00
Communities & Local Government,DCLG,05/08/2010,Training,Finance and Corporate Services,STRATEGIC TECHNOLOGY INIT LTD,5106142912,"1,390.00"
Communities & Local Government,DCLG,05/08/2010,Vehicle hire,Housing and Planning,CYCLONE COURIER CO LTD,5106142954,"1,422.06"
Communities & Local Government,DCLG,05/08/2010,Capital Grant from EC to Local Authority DEL,Regions and Communities,ENFIELD ARTS PARTNERSHIP LTD,7500020947,"-65,181.33"
Communities & Local Government,DCLG,05/08/2010,Capital Grant from EC to Local Authority DEL,Regions and Communities,ENFIELD ARTS PARTNERSHIP LTD,7500029086,"65,181.33"
Communities & Local Government,DCLG,05/08/2010,Capital Grant from EC to Local Authority DEL,Communities Group,DUDLEY MBC,7500027598,"-66,573.08"
Communities & Local Government,DCLG,05/08/2010,Capital Grant from EC to Local Authority DEL,Communities Group,DUDLEY MBC,7500029116,"66,573.08"
Communities & Local Government,DCLG,05/08/2010,Capital Grant from EC to Local Authority DEL,Communities Group,BIRMINGHAM CITY COUNCIL,7500000146,"-2,470,082.09"
Communities & Local Government,DCLG,05/08/2010,Capital Grant from EC to Local Authority DEL,Communities Group,BIRMINGHAM CITY COUNCIL,7500000336,"-12,187.92"
Communities & Local Government,DCLG,05/08/2010,Capital Grant from EC to Local Authority DEL,Communities Group,BIRMINGHAM CITY COUNCIL,7500015216,"-1,997,876.75"
Communities & Local Government,DCLG,05/08/2010,Capital Grant from EC to Local Authority DEL,Communities Group,BIRMINGHAM CITY COUNCIL,7500029148,"2,470,082.09"
Communities & Local Government,DCLG,05/08/2010,Capital Grant from EC to Local Authority DEL,Communities Group,BIRMINGHAM CITY COUNCIL,7500029149,"12,187.92"
Communities & Local Government,DCLG,05/08/2010,Capital Grant from EC to Local Authority DEL,Communities Group,BIRMINGHAM CITY COUNCIL,7500029150,"1,997,876.75"
Communities & Local Government,DCLG,05/08/2010,Capital Grant from EC to Local Authority DEL,Communities Group,HEREFORDSHIRE COUNCIL,7500027979,-517.00
Communities & Local Government,DCLG,05/08/2010,Capital Grant from EC to Local Authority DEL,Communities Group,HEREFORDSHIRE COUNCIL,7500027981,-776.00
Communities & Local Government,DCLG,05/08/2010,Capital Grant from EC to Local Authority DEL,Communities Group,HEREFORDSHIRE COUNCIL,7500027983,"-1,753.00"
Communities & Local Government,DCLG,05/08/2010,Capital Grant from EC to Local Authority DEL,Communities Group,HEREFORDSHIRE COUNCIL,7500027985,-640.00
Communities & Local Government,DCLG,05/08/2010,Capital Grant from EC to Local Authority DEL,Communities Group,HEREFORDSHIRE COUNCIL,7500028009,"-86,290.00"
Communities & Local Government,DCLG,05/08/2010,Capital Grant from EC to Local Authority DEL,Communities Group,HEREFORDSHIRE COUNCIL,7500029130,517.00
Communities & Local Government,DCLG,05/08/2010,Capital Grant from EC to Local Authority DEL,Communities Group,HEREFORDSHIRE COUNCIL,7500029131,776.00
Communities & Local Government,DCLG,05/08/2010,Capital Grant from EC to Local Authority DEL,Communities Group,HEREFORDSHIRE COUNCIL,7500029132,"1,753.00"
Communities & Local Government,DCLG,05/08/2010,Capital Grant from EC to Local Authority DEL,Communities Group,HEREFORDSHIRE COUNCIL,7500029133,640.00
Communities & Local Government,DCLG,05/08/2010,Capital Grant from EC to Local Authority DEL,Communities Group,HEREFORDSHIRE COUNCIL,7500029145,"86,290.00"
Communities & Local Government,DCLG,05/08/2010,Capital Grant from EC to Local Authority DEL,Communities Group,WALSALL MBC,7500019909,"-4,973.00"
Communities & Local Government,DCLG,05/08/2010,Capital Grant from EC to Local Authority DEL,Communities Group,WALSALL MBC,7500029085,"4,973.00"
Communities & Local Government,DCLG,05/08/2010,Electricity,Finance and Corporate Services,EDF ENERGY 1 LIMITED,5106143006,"39,076.46"
Communities & Local Government,DCLG,05/08/2010,Web Services,Housing and Planning,TECHNOPHOBIA LIMITED,2100193771,"-71,223.13"
Communities & Local Government,DCLG,05/08/2010,Web Services,Housing and Planning,TECHNOPHOBIA LIMITED,5106137889,"71,223.13"
Communities & Local Government,DCLG,05/08/2010,EU Cur Grnt to Priv Sect-Persons & NPISH,Regions and Communities,BRADFORD CHAM COMMERCE & INDUSTRY,7500026947,"-2,284.28"
Communities & Local Government,DCLG,05/08/2010,EU Cur Grnt to Priv Sect-Persons & NPISH,Regions and Communities,BRADFORD CHAM COMMERCE & INDUSTRY,7500029099,"2,284.28"
Communities & Local Government,DCLG,05/08/2010,EU Cur Grnt to Priv Sect-Persons & NPISH,Regions and Communities,ENGINEERING FORUM LTD,7500026251,"-6,531.51"
Communities & Local Government,DCLG,05/08/2010,EU Cur Grnt to Priv Sect-Persons & NPISH,Regions and Communities,ENGINEERING FORUM LTD,7500029096,"6,531.51"
Communities & Local Government,DCLG,05/08/2010,EU Cur Grnt to Priv Sect-Persons & NPISH,Regions and Communities,HULL LOCAL LABOUR INITIATIVE LTD,7500027397,"-110,016.00"
Communities & Local Government,DCLG,05/08/2010,EU Cur Grnt to Priv Sect-Persons & NPISH,Regions and Communities,HULL LOCAL LABOUR INITIATIVE LTD,7500029112,"110,016.00"
Communities & Local Government,DCLG,05/08/2010,EU Cur Grnt to Priv Sect-Persons & NPISH,Regions and Communities,IMBY,7500019373,"-1,039.15"
Communities & Local Government,DCLG,05/08/2010,EU Cur Grnt to Priv Sect-Persons & NPISH,Regions and Communities,IMBY,7500029082,"1,039.15"
Communities & Local Government,DCLG,05/08/2010,EU Cur Grnt to Priv Sect-Persons & NPISH,Regions and Communities,BISHOPS CASTLE & DISTRICT LIFELINE,7500017789,"-3,943.41"
Communities & Local Government,DCLG,05/08/2010,EU Cur Grnt to Priv Sect-Persons & NPISH,Regions and Communities,BISHOPS CASTLE & DISTRICT LIFELINE,7500029081,"3,943.41"
Communities & Local Government,DCLG,05/08/2010,EU Cur Grnt to Priv Sect-Persons & NPISH,Regions and Communities,DEVELOPMENTS & RESEARCH INITIATIVES,7500000255,"-63,730.02"
Communities & Local Government,DCLG,05/08/2010,EU Cur Grnt to Priv Sect-Persons & NPISH,Regions and Communities,DEVELOPMENTS & RESEARCH INITIATIVES,7500029078,"63,730.02"
Communities & Local Government,DCLG,05/08/2010,EU Cur Grnt to Priv Sect-Persons & NPISH,Regions and Communities,REGEN SCHOOL NORTH EAST,7500025811,"-48,000.00"
Communities & Local Government,DCLG,05/08/2010,EU Cur Grnt to Priv Sect-Persons & NPISH,Regions and Communities,REGEN SCHOOL NORTH EAST,7500029152,"48,000.00"
Communities & Local Government,DCLG,05/08/2010,EU Cur Grnt to Priv Sect-Persons & NPISH,Regions and Communities,SPECIAL METALS INFO GROUP LTD,7500027337,"-58,397.00"
Communities & Local Government,DCLG,05/08/2010,EU Cur Grnt to Priv Sect-Persons & NPISH,Regions and Communities,SPECIAL METALS INFO GROUP LTD,7500029104,"58,397.00"
Communities & Local Government,DCLG,05/08/2010,EU Cur Grnt to Priv Sect-Persons & NPISH,Communities Group,BLACK COMMUNITY FORUM LTD(DO NOT US,7500027349,"-16,744.00"
Communities & Local Government,DCLG,05/08/2010,EU Cur Grnt to Priv Sect-Persons & NPISH,Communities Group,BLACK COMMUNITY FORUM LTD(DO NOT US,7500029106,"16,744.00"
Communities & Local Government,DCLG,05/08/2010,EU Cur Grnt to Priv Sect-Persons & NPISH,Communities Group,BRIDLINGTON COMMUNITY PSHIP LTD,7500027335,"-35,912.51"
Communities & Local Government,DCLG,05/08/2010,EU Cur Grnt to Priv Sect-Persons & NPISH,Communities Group,BRIDLINGTON COMMUNITY PSHIP LTD,7500029103,"35,912.51"
Communities & Local Government,DCLG,05/08/2010,EU Cur Grnt to Priv Sect-Persons & NPISH,Communities Group,BURNGREAVE COM ACTION TRUST,7500027341,"-231,340.00"
Communities & Local Government,DCLG,05/08/2010,EU Cur Grnt to Priv Sect-Persons & NPISH,Communities Group,BURNGREAVE COM ACTION TRUST,7500029105,"231,340.00"
Communities & Local Government,DCLG,05/08/2010,EU Cur Grnt to Priv Sect-Persons & NPISH,Communities Group,CICERO,7500027401,"-1,708.50"
Communities & Local Government,DCLG,05/08/2010,EU Cur Grnt to Priv Sect-Persons & NPISH,Communities Group,CICERO,7500029113,"1,708.50"
Communities & Local Government,DCLG,05/08/2010,EU Cur Grnt to Priv Sect-Persons & NPISH,Communities Group,HULL LOCAL LABOUR INITIATIVE LTD,7500027391,"-45,975.00"
Communities & Local Government,DCLG,05/08/2010,EU Cur Grnt to Priv Sect-Persons & NPISH,Communities Group,HULL LOCAL LABOUR INITIATIVE LTD,7500027395,"-83,079.00"
Communities & Local Government,DCLG,05/08/2010,EU Cur Grnt to Priv Sect-Persons & NPISH,Communities Group,HULL LOCAL LABOUR INITIATIVE LTD,7500027403,"-42,544.00"
Communities & Local Government,DCLG,05/08/2010,EU Cur Grnt to Priv Sect-Persons & NPISH,Communities Group,HULL LOCAL LABOUR INITIATIVE LTD,7500029109,"45,975.00"
Communities & Local Government,DCLG,05/08/2010,EU Cur Grnt to Priv Sect-Persons & NPISH,Communities Group,HULL LOCAL LABOUR INITIATIVE LTD,7500029111,"83,079.00"
Communities & Local Government,DCLG,05/08/2010,EU Cur Grnt to Priv Sect-Persons & NPISH,Communities Group,HULL LOCAL LABOUR INITIATIVE LTD,7500029114,"42,544.00"
Communities & Local Government,DCLG,05/08/2010,EU Cur Grnt to Priv Sect-Persons & NPISH,Communities Group,L A L C A,7500021025,"-114,997.00"
Communities & Local Government,DCLG,05/08/2010,EU Cur Grnt to Priv Sect-Persons & NPISH,Communities Group,L A L C A,7500029087,"114,997.00"
Communities & Local Government,DCLG,05/08/2010,EU Cur Grnt to Priv Sect-Persons & NPISH,Communities Group,TRAINING FOR ALL FOUNDATION,7500019845,"-1,253.00"
Communities & Local Government,DCLG,05/08/2010,EU Cur Grnt to Priv Sect-Persons & NPISH,Communities Group,TRAINING FOR ALL FOUNDATION,7500029084,"1,253.00"
Communities & Local Government,DCLG,05/08/2010,EU Cur Grnt to Priv Sect-Persons & NPISH,Communities Group,MEDIAC LTD,7500001388,"-245,203.16"
Communities & Local Government,DCLG,05/08/2010,EU Cur Grnt to Priv Sect-Persons & NPISH,Communities Group,MEDIAC LTD,7500029079,"245,203.16"
Communities & Local Government,DCLG,05/08/2010,EU Cur Grnt to Priv Sect-Persons & NPISH,Communities Group,KARIMIA INSTITUTE,2100193784,"5,813.20"
Communities & Local Government,DCLG,05/08/2010,EU Cur Grnt to Priv Sect-Persons & NPISH,Communities Group,KARIMIA INSTITUTE,2300001404,"-5,813.20"
Communities & Local Government,DCLG,05/08/2010,EU Cur Grnt to Priv Sect-Persons & NPISH,Communities Group,BRADFORD INTERNATIONAL FESTIVAL,7500027405,"-217,666.00"
Communities & Local Government,DCLG,05/08/2010,EU Cur Grnt to Priv Sect-Persons & NPISH,Communities Group,BRADFORD INTERNATIONAL FESTIVAL,7500029151,"217,666.00"
Communities & Local Government,DCLG,05/08/2010,EU Cur Grnt to Priv Sect-Persons & NPISH,Communities Group,ST PETERS CHILDCARE LTD,7500027103,"-20,467.60"
Communities & Local Government,DCLG,05/08/2010,EU Cur Grnt to Priv Sect-Persons & NPISH,Communities Group,ST PETERS CHILDCARE LTD,7500029102,"20,467.60"
Communities & Local Government,DCLG,05/08/2010,EU Cur Grnt to Priv Sect-Persons & NPISH,Communities Group,LEEDS MEDIA CENTRE LTD,7500021797,"-174,844.85"
Communities & Local Government,DCLG,05/08/2010,EU Cur Grnt to Priv Sect-Persons & NPISH,Communities Group,LEEDS MEDIA CENTRE LTD,7500029089,"174,844.85"
Communities & Local Government,DCLG,05/08/2010,EU Cur Grnt to Priv Sect-Persons & NPISH,Communities Group,LEEDS EMPLOYMENT INITIATIVE,7500027379,"-87,121.00"
Communities & Local Government,DCLG,05/08/2010,EU Cur Grnt to Priv Sect-Persons & NPISH,Communities Group,LEEDS EMPLOYMENT INITIATIVE,7500029107,"87,121.00"
Communities & Local Government,DCLG,05/08/2010,EU Gts (Cap) to Prvt/Sec Persons & NPISH,Regions and Communities,TOUCHSTONE COMMUNITY DEVELOPMENT,7500026461,"-21,867.10"
Communities & Local Government,DCLG,05/08/2010,EU Gts (Cap) to Prvt/Sec Persons & NPISH,Regions and Communities,TOUCHSTONE COMMUNITY DEVELOPMENT,7500029097,"21,867.10"
Communities & Local Government,DCLG,05/08/2010,EU Gts (Cap) to Prvt/Sec Persons & NPISH,Regions and Communities,DIVERSITY EAST LONDON LTD,7500022251,"-16,412.50"
Communities & Local Government,DCLG,05/08/2010,EU Gts (Cap) to Prvt/Sec Persons & NPISH,Regions and Communities,DIVERSITY EAST LONDON LTD,7500029091,"16,412.50"
Communities & Local Government,DCLG,05/08/2010,EU Gts (Cap) to Prvt/Sec Persons & NPISH,Regions and Communities,MUATH TRUST,7500024707,"-165,859.77"
Communities & Local Government,DCLG,05/08/2010,EU Gts (Cap) to Prvt/Sec Persons & NPISH,Regions and Communities,MUATH TRUST,7500029093,"165,859.77"
Communities & Local Government,DCLG,05/08/2010,EU Gts (Cap) to Prvt/Sec Persons & NPISH,Regions and Communities,SCREEN EAST (CORE BPA),7500028208,"-367,882.02"
Communities & Local Government,DCLG,05/08/2010,EU Gts (Cap) to Prvt/Sec Persons & NPISH,Regions and Communities,SCREEN EAST (CORE BPA),7500029122,"367,882.02"
Communities & Local Government,DCLG,05/08/2010,EU Gts (Cap) to Prvt/Sec Persons & NPISH,Communities Group,HULL LOCAL LABOUR INITIATIVE LTD,7500027389,-996.00
Communities & Local Government,DCLG,05/08/2010,EU Gts (Cap) to Prvt/Sec Persons & NPISH,Communities Group,HULL LOCAL LABOUR INITIATIVE LTD,7500027393,"-162,305.00"
Communities & Local Government,DCLG,05/08/2010,EU Gts (Cap) to Prvt/Sec Persons & NPISH,Communities Group,HULL LOCAL LABOUR INITIATIVE LTD,7500029108,996.00
Communities & Local Government,DCLG,05/08/2010,EU Gts (Cap) to Prvt/Sec Persons & NPISH,Communities Group,HULL LOCAL LABOUR INITIATIVE LTD,7500029110,"162,305.00"
Communities & Local Government,DCLG,05/08/2010,EU Gts (Cap) to Prvt/Sec Persons & NPISH,Communities Group,TRAINING FOR ALL FOUNDATION,7500019843,"-73,008.00"
Communities & Local Government,DCLG,05/08/2010,EU Gts (Cap) to Prvt/Sec Persons & NPISH,Communities Group,TRAINING FOR ALL FOUNDATION,7500029083,"73,008.00"
Communities & Local Government,DCLG,05/08/2010,EU Gts (Cap) to Prvt/Sec Persons & NPISH,Communities Group,CALDERDALE MBC,7500028690,"-24,528.72"
Communities & Local Government,DCLG,05/08/2010,EU Gts (Cap) to Prvt/Sec Persons & NPISH,Communities Group,CALDERDALE MBC,7500029123,"24,528.72"
Communities & Local Government,DCLG,05/08/2010,EU Gts (Cap) to Prvt/Sec Persons & NPISH,Communities Group,ENNERDALE DEVELOPMENTS LTD,7500026971,"-921,241.16"
Communities & Local Government,DCLG,05/08/2010,EU Gts (Cap) to Prvt/Sec Persons & NPISH,Communities Group,ENNERDALE DEVELOPMENTS LTD,7500029100,"921,241.16"
Communities & Local Government,DCLG,05/08/2010,EU Gts (Cap) to Prvt/Sec Persons & NPISH,Communities Group,SOLID ROCK YOUTH PROJECT,7500022604,"-1,708.71"
Communities & Local Government,DCLG,05/08/2010,EU Gts (Cap) to Prvt/Sec Persons & NPISH,Communities Group,SOLID ROCK YOUTH PROJECT,7500029092,"1,708.71"
Communities & Local Government,DCLG,05/08/2010,EU Gts (Cap) to Prvt/Sec Persons & NPISH,Communities Group,TEESIDE PLAY & EDUC RESOURCE CTRE,7500027099,"-45,433.00"
Communities & Local Government,DCLG,05/08/2010,EU Gts (Cap) to Prvt/Sec Persons & NPISH,Communities Group,TEESIDE PLAY & EDUC RESOURCE CTRE,7500029101,"45,433.00"
Communities & Local Government,DCLG,05/08/2010,Steady State Service Provision,Communities Group,EADS DEFENCE & SECURITY SYSTEMS LTD,5106142742,"1,354.99"
Communities & Local Government,DCLG,05/08/2010,Steady State Service Provision,Communities Group,EADS DEFENCE & SECURITY SYSTEMS LTD,5106142744,"2,709.98"
Communities & Local Government,DCLG,05/08/2010,Steady State Service Provision,Communities Group,EADS DEFENCE & SECURITY SYSTEMS LTD,5106142870,"68,122.89"
Communities & Local Government,DCLG,05/08/2010,Steady State Service Provision,Communities Group,G W S LTD,5106142966,"10,919.82"
Communities & Local Government,DCLG,05/08/2010,IT Consultancy,Finance and Corporate Services,METHODS CONSULTING LTD,5106142914,"36,965.50"
Communities & Local Government,DCLG,05/08/2010,IT Consultancy,Finance and Corporate Services,METHODS CONSULTING LTD,5106142918,"36,965.50"
Communities & Local Government,DCLG,05/08/2010,HR Consultancy,Human Resources,DEPT FOR BUS INN (USE 300426),5106142940,"16,000.00"
Communities & Local Government,DCLG,05/08/2010,Legal Consultancy,Communities Group,DENTON WILDE SAPTE LLP,5106142818,"2,973.04"
Communities & Local Government,DCLG,05/08/2010,Legal Consultancy,Communities Group,DENTON WILDE SAPTE LLP,5106142899,"3,803.89"
Communities & Local Government,DCLG,06/08/2010,Agency Staff,Finance and Corporate Services,SBS GROUP (UK) LTD,5106143107,"15,277.35"
Communities & Local Government,DCLG,06/08/2010,Agency Staff,Finance and Corporate Services,VENN GROUP,5106143064,"1,426.45"
Communities & Local Government,DCLG,06/08/2010,Agency Staff,Finance and Corporate Services,VENN GROUP,5106143065,"1,081.09"
Communities & Local Government,DCLG,06/08/2010,Agency Staff,Finance and Corporate Services,VENN GROUP,5106143115,"1,699.58"
Communities & Local Government,DCLG,06/08/2010,Agency Staff,Finance and Corporate Services,SAND RESOURCES LTD,5106143084,"7,490.25"
Communities & Local Government,DCLG,06/08/2010,Agency Staff,Communities Group,BROOK STREET BUREAU,5106143141,"1,448.31"
Communities & Local Government,DCLG,06/08/2010,Agency Staff,Communities Group,TURNER & TOWNSEND,5106143147,824.48
Communities & Local Government,DCLG,06/08/2010,IT Maintenance,Housing and Planning,LA INT COMPUTER CONSULTANTS LTD,5106141748,"10,955.21"
Communities & Local Government,DCLG,06/08/2010,IT Maintenance,Housing and Planning,LA INT COMPUTER CONSULTANTS LTD,5106141776,"14,867.78"
Communities & Local Government,DCLG,06/08/2010,Travel and Subsistence Account,Communities Group,GOVERNMENT CAR & DESPATCH AGENCY,5106141340,"5,746.93"
Communities & Local Government,DCLG,06/08/2010,Travel and Subsistence Account,Human Resources,DECC,5106143172,"1,158.59"
Communities & Local Government,DCLG,06/08/2010,Current Grants to Non Profit Bodies,Communities Group,INFORM,2100193787,"70,000.00"
Communities & Local Government,DCLG,06/08/2010,Grant in Aid NDPB's,"Local Gov & Reg(LG DEL,AME, RfR2)",COMMISSION LOCAL ADMINISTRATION,2600061669,"1,235,615.00"
Communities & Local Government,DCLG,06/08/2010,Professional services,Human Resources,LOGICA (CMG UK LTD),5106142923,"14,883.63"
Communities & Local Government,DCLG,06/08/2010,Professional services,Human Resources,LOGICA (CMG UK LTD),5106142958,"1,140.64"
Communities & Local Government,DCLG,06/08/2010,Publications,Housing and Planning,TEMPO GRAPHIC DESIGN LTD,5106139384,"1,921.13"
Communities & Local Government,DCLG,06/08/2010,Research,Housing and Planning,BUILDING RESEARCH ESTABLISHMENT,5106141211,"6,337.26"
Communities & Local Government,DCLG,06/08/2010,Research,Finance and Corporate Services,DEPT FOR TRANSPORT,5106143131,"356,094.05"
Communities & Local Government,DCLG,06/08/2010,Research,Communities Group,GREENSTREET BERMAN LTD,5106142545,"45,311.13"
Communities & Local Government,DCLG,06/08/2010,Research,Communities Group,EMPLOYMENT RESEARCH & CONSULTING,5106143166,"25,344.46"
Communities & Local Government,DCLG,06/08/2010,Research,"Local Gov & Reg(LG DEL,AME, RfR2)",AMION CONSULTING,5106142952,"4,551.34"
Communities & Local Government,DCLG,06/08/2010,Research,"Local Gov & Reg(LG DEL,AME, RfR2)",PRICEWATERHOUSECOOPERS,5106143121,"58,346.00"
Communities & Local Government,DCLG,06/08/2010,Software Licences,Finance and Corporate Services,PROCSERVE SHARED SERVICES LTD,5106143135,"8,111.91"
Communities & Local Government,DCLG,06/08/2010,Unplanned Delivery Costs,Finance and Corporate Services,HARROW GREEN REMOVALS GROUP,5106143119,"5,125.00"
Communities & Local Government,DCLG,06/08/2010,Vehicle hire,Housing and Planning,CYCLONE COURIER CO LTD,5106143077,962.62
Communities & Local Government,DCLG,06/08/2010,Telephone call costs,Communities Group,B T PAYMENT SERVICES LTD,5106141913,"2,059.66"
Communities & Local Government,DCLG,06/08/2010,Electricity,Finance and Corporate Services,EDF ENERGY 1 LIMITED,5106142848,"1,070.19"
Communities & Local Government,DCLG,06/08/2010,Web Services,Housing and Planning,TECHNOPHOBIA LIMITED,5106143061,"71,223.13"
Communities & Local Government,DCLG,06/08/2010,Services provided by other Govt Orgs,Housing and Planning,VALUATION OFFICE AGENCY,5106143111,"61,969.00"
Communities & Local Government,DCLG,06/08/2010,Steady State Service Provision,Housing and Planning,I B M UK LTD,5106143051,"156,497.08"
Communities & Local Government,DCLG,06/08/2010,Steady State Service Provision,Housing and Planning,I B M UK LTD,5106143162,"241,712.78"
Communities & Local Government,DCLG,06/08/2010,Steady State Service Provision,Housing and Planning,I B M UK LTD,5106143164,"7,367.25"
Communities & Local Government,DCLG,06/08/2010,Steady State Service Provision,Communities Group,AIRWAVE SOLUTIONS LTD,5106143049,"87,293.00"
Communities & Local Government,DCLG,06/08/2010,Management Consultancy,Communities Group,ACTICA CONSULTING LTD,5106143127,"13,570.00"
Communities & Local Government,DCLG,06/08/2010,Management Consultancy,Communities Group,ACTICA CONSULTING LTD,5106143133,"16,870.80"
Communities & Local Government,DCLG,06/08/2010,Transport Consultancy,Housing and Planning,FOOT ANSTEY SARGENT,5106142684,"1,075.71"
Communities & Local Government,DCLG,06/08/2010,Property/Estates Consultancy,Communities Group,TURNER & TOWNSEND,5106143139,"15,240.00"
Communities & Local Government,DCLG,09/08/2010,Agency Staff,Housing and Planning,METHODS CONSULTING LTD,5106142579,"7,032.38"
Communities & Local Government,DCLG,09/08/2010,Agency Staff,Regions and Communities,CAPITA RESOURCING LTD,5106143267,"1,022.25"
Communities & Local Government,DCLG,09/08/2010,Agency Staff,Regions and Communities,CAPITA RESOURCING LTD,5106143277,"1,022.25"
Communities & Local Government,DCLG,09/08/2010,Agency Staff,Regions and Communities,CAPITA RESOURCING LTD,5106143281,"1,022.25"
Communities & Local Government,DCLG,09/08/2010,Agency Staff,Finance and Corporate Services,BADENOCH & CLARK,5106143205,"1,427.63"
Communities & Local Government,DCLG,09/08/2010,Agency Staff,Finance and Corporate Services,METHODS CONSULTING LTD,5106142575,"5,181.75"
Communities & Local Government,DCLG,09/08/2010,Agency Staff,Finance and Corporate Services,METHODS CONSULTING LTD,5106142577,"2,961.00"
Communities & Local Government,DCLG,09/08/2010,Agency Staff,Finance and Corporate Services,VENN GROUP,5106143286,763.46
Communities & Local Government,DCLG,09/08/2010,Agency Staff,Finance and Corporate Services,ALPINE RESOURCING LTD,5106143316,"6,807.95"
Communities & Local Government,DCLG,09/08/2010,Agency Staff,Finance and Corporate Services,CAPITA RESOURCING LTD,5106143208,"12,522.56"
Communities & Local Government,DCLG,09/08/2010,Agency Staff,Finance and Corporate Services,CAPITA RESOURCING LTD,5106143247,"10,861.47"
Communities & Local Government,DCLG,09/08/2010,Agency Staff,Finance and Corporate Services,CAPITA RESOURCING LTD,5106143253,"2,411.10"
Communities & Local Government,DCLG,09/08/2010,Agency Staff,Finance and Corporate Services,CAPITA RESOURCING LTD,5106143259,"2,731.29"
Communities & Local Government,DCLG,09/08/2010,Agency Staff,Finance and Corporate Services,CAPITA RESOURCING LTD,5106143273,"9,424.97"
Communities & Local Government,DCLG,09/08/2010,Agency Staff,Finance and Corporate Services,CAPITA RESOURCING LTD,5106143279,"4,864.50"
Communities & Local Government,DCLG,09/08/2010,Agency Staff,Finance and Corporate Services,CAPITA RESOURCING LTD,5106143283,"20,795.74"
Communities & Local Government,DCLG,09/08/2010,Agency Staff,Finance and Corporate Services,CAPITA RESOURCING LTD,5106143306,"7,296.75"
Communities & Local Government,DCLG,09/08/2010,Agency Staff,Finance and Corporate Services,ALLEN LANE FINANCIAL RECRUITMENT,5106143174,"3,172.50"
Communities & Local Government,DCLG,09/08/2010,Agency Staff,"Local Gov & Reg(LG DEL,AME, RfR2)",CAPITA RESOURCING LTD,5106143262,"2,679.00"
Communities & Local Government,DCLG,09/08/2010,Agency Staff,Human Resources,CAPITA RESOURCING LTD,5106143288,"3,194.53"
Communities & Local Government,DCLG,09/08/2010,Catering,Communities Group,COMPASS SERVICES UK LTD,5106143244,562.00
Communities & Local Government,DCLG,09/08/2010,Hospitalty,Housing and Planning,MITIE CATERING SERVICES LTD,2100193829,"2,316.87"
Communities & Local Government,DCLG,09/08/2010,Fixed Maintenance,Communities Group,FLAGSHIP TRAINING LIMITED,5106143149,"35,447.44"
Communities & Local Government,DCLG,09/08/2010,Fixed Maintenance,Communities Group,FLAGSHIP TRAINING LIMITED,5106143152,"37,004.44"
Communities & Local Government,DCLG,09/08/2010,Fixed Maintenance,Communities Group,FLAGSHIP TRAINING LIMITED,5106143155,"36,344.44"
Communities & Local Government,DCLG,09/08/2010,Fixed Maintenance,Communities Group,FLAGSHIP TRAINING LIMITED,5106143158,"32,562.44"
Communities & Local Government,DCLG,09/08/2010,Fixed Maintenance,Communities Group,FLAGSHIP TRAINING LIMITED,5106143160,"35,241.44"
Communities & Local Government,DCLG,09/08/2010,Fixed Maintenance,Communities Group,FLAGSHIP TRAINING LIMITED,5106143170,"36,067.44"
Communities & Local Government,DCLG,09/08/2010,Fixed Maintenance,Communities Group,BABCOCK CRITICAL SERVICES LTD,2100193874,"-208,892.90"
Communities & Local Government,DCLG,09/08/2010,Fixed Maintenance,Communities Group,BABCOCK CRITICAL SERVICES LTD,5106140496,"208,892.90"
Communities & Local Government,DCLG,09/08/2010,Travel and Subsistence Account,"Local Gov & Reg(LG DEL,AME, RfR2)",BROOKLEIGH CONSULTING LTD,5106143269,"2,511.81"
Communities & Local Government,DCLG,09/08/2010,Office Machinery Rental,Communities Group,DANWOOD GROUP LTD,5106143271,461.60
Communities & Local Government,DCLG,09/08/2010,Office Machinery Rental,Communities Group,DANWOOD FINANCE LIMITED,5106143275,461.60
Communities & Local Government,DCLG,09/08/2010,Current Grants to Non Profit Bodies,Housing and Planning,ASPIRE FOUNDATION,5000136333,"29,650.00"
Communities & Local Government,DCLG,09/08/2010,Current Grants to Non Profit Bodies,Housing and Planning,CITIZENS ADVICE,5000136334,"146,293.00"
Communities & Local Government,DCLG,09/08/2010,Current Grants to Non Profit Bodies,Housing and Planning,ELDERLY ACCOMMODATION COUNSEL,5000136335,"262,500.00"
Communities & Local Government,DCLG,09/08/2010,Current Grants to Non Profit Bodies,Housing and Planning,LOOK AHEAD HOUSING & CARE LTD,5000136336,"271,000.00"
Communities & Local Government,DCLG,09/08/2010,Grant in Aid NDPB's,"Local Gov & Reg(LG DEL,AME, RfR2)",STANDARDS BOARD FOR ENGLAND,2600061670,"967,000.00"
Communities & Local Government,DCLG,09/08/2010,IT Consumables,Communities Group,BANNER BUSINESS SUPPLIES LTD,5106143188,598.78
Communities & Local Government,DCLG,09/08/2010,Technical Aids for the disabled,Communities Group,BANNER BUSINESS SUPPLIES LTD,5106143188,18.01
Communities & Local Government,DCLG,09/08/2010,Current (non AEF) Grants to Local Authorities,Communities Group,BARROW-IN-FURNESS BC,2100193516,"16,712.00"
Communities & Local Government,DCLG,09/08/2010,Current (non AEF) Grants to Local Authorities,Communities Group,BENJAMIN FOUNDATION,2100193547,"43,499.00"
Communities & Local Government,DCLG,09/08/2010,Current (non AEF) Grants to Local Authorities,Communities Group,PENDLE BC,2100193523,"50,948.00"
Communities & Local Government,DCLG,09/08/2010,Current (non AEF) Grants to Local Authorities,Communities Group,LONDON BOROUGH BARKING & DAGENHAM,2100193518,"31,516.13"
Communities & Local Government,DCLG,09/08/2010,Current (non AEF) Grants to Local Authorities,Communities Group,BARNSLEY MBC,2100193628,"16,523.00"
Communities & Local Government,DCLG,09/08/2010,Current (non AEF) Grants to Local Authorities,Communities Group,BOLTON MBC,2100193522,"57,283.17"
Communities & Local Government,DCLG,09/08/2010,Current (non AEF) Grants to Local Authorities,Communities Group,BRADFORD MBC,2100193517,"73,961.00"
Communities & Local Government,DCLG,09/08/2010,Current (non AEF) Grants to Local Authorities,Communities Group,ROTHERHAM MBC,2100193525,"58,343.00"
Communities & Local Government,DCLG,09/08/2010,Current (non AEF) Grants to Local Authorities,Communities Group,SHEPWAY DC,2100193519,"49,059.13"
Communities & Local Government,DCLG,09/08/2010,Current (non AEF) Grants to Local Authorities,Communities Group,SOUTH TYNESIDE MBC,2100193521,"45,967.00"
Communities & Local Government,DCLG,09/08/2010,Current (non AEF) Grants to Local Authorities,Communities Group,BRISTOL CITY COUNCIL,2100193514,"86,422.10"
Communities & Local Government,DCLG,09/08/2010,Current (non AEF) Grants to Local Authorities,Communities Group,MANCHESTER CITY COUNCIL,2100193515,"37,232.00"
Communities & Local Government,DCLG,09/08/2010,Current (non AEF) Grants to Local Authorities,Communities Group,GROUNDWORK,2100193524,"52,096.00"
Communities & Local Government,DCLG,09/08/2010,Current (non AEF) Grants to Local Authorities,Communities Group,DARWEN ALDRIDGE COMMUNITY ACADEMY,2100193520,"40,796.95"
Communities & Local Government,DCLG,09/08/2010,Storage,Finance and Corporate Services,IRON MOUNTAIN (UK) LIMITED,5106143249,"1,673.13"
Communities & Local Government,DCLG,09/08/2010,Storage,Finance and Corporate Services,IRON MOUNTAIN (UK) LIMITED,5106143255,"13,839.78"
Communities & Local Government,DCLG,09/08/2010,Printing,Housing and Planning,SMITH & WATTS LIMITED,5106143290,"4,464.00"
Communities & Local Government,DCLG,09/08/2010,Removals and Porterage,Finance and Corporate Services,HARROW GREEN REMOVALS GROUP,2100193877,"-10,237.50"
Communities & Local Government,DCLG,09/08/2010,Removals and Porterage,Finance and Corporate Services,HARROW GREEN REMOVALS GROUP,5106141846,"10,237.50"
Communities & Local Government,DCLG,09/08/2010,Research,Communities Group,NEW PHILANTHROPY CAPITAL,5106143315,"46,396.75"
Communities & Local Government,DCLG,09/08/2010,Research,"Local Gov & Reg(LG DEL,AME, RfR2)",TAVISTOCK INSTITUTE OF HUMAN RELATI,2100193876,"-24,537.50"
Communities & Local Government,DCLG,09/08/2010,Research,"Local Gov & Reg(LG DEL,AME, RfR2)",TAVISTOCK INSTITUTE OF HUMAN RELATI,5106142790,"24,537.50"
Communities & Local Government,DCLG,09/08/2010,Subscriptions,Communities Group,CENTRAL OFFICE OF INFORMATION,5106143207,"3,573.59"
Communities & Local Government,DCLG,09/08/2010,Subscriptions,Communities Group,CENTRAL OFFICE OF INFORMATION,5106143230,"4,066.76"
Communities & Local Government,DCLG,09/08/2010,Subscriptions,Communities Group,CENTRAL OFFICE OF INFORMATION,5106143301,"4,176.21"
Communities & Local Government,DCLG,09/08/2010,Vehicle Maintenance,Communities Group,BABCOCK CRITICAL SERVICES LTD,5106142185,"8,176.94"
Communities & Local Government,DCLG,09/08/2010,Vehicle Maintenance,Communities Group,BABCOCK CRITICAL SERVICES LTD,5106142343,"28,325.73"
Communities & Local Government,DCLG,09/08/2010,Vehicle Maintenance,Human Resources,CYCLESCHEME LTD,5106143229,"1,350.41"
Communities & Local Government,DCLG,09/08/2010,Vehicle hire,Housing and Planning,ARVAL,2100193828,"1,498.83"
Communities & Local Government,DCLG,09/08/2010,Telephone call costs,Finance and Corporate Services,BT PLC,5106143204,"5,670.17"
Communities & Local Government,DCLG,09/08/2010,Electricity,Communities Group,EDF ENERGY 1 LIMITED,5106143224,"7,186.13"
Communities & Local Government,DCLG,09/08/2010,Electricity,Communities Group,EDF ENERGY 1 LIMITED,5106143233,"6,008.89"
Communities & Local Government,DCLG,09/08/2010,Stationery,Communities Group,BANNER BUSINESS SUPPLIES LTD,5106143188,15.04
Communities & Local Government,DCLG,09/08/2010,EU Cur Grnt to Priv Sect-Persons & NPISH,Regions and Communities,NORTHUMBRIA UNIVERSITY,7500028772,"-3,755.00"
Communities & Local Government,DCLG,09/08/2010,Services provided by other Govt Orgs,Communities Group,CENTRAL OFFICE OF INFORMATION,5106142220,"-15,490.85"
Communities & Local Government,DCLG,09/08/2010,Steady State Service Provision,Communities Group,AIRWAVE SOLUTIONS LTD,5106126633,"9,768.00"
Communities & Local Government,DCLG,09/08/2010,Management Consultancy,Communities Group,DBI CONSULTING LTD,5106143201,"12,900.00"
Communities & Local Government,DCLG,10/08/2010,Agency Staff,Communities Group,CAPITA COMMUNICATIONS,5106143310,"4,958.74"
Communities & Local Government,DCLG,10/08/2010,Agency Staff,Communities Group,LA INT COMPUTER CONSULTANTS LTD,5106143299,"11,780.50"
Communities & Local Government,DCLG,10/08/2010,Agency Staff,Communities Group,PARITY RESOURCES,5106143365,"12,375.00"
Communities & Local Government,DCLG,10/08/2010,Agency Staff,Communities Group,MONARCH RECRUITMENT LTD,5106143360,"4,846.88"
Communities & Local Government,DCLG,10/08/2010,Agency Staff,Human Resources,CAPITA RESOURCING LTD,5106138226,"3,403.21"
Communities & Local Government,DCLG,10/08/2010,Catering,Housing and Planning,LOCAL GOVERNMENT ASSOCIATION,5106143094,499.00
Communities & Local Government,DCLG,10/08/2010,Conferences,Housing and Planning,LOCAL GOVERNMENT ASSOCIATION,5106143098,586.33
Communities & Local Government,DCLG,10/08/2010,IT Maintenance,Housing and Planning,LA INT COMPUTER CONSULTANTS LTD,5106143368,"11,737.72"
Communities & Local Government,DCLG,10/08/2010,IT Maintenance,Finance and Corporate Services,MITIE MANAGED SERVICES LTD,5106143387,"31,250.65"
Communities & Local Government,DCLG,10/08/2010,Travel and Subsistence Account,Communities Group,HERTS CC FIRE & RESCUE SERVICE,5106143325,454.20
Communities & Local Government,DCLG,10/08/2010,Current (non AEF) Grants to Local Authorities,Communities Group,BIRMINGHAM CITY COUNCIL,2300001687,"-100,000.00"
Communities & Local Government,DCLG,10/08/2010,Post,Housing and Planning,DCLG GOVERNMENT PROCUREMENT CARD,1000002302,"1,030.00"
Communities & Local Government,DCLG,10/08/2010,Professional services,Finance and Corporate Services,JOBCENTRE PLUS,2100193871,"85,000.00"
Communities & Local Government,DCLG,10/08/2010,Research,Housing and Planning,ST ANDREWS UNIVERSITY,2100193901,"-196,665.99"
Communities & Local Government,DCLG,10/08/2010,Research,Housing and Planning,ST ANDREWS UNIVERSITY,5106140585,"196,665.99"
Communities & Local Government,DCLG,10/08/2010,Research,Communities Group,MARKET & OPINION RESEARCH INT LTD,5106143072,"398,985.59"
Communities & Local Government,DCLG,10/08/2010,Unplanned Delivery Costs,Finance and Corporate Services,HARROW GREEN REMOVALS GROUP,5106143399,"10,237.50"
Communities & Local Government,DCLG,10/08/2010,Telephone call costs,Communities Group,B T PAYMENT SERVICES LTD,5106143389,"2,197.63"
Communities & Local Government,DCLG,10/08/2010,Grant in Aid Resource DEL RAB A,"Local Gov & Reg(LG DEL,AME, RfR2)",BUSINESS INNOVATION & SKILLS(USE 30,2100193844,"103,339,000.00"
Communities & Local Government,DCLG,10/08/2010,Capl paymt betwn central governt bodies,"Local Gov & Reg(LG DEL,AME, RfR2)",BUSINESS INNOVATION & SKILLS(USE 30,2100193844,"105,604,000.00"
Communities & Local Government,DCLG,10/08/2010,Services provided by other Govt Orgs,Finance and Corporate Services,DEFENCE VETTING AGENCY,5106143226,"2,031.41"
Communities & Local Government,DCLG,10/08/2010,Steady State Service Provision,Communities Group,KEEP BRITAIN TIDY,5106143385,"264,375.00"
Communities & Local Government,DCLG,10/08/2010,IT Consultancy,Communities Group,AMQIS CONSORTIUM,5106143343,"10,190.07"
Communities & Local Government,DCLG,10/08/2010,Management Consultancy,Communities Group,CHIEF FIRE OFFICERS ASSOCIATION,5106143383,"7,714.28"
Communities & Local Government,DCLG,11/08/2010,NNDR Billing Authorities Receipts,"Local Gov & Reg(LG DEL,AME, RfR2)",OFFICE OF THE PAYMASTER GENERAL (NN,2100193907,"1,894,879,079.00"
Communities & Local Government,DCLG,11/08/2010,NNDR Outturn Receipts,"Local Gov & Reg(LG DEL,AME, RfR2)",OFFICE OF THE PAYMASTER GENERAL (NN,2100193907,"4,588,736.00"
Communities & Local Government,DCLG,11/08/2010,NNDR Central List Receipts,"Local Gov & Reg(LG DEL,AME, RfR2)",OFFICE OF THE PAYMASTER GENERAL (NN,2100193907,"118,000,000.00"
Communities & Local Government,DCLG,11/08/2010,Agency Staff,Housing and Planning,REED SPECIALIST RECRUITMENT LTD,5106143419,914.73
Communities & Local Government,DCLG,11/08/2010,Agency Staff,Housing and Planning,REED SPECIALIST RECRUITMENT LTD,5106143420,697.07
Communities & Local Government,DCLG,11/08/2010,Agency Staff,Finance and Corporate Services,MICHAEL PAGE INTERNATIONAL,5106143429,"1,903.50"
Communities & Local Government,DCLG,11/08/2010,Agency Staff,Finance and Corporate Services,PARITY RESOURCES LTD,5106143377,"1,667.33"
Communities & Local Government,DCLG,11/08/2010,Agency Staff,Finance and Corporate Services,REED SPECIALIST RECRUITMENT LTD,5106143418,"2,643.32"
Communities & Local Government,DCLG,11/08/2010,Agency Staff,Finance and Corporate Services,REED SPECIALIST RECRUITMENT LTD,5106143431,452.95
Communities & Local Government,DCLG,11/08/2010,Agency Staff,Finance and Corporate Services,REED SPECIALIST RECRUITMENT LTD,5106143474,552.02
Communities & Local Government,DCLG,11/08/2010,Agency Staff,Communities Group,PARITY RESOURCES LTD,5106142206,-546.59
Communities & Local Government,DCLG,11/08/2010,Agency Staff,Communities Group,REED SPECIALIST RECRUITMENT LTD,5106143422,842.90
Communities & Local Government,DCLG,11/08/2010,Agency Staff,Communities Group,REED SPECIALIST RECRUITMENT LTD,5106143442,801.83
Communities & Local Government,DCLG,11/08/2010,Fixed Maintenance,Finance and Corporate Services,SCHNEIDER ELECTRIC,5106143100,525.00
Communities & Local Government,DCLG,11/08/2010,Travel and Subsistence Account,Communities Group,WILTSHIRE & SWINDON FIRE AUTHORITY,5106143511,399.17
Communities & Local Government,DCLG,11/08/2010,Storage,Housing and Planning,IRON MOUNTAIN (UK) LIMITED,5106143433,777.27
Communities & Local Government,DCLG,11/08/2010,Water,Finance and Corporate Services,THAMES WATER UTILITIES,5106143495,"2,159.13"
Communities & Local Government,DCLG,11/08/2010,Research,Housing and Planning,ST ANDREWS UNIVERSITY,5106143404,"196,665.99"
Communities & Local Government,DCLG,11/08/2010,Research,Communities Group,INNOGISTIC LTD,5106143353,"3,495.63"
Communities & Local Government,DCLG,11/08/2010,Security,Finance and Corporate Services,SGS YARSLEY,5106143444,"2,961.00"
Communities & Local Government,DCLG,11/08/2010,Security,Finance and Corporate Services,SGS YARSLEY,5106143446,607.06
Communities & Local Government,DCLG,11/08/2010,ERDF Costs to CLG,Regions and Communities,INTERREG IIIC - IVC,2100193909,"93,937.79"
Communities & Local Government,DCLG,11/08/2010,ERDF Costs to CLG,Regions and Communities,CONSEIL REGIONAL NORD-PAS DE CALAIS,2100193908,"49,382.10"
Communities & Local Government,DCLG,11/08/2010,Accommodation Service Charges,Finance and Corporate Services,MITIE MANAGED SERVICES (SOUTHERN) L,5106141230,"5,312.46"
Communities & Local Government,DCLG,11/08/2010,Telephone call costs,Housing and Planning,B T PAYMENT SERVICES LTD,5106143355,"2,329.09"
Communities & Local Government,DCLG,11/08/2010,Telecoms equipment (non-capitalised),Communities Group,AIRWAVE SOLUTIONS LTD,2100193990,"-75,000.00"
Communities & Local Government,DCLG,11/08/2010,Telecoms equipment (non-capitalised),Communities Group,AIRWAVE SOLUTIONS LTD,5106143332,"75,000.00"
Communities & Local Government,DCLG,11/08/2010,Web Services,Housing and Planning,RED NOMAD LIMITED,5106143498,547.55
Communities & Local Government,DCLG,11/08/2010,Web Services,Housing and Planning,RED NOMAD LIMITED,5106143500,"1,645.00"
Communities & Local Government,DCLG,11/08/2010,Grant in Aid to NDPBs (non budget),Housing and Planning,HOMES & COMMUNITIES AGENCY,2100193846,"32,458,836.00"
Communities & Local Government,DCLG,11/08/2010,Grant in Aid to NDPBs (non budget),Housing and Planning,TENANT SERVICES AUTHORIT Y,2100193845,"1,000,000.00"
Communities & Local Government,DCLG,11/08/2010,Steady State Service Provision,Communities Group,PARITY RESOURCES LTD,5106142206,-478.85
Communities & Local Government,DCLG,11/08/2010,Management Consultancy,Communities Group,DBI CONSULTING LTD,5106143351,"12,753.00"
Communities & Local Government,DCLG,11/08/2010,Management Consultancy,Communities Group,PATRICIA COLEMAN & ASSOCIATES LTD,5106143489,"6,371.03"
Communities & Local Government,DCLG,12/08/2010,Agency Staff,Housing and Planning,REED SPECIALIST RECRUITMENT LTD,5106143538,731.78
Communities & Local Government,DCLG,12/08/2010,Agency Staff,Regions and Communities,CAPITA RESOURCING LTD,5106143638,"9,376.50"
Communities & Local Government,DCLG,12/08/2010,Agency Staff,Finance and Corporate Services,CAPITA RESOURCING LTD,5106143630,"2,411.10"
Communities & Local Government,DCLG,12/08/2010,Agency Staff,Communities Group,PARITY RESOURCES LTD,5106143580,"1,068.44"
Communities & Local Government,DCLG,12/08/2010,Agency Staff,"Local Gov & Reg(LG DEL,AME, RfR2)",CAPITA RESOURCING LTD,5106143640,"2,679.00"
Communities & Local Government,DCLG,12/08/2010,Agency Staff,Human Resources,CAPITA RESOURCING LTD,5106143636,"3,194.53"
Communities & Local Government,DCLG,12/08/2010,Catering,Finance and Corporate Services,MITIE MANAGED SERVICES (SOUTHERN) L,5106143581,"13,542.79"
Communities & Local Government,DCLG,12/08/2010,IT Maintenance,Finance and Corporate Services,COLT TELECOMMUNICATIONS,5106143341,781.38
Communities & Local Government,DCLG,12/08/2010,Legal Fees,Communities Group,DENTON WILDE SAPTE LLP,5106143656,"3,614.76"
Communities & Local Government,DCLG,12/08/2010,Fixed Maintenance,Finance and Corporate Services,MITIE MANAGED SERVICES (SOUTHERN) L,5106143581,"38,445.79"
Communities & Local Government,DCLG,12/08/2010,Travel and Subsistence Account,Communities Group,NOTTS & CITY NOTTINGHAM FIRE AUTH,5106143684,"6,274.93"
Communities & Local Government,DCLG,12/08/2010,Current Grants to Non Profit Bodies,Communities Group,COMMUNITY DEVELOPMENT FOUNDATION,2100193785,"573,800.08"
Communities & Local Government,DCLG,12/08/2010,Office Machinery (<5000),Communities Group,DANWOOD CONTRACT RENTALS,5106143117,604.94
Communities & Local Government,DCLG,12/08/2010,Current (non AEF) Grants to Local Authorities,Housing and Planning,BRISTOL CITY CNCL (HSG),5000136558,"25,000.00"
Communities & Local Government,DCLG,12/08/2010,Current (non AEF) Grants to Local Authorities,Housing and Planning,CITY OF LONDON (HSG),5000136560,"50,000.00"
Communities & Local Government,DCLG,12/08/2010,Current (non AEF) Grants to Local Authorities,Housing and Planning,STOCKTON-ON-TEES BC (HSG),5000136567,"45,000.00"
Communities & Local Government,DCLG,12/08/2010,Current (non AEF) Grants to Local Authorities,Housing and Planning,TORRIDGE DC,5000136568,"40,000.00"
Communities & Local Government,DCLG,12/08/2010,Current (non AEF) Grants to Local Authorities,Housing and Planning,ALLERDALE BC,5000136570,"20,000.00"
Communities & Local Government,DCLG,12/08/2010,Current (non AEF) Grants to Local Authorities,Housing and Planning,BASILDON DISTRICT COUNCIL,5000136572,"15,000.00"
Communities & Local Government,DCLG,12/08/2010,Current (non AEF) Grants to Local Authorities,Housing and Planning,BIRMINGHAM CITY CNCL,5000136573,"40,000.00"
Communities & Local Government,DCLG,12/08/2010,Current (non AEF) Grants to Local Authorities,Housing and Planning,BRIGHTON & HOVE CITY COUNCIL,5000136576,"55,000.00"
Communities & Local Government,DCLG,12/08/2010,Current (non AEF) Grants to Local Authorities,Housing and Planning,CALDERDALE MBC,5000136578,"2,500.00"
Communities & Local Government,DCLG,12/08/2010,Current (non AEF) Grants to Local Authorities,Housing and Planning,CAMDEN LB,5000136579,"42,000.00"
Communities & Local Government,DCLG,12/08/2010,Current (non AEF) Grants to Local Authorities,Housing and Planning,HARINGEY LB,5000136588,"8,000.00"
Communities & Local Government,DCLG,12/08/2010,Current (non AEF) Grants to Local Authorities,Housing and Planning,LONDON BOROUGH OF LAMBETH,5000136597,"272,000.00"
Communities & Local Government,DCLG,12/08/2010,Current (non AEF) Grants to Local Authorities,Housing and Planning,MERTON LB,5000136602,"30,000.00"
Communities & Local Government,DCLG,12/08/2010,Current (non AEF) Grants to Local Authorities,Housing and Planning,MIDDLESBROUGH BC,5000136604,"30,000.00"
Communities & Local Government,DCLG,12/08/2010,Current (non AEF) Grants to Local Authorities,Housing and Planning,NOTTINGHAMSHIRE COUNTY CNCL,5000136607,"40,232.00"
Communities & Local Government,DCLG,12/08/2010,Current (non AEF) Grants to Local Authorities,Housing and Planning,OXFORD CITY COUNCIL,5000136609,"50,000.00"
Communities & Local Government,DCLG,12/08/2010,Current (non AEF) Grants to Local Authorities,Housing and Planning,PETERBOROUGH CITY CNCL,5000136610,"30,000.00"
Communities & Local Government,DCLG,12/08/2010,Current (non AEF) Grants to Local Authorities,Housing and Planning,LONDON BOROUGH OF REDBRIDGE,5000136611,"5,000.00"
Communities & Local Government,DCLG,12/08/2010,Current (non AEF) Grants to Local Authorities,Housing and Planning,RICHMOND UPON THAMES LB,5000136613,"2,000.00"
Communities & Local Government,DCLG,12/08/2010,Current (non AEF) Grants to Local Authorities,Housing and Planning,SOUTHWARK LB,5000136620,"3,000.00"
Communities & Local Government,DCLG,12/08/2010,Current (non AEF) Grants to Local Authorities,Housing and Planning,STOKE ON TRENT CITY COUNCIL,5000136622,"40,000.00"
Communities & Local Government,DCLG,12/08/2010,Current (non AEF) Grants to Local Authorities,Housing and Planning,WEST BERKSHIRE COUNCIL,5000136627,"15,000.00"
Communities & Local Government,DCLG,12/08/2010,Storage,Finance and Corporate Services,IRON MOUNTAIN (UK) LIMITED,5106143468,"24,646.77"
Communities & Local Government,DCLG,12/08/2010,Post,Finance and Corporate Services,MITIE MANAGED SERVICES (SOUTHERN) L,5106143581,"6,529.73"
Communities & Local Government,DCLG,12/08/2010,Publications,"Local Gov & Reg(LG DEL,AME, RfR2)",SWETS INFORMATION SERVICES LTD,5106138447,847.69
Communities & Local Government,DCLG,12/08/2010,Publications,"Local Gov & Reg(LG DEL,AME, RfR2)",SWETS INFORMATION SERVICES LTD,5106143649,-847.69
Communities & Local Government,DCLG,12/08/2010,Research,Finance and Corporate Services,BUILDING RESEARCH ESTABLISHMENT,5106143666,"168,439.78"
Communities & Local Government,DCLG,12/08/2010,Research,Communities Group,GREENSTREET BERMAN LTD,5106143571,"21,015.58"
Communities & Local Government,DCLG,12/08/2010,Security,Finance and Corporate Services,MITIE MANAGED SERVICES (SOUTHERN) L,5106143576,674.56
Communities & Local Government,DCLG,12/08/2010,Software Licences,Finance and Corporate Services,VERIZON UK LTD,5106143567,"2,131.45"
Communities & Local Government,DCLG,12/08/2010,Subscriptions,Communities Group,JONES YARRELL LEADENHALL LTD,2100194029,-607.87
Communities & Local Government,DCLG,12/08/2010,Subscriptions,Communities Group,JONES YARRELL LEADENHALL LTD,5106142832,607.87
Communities & Local Government,DCLG,12/08/2010,Training,Communities Group,OFFICE PUBLIC MGMT LTD,5106143603,"1,500.00"
Communities & Local Government,DCLG,12/08/2010,Waste Disposal and pest control,Finance and Corporate Services,MITIE MANAGED SERVICES (SOUTHERN) L,5106143581,"4,914.00"
Communities & Local Government,DCLG,12/08/2010,Vehicle hire,Housing and Planning,CYCLONE COURIER CO LTD,5106143605,959.42
Communities & Local Government,DCLG,12/08/2010,Capital Grant from EC to Local Authority DEL,Communities Group,DERWENTSIDE DC,2100194006,"61,416.55"
Communities & Local Government,DCLG,12/08/2010,Capital Grant from EC to Local Authority DEL,Communities Group,DERWENTSIDE DC,2300001523,"-61,416.55"
Communities & Local Government,DCLG,12/08/2010,Accommodation Service Charges,Finance and Corporate Services,MITIE MANAGED SERVICES (SOUTHERN) L,5106143581,295.88
Communities & Local Government,DCLG,12/08/2010,Telecoms equipment (non-capitalised),Communities Group,AIRWAVE SOLUTIONS LTD,5106130772,"37,500.00"
Communities & Local Government,DCLG,12/08/2010,Telecoms equipment (non-capitalised),Communities Group,AIRWAVE SOLUTIONS LTD,5106130954,"75,000.00"
Communities & Local Government,DCLG,12/08/2010,Telecoms equipment (non-capitalised),Communities Group,AIRWAVE SOLUTIONS LTD,5106143686,"75,000.00"
Communities & Local Government,DCLG,12/08/2010,Stationery,Housing and Planning,BANNER BUSINESS SUPPLIES LTD,5106143543,506.54
Communities & Local Government,DCLG,12/08/2010,Stationery,Finance and Corporate Services,MITIE MANAGED SERVICES (SOUTHERN) L,5106143581,"25,072.22"
Communities & Local Government,DCLG,12/08/2010,Steady State Service Provision,Communities Group,AIRWAVE SOLUTIONS LTD,5106131427,"37,500.00"
Communities & Local Government,DCLG,12/08/2010,Steady State Service Provision,Communities Group,INFORMED SOLUTIONS LTD,5106143508,"1,697.88"
Communities & Local Government,DCLG,12/08/2010,Steady State Service Provision,Communities Group,INFORMED SOLUTIONS LTD,5106143509,"1,974.00"
Communities & Local Government,DCLG,12/08/2010,Steady State Service Provision,Communities Group,INFORMED SOLUTIONS LTD,5106143513,"1,016.38"
Communities & Local Government,DCLG,12/08/2010,Steady State Service Provision,Communities Group,INFORMED SOLUTIONS LTD,5106143527,"9,270.75"
Communities & Local Government,DCLG,12/08/2010,Management Consultancy,Communities Group,CHIEF FIRE OFFICERS ASSOCIATION,5106143555,"4,977.25"
Communities & Local Government,DCLG,12/08/2010,HR Consultancy,Communities Group,FIRE SERVICE COLLEGE,5106143190,"2,643.75"
Communities & Local Government,DCLG,12/08/2010,LA General GLA  Grant Payable,"Local Gov & Reg(LG DEL,AME, RfR2)",GREATER LONDON AUTHORITY,2100193786,"2,005,000.00"
Communities & Local Government,DCLG,13/08/2010,Agency Staff,Communities Group,BROOK STREET BUREAU,5106143716,"1,547.51"
Communities & Local Government,DCLG,13/08/2010,Agency Staff,Communities Group,BROOK STREET BUREAU,5106143779,"1,200.31"
Communities & Local Government,DCLG,13/08/2010,Agency Staff,Communities Group,LA INT COMPUTER CONSULTANTS LTD,5106143787,"17,478.78"
Communities & Local Government,DCLG,13/08/2010,Cmmunication Telecom Costs,Housing and Planning,VODAFONE UK,2100194031,515.60
Communities & Local Government,DCLG,13/08/2010,Cmmunication Telecom Costs,Finance and Corporate Services,VODAFONE UK,2100194031,"2,435.35"
Communities & Local Government,DCLG,13/08/2010,Cmmunication Telecom Costs,Communities Group,VODAFONE UK,2100194031,358.91
Communities & Local Government,DCLG,13/08/2010,Cmmunication Telecom Costs,"Local Gov & Reg(LG DEL,AME, RfR2)",VODAFONE UK,2100194031,55.12
Communities & Local Government,DCLG,13/08/2010,Cmmunication Telecom Costs,Human Resources,VODAFONE UK,2100194031,452.18
Communities & Local Government,DCLG,13/08/2010,Cmmunication Telecom Costs,Programme & Project Team,VODAFONE UK,2100194031,212.84
Communities & Local Government,DCLG,13/08/2010,Conferences,Housing and Planning,HER MAJESTYS COURTS SERVICE,5106143707,"2,671.50"
Communities & Local Government,DCLG,13/08/2010,Conferences,Communities Group,CENTRAL OFFICE OF INFORMATION,5106143693,"22,549.43"
Communities & Local Government,DCLG,13/08/2010,Domestic Services,Housing and Planning,MITIE MANAGED SERVICES LTD,5106143733,473.25
Communities & Local Government,DCLG,13/08/2010,Domestic Services,Finance and Corporate Services,MITIE MANAGED SERVICES (SOUTHERN) L,5106143794,"30,330.33"
Communities & Local Government,DCLG,13/08/2010,IT Maintenance,Finance and Corporate Services,VERIZON UK LTD,5106143789,"7,795.14"
Communities & Local Government,DCLG,13/08/2010,IT Maintenance,Finance and Corporate Services,VERIZON UK LTD,5106143790,"27,454.86"
Communities & Local Government,DCLG,13/08/2010,Fixed Maintenance,Housing and Planning,MITIE MANAGED SERVICES LTD,5106143733,"1,004.04"
Communities & Local Government,DCLG,13/08/2010,Fixed Maintenance,Housing and Planning,MITIE MANAGED SERVICES LTD,5106143739,472.52
Communities & Local Government,DCLG,13/08/2010,Fixed Maintenance,Finance and Corporate Services,MITIE MANAGED SERVICES (SOUTHERN) L,5106143794,"55,493.46"
Communities & Local Government,DCLG,13/08/2010,Fixed Maintenance,Communities Group,FLAGSHIP TRAINING LIMITED,5106143669,596.99
Communities & Local Government,DCLG,13/08/2010,Fixed Maintenance,Communities Group,FLAGSHIP TRAINING LIMITED,5106143677,489.16
Communities & Local Government,DCLG,13/08/2010,Fixed Maintenance,Communities Group,FLAGSHIP TRAINING LIMITED,5106143679,919.55
Communities & Local Government,DCLG,13/08/2010,Media,Housing and Planning,TRANSMEDIA LINK LTD,5106143748,612.00
Communities & Local Government,DCLG,13/08/2010,Travel and Subsistence Account,Finance and Corporate Services,EAST OF ENGLAND AMBULANCE SERVICE,5106143770,170.00
Communities & Local Government,DCLG,13/08/2010,Travel and Subsistence Account,Finance and Corporate Services,EAST OF ENGLAND AMBULANCE SERVICE,5106143775,170.00
Communities & Local Government,DCLG,13/08/2010,Travel and Subsistence Account,Communities Group,GOVERNMENT CAR & DESPATCH AGENCY,5106141346,"7,017.21"
Communities & Local Government,DCLG,13/08/2010,Travel and Subsistence Account,Communities Group,GOVERNMENT CAR & DESPATCH AGENCY,5106143663,"7,025.43"
Communities & Local Government,DCLG,13/08/2010,Travel and Subsistence Account,Human Resources,REDFERN TRAVEL LIMITED,2100194032,686.04
Communities & Local Government,DCLG,13/08/2010,Current Grants to Non Profit Bodies,Communities Group,INTER FAITH NETWORK FOR THE UK,2100194028,"140,000.00"
Communities & Local Government,DCLG,13/08/2010,Current Grants to Non Profit Bodies,Communities Group,ASPIRING BETTER COMMUNITIES LTD,2100194027,"25,000.00"
Communities & Local Government,DCLG,13/08/2010,Current (non AEF) Grants to Local Authorities,Housing and Planning,WINCHESTER CITY COUNCIL,2100194024,"6,620.00"
Communities & Local Government,DCLG,13/08/2010,Current (non AEF) Grants to Local Authorities,Housing and Planning,LONDON BOROUGH OF CROYDON,2100194023,"84,971.50"
Communities & Local Government,DCLG,13/08/2010,Current (non AEF) Grants to Local Authorities,Housing and Planning,HYNDBURN BC,2100194017,"5,940.00"
Communities & Local Government,DCLG,13/08/2010,Current (non AEF) Grants to Local Authorities,Housing and Planning,HYNDBURN BC,2100194018,"5,640.00"
Communities & Local Government,DCLG,13/08/2010,Current (non AEF) Grants to Local Authorities,Housing and Planning,SHEFFIELD CITY COUNCIL,2100194025,"4,000.00"
Communities & Local Government,DCLG,13/08/2010,Current (non AEF) Grants to Local Authorities,Housing and Planning,NOTTINGHAM CITY COUNCIL,2100194019,"2,000.00"
Communities & Local Government,DCLG,13/08/2010,Current (non AEF) Grants to Local Authorities,Housing and Planning,WEST OXFORDSHIRE DC,2100194026,"5,620.00"
Communities & Local Government,DCLG,13/08/2010,Current (non AEF) Grants to Local Authorities,Housing and Planning,SOUTHAMPTON CITY COUNCIL,2100194020,"2,029.09"
Communities & Local Government,DCLG,13/08/2010,Current (non AEF) Grants to Local Authorities,Housing and Planning,SOUTHAMPTON CITY COUNCIL,2100194021,"2,912.00"
Communities & Local Government,DCLG,13/08/2010,Current (non AEF) Grants to Local Authorities,Housing and Planning,SOUTHAMPTON CITY COUNCIL,2100194022,964.32
Communities & Local Government,DCLG,13/08/2010,Storage,Finance and Corporate Services,MITIE MANAGED SERVICES (SOUTHERN) L,5106143794,982.76
Communities & Local Government,DCLG,13/08/2010,Post,Finance and Corporate Services,MITIE MANAGED SERVICES (SOUTHERN) L,5106143794,"39,505.13"
Communities & Local Government,DCLG,13/08/2010,Publications,Finance and Corporate Services,STERIA LIMITED,5106143750,"73,263.44"
Communities & Local Government,DCLG,13/08/2010,Publishing,Strategic Performance Directorate,STATIONERY OFFICE LTD,5106143785,"2,094.00"
Communities & Local Government,DCLG,13/08/2010,Research,Finance and Corporate Services,ORDNANCE SURVEY,5106143617,"26,386.51"
Communities & Local Government,DCLG,13/08/2010,Research,Communities Group,COMMUNITY DEVELOPMENT FOUNDATION,5106143782,"10,112.34"
Communities & Local Government,DCLG,13/08/2010,Research,Communities Group,GREENSTREET BERMAN LTD,5106143701,"48,314.99"
Communities & Local Government,DCLG,13/08/2010,Security,Finance and Corporate Services,MITIE MANAGED SERVICES (SOUTHERN) L,5106143794,"45,075.59"
Communities & Local Government,DCLG,13/08/2010,Subscriptions,Housing and Planning,PAYMASTER (1836) LTD,5106143741,839.24
Communities & Local Government,DCLG,13/08/2010,Support services,Communities Group,FLAGSHIP TRAINING LIMITED,5106143331,"1,159.24"
Communities & Local Government,DCLG,13/08/2010,Training,Housing and Planning,SOCIA LTD,5106143560,900.00
Communities & Local Government,DCLG,13/08/2010,Training,Finance and Corporate Services,EAST OF ENGLAND AMBULANCE SERVICE,5106143770,295.00
Communities & Local Government,DCLG,13/08/2010,Training,Finance and Corporate Services,EAST OF ENGLAND AMBULANCE SERVICE,5106143775,295.00
Communities & Local Government,DCLG,13/08/2010,Training,Communities Group,MEDIA TRAINING LTD,5106141384,870.00
Communities & Local Government,DCLG,13/08/2010,Waste Disposal and pest control,Finance and Corporate Services,MITIE MANAGED SERVICES (SOUTHERN) L,5106143794,"3,770.81"
Communities & Local Government,DCLG,13/08/2010,Vehicle hire,Communities Group,BABCOCK CRITICAL SERVICES LTD,5106143491,"506,070.41"
Communities & Local Government,DCLG,13/08/2010,Cap Grants to Local Authorities (DEL),Regions and Communities,LONDON BOROUGH HACKNEY,2100193875,"625,000.00"
Communities & Local Government,DCLG,13/08/2010,Capital Grant from EC to Local Authority DEL,Communities Group,TELFORD & WREKIN DC,7500028876,"-49,612.00"
Communities & Local Government,DCLG,13/08/2010,Accommodation Service Charges,Finance and Corporate Services,MITIE MANAGED SERVICES (SOUTHERN) L,5106143794,"82,719.36"
Communities & Local Government,DCLG,13/08/2010,Telephone call costs,Housing and Planning,DATASHARP SOUTH LTD,5106143706,"3,279.43"
Communities & Local Government,DCLG,13/08/2010,Telephone call costs,Communities Group,BABCOCK CRITICAL SERVICES LTD,5106143464,"1,556.25"
Communities & Local Government,DCLG,13/08/2010,Telephone call costs,Communities Group,BABCOCK CRITICAL SERVICES LTD,5106143714,"1,561.45"
Communities & Local Government,DCLG,13/08/2010,Electricity,Communities Group,NPOWER LTD,5106143743,"14,332.08"
Communities & Local Government,DCLG,13/08/2010,Electricity,Communities Group,NPOWER LTD,5106143745,"6,447.80"
Communities & Local Government,DCLG,13/08/2010,Steady State Service Provision,Finance and Corporate Services,VERIZON UK LTD,5106143789,"19,659.72"
Communities & Local Government,DCLG,13/08/2010,Management Consultancy,Communities Group,REED TECHNOLOGY,5106143470,"1,282.16"
Communities & Local Government,DCLG,13/08/2010,Management Consultancy,Communities Group,MOTT MACDONALD LTD,5106143725,"587,036.16"
Communities & Local Government,DCLG,13/08/2010,Legal Consultancy,Finance and Corporate Services,VEALE WASBROUGH SOLICITOR,5106143909,-602.75
Communities & Local Government,DCLG,13/08/2010,Area Based Grants,"Local Gov & Reg(LG DEL,AME, RfR2)",ARUN DC,5000137533,"1,157.00"
Communities & Local Government,DCLG,13/08/2010,Area Based Grants,"Local Gov & Reg(LG DEL,AME, RfR2)",ASHFORD BC,5000137534,"2,113.00"
Communities & Local Government,DCLG,13/08/2010,Area Based Grants,"Local Gov & Reg(LG DEL,AME, RfR2)",BABERGH DC,5000137535,"3,216.00"
Communities & Local Government,DCLG,13/08/2010,Area Based Grants,"Local Gov & Reg(LG DEL,AME, RfR2)",BARKING & DAGENHAM LB (HSG),5000137536,"701,751.00"
Communities & Local Government,DCLG,13/08/2010,Area Based Grants,"Local Gov & Reg(LG DEL,AME, RfR2)",BASSETLAW DC (HSG),5000137537,"26,696.00"
Communities & Local Government,DCLG,13/08/2010,Area Based Grants,"Local Gov & Reg(LG DEL,AME, RfR2)",BATH & NE SOMERSET DC (HSG),5000137538,"516,568.00"
Communities & Local Government,DCLG,13/08/2010,Area Based Grants,"Local Gov & Reg(LG DEL,AME, RfR2)",BEXLEY LB (HSG),5000137539,"560,124.00"
Communities & Local Government,DCLG,13/08/2010,Area Based Grants,"Local Gov & Reg(LG DEL,AME, RfR2)",BLABY DC (HSG),5000137540,"2,516.00"
Communities & Local Government,DCLG,13/08/2010,Area Based Grants,"Local Gov & Reg(LG DEL,AME, RfR2)",BRAINTREE DC,5000137541,"2,516.00"
Communities & Local Government,DCLG,13/08/2010,Area Based Grants,"Local Gov & Reg(LG DEL,AME, RfR2)",BRENT LB (HSG),5000137542,"1,446,633.00"
Communities & Local Government,DCLG,13/08/2010,Area Based Grants,"Local Gov & Reg(LG DEL,AME, RfR2)",BRISTOL CITY CNCL (HSG),5000137545,"2,717,261.00"
Communities & Local Government,DCLG,13/08/2010,Area Based Grants,"Local Gov & Reg(LG DEL,AME, RfR2)",BROADLAND DC,5000137546,"2,516.00"
Communities & Local Government,DCLG,13/08/2010,Area Based Grants,"Local Gov & Reg(LG DEL,AME, RfR2)",BROMSGROVE DC,5000137547,"2,516.00"
Communities & Local Government,DCLG,13/08/2010,Area Based Grants,"Local Gov & Reg(LG DEL,AME, RfR2)",CANTERBURY CITY CNCL,5000137548,"2,390.00"
Communities & Local Government,DCLG,13/08/2010,Area Based Grants,"Local Gov & Reg(LG DEL,AME, RfR2)",CARLISLE CITY CNCL,5000137549,"1,414.00"
Communities & Local Government,DCLG,13/08/2010,Area Based Grants,"Local Gov & Reg(LG DEL,AME, RfR2)",CHERWELL DC,5000137550,"1,414.00"
Communities & Local Government,DCLG,13/08/2010,Area Based Grants,"Local Gov & Reg(LG DEL,AME, RfR2)",CHICHESTER DC,5000137551,"2,516.00"
Communities & Local Government,DCLG,13/08/2010,Area Based Grants,"Local Gov & Reg(LG DEL,AME, RfR2)",CHILTERN DC (HSG),5000137552,"2,516.00"
Communities & Local Government,DCLG,13/08/2010,Area Based Grants,"Local Gov & Reg(LG DEL,AME, RfR2)",CHRISTCHURCH BC (HSG),5000137553,"2,516.00"
Communities & Local Government,DCLG,13/08/2010,Area Based Grants,"Local Gov & Reg(LG DEL,AME, RfR2)",CITY OF LONDON (HSG),5000137554,"69,980.00"
Communities & Local Government,DCLG,13/08/2010,Area Based Grants,"Local Gov & Reg(LG DEL,AME, RfR2)",CITY OF SUNDERLAND (HSG),5000137555,"1,636,733.00"
Communities & Local Government,DCLG,13/08/2010,Area Based Grants,"Local Gov & Reg(LG DEL,AME, RfR2)",COPELAND BC,5000137558,"44,887.00"
Communities & Local Government,DCLG,13/08/2010,Area Based Grants,"Local Gov & Reg(LG DEL,AME, RfR2)",COTSWOLD DC,5000137559,"2,516.00"
Communities & Local Government,DCLG,13/08/2010,Area Based Grants,"Local Gov & Reg(LG DEL,AME, RfR2)",CRAVEN DC (HSG),5000137560,"1,414.00"
Communities & Local Government,DCLG,13/08/2010,Area Based Grants,"Local Gov & Reg(LG DEL,AME, RfR2)",DARTFORD BC,5000137561,"2,113.00"
Communities & Local Government,DCLG,13/08/2010,Area Based Grants,"Local Gov & Reg(LG DEL,AME, RfR2)",DAVENTRY DC,5000137562,"2,516.00"
Communities & Local Government,DCLG,13/08/2010,Area Based Grants,"Local Gov & Reg(LG DEL,AME, RfR2)",DERBYSHIRE DALES DC,5000137563,"2,516.00"
Communities & Local Government,DCLG,13/08/2010,Area Based Grants,"Local Gov & Reg(LG DEL,AME, RfR2)",EAST CAMBRIDGESHIRE DC,5000137565,"2,516.00"
Communities & Local Government,DCLG,13/08/2010,Area Based Grants,"Local Gov & Reg(LG DEL,AME, RfR2)",EAST DEVON DC,5000137566,"3,216.00"
Communities & Local Government,DCLG,13/08/2010,Area Based Grants,"Local Gov & Reg(LG DEL,AME, RfR2)",EAST HAMPSHIRE DC,5000137567,"2,516.00"
Communities & Local Government,DCLG,13/08/2010,Area Based Grants,"Local Gov & Reg(LG DEL,AME, RfR2)",EAST HERTFORDSHIRE DC,5000137568,"2,516.00"
Communities & Local Government,DCLG,13/08/2010,Area Based Grants,"Local Gov & Reg(LG DEL,AME, RfR2)",EAST LINDSEY DC,5000137569,"2,516.00"
Communities & Local Government,DCLG,13/08/2010,Area Based Grants,"Local Gov & Reg(LG DEL,AME, RfR2)",EAST NORTHAMPTONSHIRE COUNCIL,5000137570,"2,516.00"
Communities & Local Government,DCLG,13/08/2010,Area Based Grants,"Local Gov & Reg(LG DEL,AME, RfR2)",EAST RIDING OF YORKS (HSG),5000137571,"991,710.00"
Communities & Local Government,DCLG,13/08/2010,Area Based Grants,"Local Gov & Reg(LG DEL,AME, RfR2)",EDEN DC (HSG),5000137572,"2,516.00"
Communities & Local Government,DCLG,13/08/2010,Area Based Grants,"Local Gov & Reg(LG DEL,AME, RfR2)",ELMBRIDGE BC (HSG),5000137573,"2,516.00"
Communities & Local Government,DCLG,13/08/2010,Area Based Grants,"Local Gov & Reg(LG DEL,AME, RfR2)",FAREHAM BC,5000137574,"3,216.00"
Communities & Local Government,DCLG,13/08/2010,Area Based Grants,"Local Gov & Reg(LG DEL,AME, RfR2)",FENLAND DC,5000137575,"27,162.00"
Communities & Local Government,DCLG,13/08/2010,Area Based Grants,"Local Gov & Reg(LG DEL,AME, RfR2)",FOREST HEATH DISTRICT COUNCIL,5000137576,"2,516.00"
Communities & Local Government,DCLG,13/08/2010,Area Based Grants,"Local Gov & Reg(LG DEL,AME, RfR2)",FOREST OF DEAN DC,5000137577,"2,516.00"
Communities & Local Government,DCLG,13/08/2010,Area Based Grants,"Local Gov & Reg(LG DEL,AME, RfR2)",GUILDFORD BC,5000137578,"3,216.00"
Communities & Local Government,DCLG,13/08/2010,Area Based Grants,"Local Gov & Reg(LG DEL,AME, RfR2)",HALTON BC (HSG),5000137579,"975,059.00"
Communities & Local Government,DCLG,13/08/2010,Area Based Grants,"Local Gov & Reg(LG DEL,AME, RfR2)",HAMBLETON DC (HSG),5000137580,"2,516.00"
Communities & Local Government,DCLG,13/08/2010,Area Based Grants,"Local Gov & Reg(LG DEL,AME, RfR2)",HARBOROUGH DC (HSG),5000137581,"2,516.00"
Communities & Local Government,DCLG,13/08/2010,Area Based Grants,"Local Gov & Reg(LG DEL,AME, RfR2)",HARROGATE BC,5000137582,"3,216.00"
Communities & Local Government,DCLG,13/08/2010,Area Based Grants,"Local Gov & Reg(LG DEL,AME, RfR2)",HEREFORDSHIRE COUNCIL,5000137583,"821,237.00"
Communities & Local Government,DCLG,13/08/2010,Area Based Grants,"Local Gov & Reg(LG DEL,AME, RfR2)",HIGH PEAK BC,5000137584,"3,216.00"
Communities & Local Government,DCLG,13/08/2010,Area Based Grants,"Local Gov & Reg(LG DEL,AME, RfR2)",HINCKLEY & BOSWORTH BC,5000137585,"3,216.00"
Communities & Local Government,DCLG,13/08/2010,Area Based Grants,"Local Gov & Reg(LG DEL,AME, RfR2)",HORSHAM DC,5000137586,"2,516.00"
Communities & Local Government,DCLG,13/08/2010,Area Based Grants,"Local Gov & Reg(LG DEL,AME, RfR2)",HUNTINGDONSHIRE DC,5000137587,"1,414.00"
Communities & Local Government,DCLG,13/08/2010,Area Based Grants,"Local Gov & Reg(LG DEL,AME, RfR2)",KINGSTON UPON THAMES  (HSG),5000137588,"508,331.00"
Communities & Local Government,DCLG,13/08/2010,Area Based Grants,"Local Gov & Reg(LG DEL,AME, RfR2)",KIRKLEES COUNCIL (HSG),5000137589,"1,319,335.00"
Communities & Local Government,DCLG,13/08/2010,Area Based Grants,"Local Gov & Reg(LG DEL,AME, RfR2)",LANCASTER CITY CNCL,5000137590,"2,113.00"
Communities & Local Government,DCLG,13/08/2010,Area Based Grants,"Local Gov & Reg(LG DEL,AME, RfR2)",LEICESTER CITY CNCL (HSG),5000137591,"1,957,014.00"
Communities & Local Government,DCLG,13/08/2010,Area Based Grants,"Local Gov & Reg(LG DEL,AME, RfR2)",LEWES DC,5000137592,"3,216.00"
Communities & Local Government,DCLG,13/08/2010,Area Based Grants,"Local Gov & Reg(LG DEL,AME, RfR2)",LEWISHAM LB (HSG),5000137593,"1,891,187.00"
Communities & Local Government,DCLG,13/08/2010,Area Based Grants,"Local Gov & Reg(LG DEL,AME, RfR2)",MAIDSTONE BC,5000137596,"2,516.00"
Communities & Local Government,DCLG,13/08/2010,Area Based Grants,"Local Gov & Reg(LG DEL,AME, RfR2)",MALDON DC,5000137597,"2,516.00"
Communities & Local Government,DCLG,13/08/2010,Area Based Grants,"Local Gov & Reg(LG DEL,AME, RfR2)",MANCHESTER CITY CNCL (HSG),5000137598,"4,914,752.00"
Communities & Local Government,DCLG,13/08/2010,Area Based Grants,"Local Gov & Reg(LG DEL,AME, RfR2)",MEDWAY TOWNS D C (HSG),5000137599,"690,518.00"
Communities & Local Government,DCLG,13/08/2010,Area Based Grants,"Local Gov & Reg(LG DEL,AME, RfR2)",MELTON BC,5000137600,"3,216.00"
Communities & Local Government,DCLG,13/08/2010,Area Based Grants,"Local Gov & Reg(LG DEL,AME, RfR2)",MENDIP DISTRICT COUNCIL,5000137601,"1,414.00"
Communities & Local Government,DCLG,13/08/2010,Area Based Grants,"Local Gov & Reg(LG DEL,AME, RfR2)",MID DEVON DC,5000137602,"3,216.00"
Communities & Local Government,DCLG,13/08/2010,Area Based Grants,"Local Gov & Reg(LG DEL,AME, RfR2)",MID SUFFOLK DC,5000137603,"3,216.00"
Communities & Local Government,DCLG,13/08/2010,Area Based Grants,"Local Gov & Reg(LG DEL,AME, RfR2)",MID SUSSEX DC,5000137604,"2,516.00"
Communities & Local Government,DCLG,13/08/2010,Area Based Grants,"Local Gov & Reg(LG DEL,AME, RfR2)",MOLE VALLEY DC,5000137605,"2,516.00"
Communities & Local Government,DCLG,13/08/2010,Area Based Grants,"Local Gov & Reg(LG DEL,AME, RfR2)",NEW FOREST DC,5000137606,"3,216.00"
Communities & Local Government,DCLG,13/08/2010,Area Based Grants,"Local Gov & Reg(LG DEL,AME, RfR2)",NEWARK & SHERWOOD DC (HSG),5000137607,"3,216.00"
Communities & Local Government,DCLG,13/08/2010,Area Based Grants,"Local Gov & Reg(LG DEL,AME, RfR2)",NORTH DEVON DC,5000137608,"27,099.00"
Communities & Local Government,DCLG,13/08/2010,Area Based Grants,"Local Gov & Reg(LG DEL,AME, RfR2)",NORTH DORSET DC,5000137609,"2,516.00"
Communities & Local Government,DCLG,13/08/2010,Area Based Grants,"Local Gov & Reg(LG DEL,AME, RfR2)",NORTH EAST LINCOLN DC (HSG),5000137610,"817,250.00"
Communities & Local Government,DCLG,13/08/2010,Area Based Grants,"Local Gov & Reg(LG DEL,AME, RfR2)",NORTH HERTS DC (HOUSING) (HSG),5000137611,"2,516.00"
Communities & Local Government,DCLG,13/08/2010,Area Based Grants,"Local Gov & Reg(LG DEL,AME, RfR2)",NORTH LINCOLNSHIRE DC (HSG),5000137612,"588,230.00"
Communities & Local Government,DCLG,13/08/2010,Area Based Grants,"Local Gov & Reg(LG DEL,AME, RfR2)",NORTH NORFOLK DC,5000137613,"2,516.00"
Communities & Local Government,DCLG,13/08/2010,Area Based Grants,"Local Gov & Reg(LG DEL,AME, RfR2)",NORTH WARWICKSHIRE BC,5000137614,"3,216.00"
Communities & Local Government,DCLG,13/08/2010,Area Based Grants,"Local Gov & Reg(LG DEL,AME, RfR2)",NORTH WEST LEICESTER DC,5000137615,"3,216.00"
Communities & Local Government,DCLG,13/08/2010,Area Based Grants,"Local Gov & Reg(LG DEL,AME, RfR2)",OADBY & WIGSTON BC (HSG),5000137616,"3,216.00"
Communities & Local Government,DCLG,13/08/2010,Area Based Grants,"Local Gov & Reg(LG DEL,AME, RfR2)",POOLE BC (HSG),5000137617,"448,071.00"
Communities & Local Government,DCLG,13/08/2010,Area Based Grants,"Local Gov & Reg(LG DEL,AME, RfR2)",PURBECK DC,5000137618,"2,516.00"
Communities & Local Government,DCLG,13/08/2010,Area Based Grants,"Local Gov & Reg(LG DEL,AME, RfR2)",RIBBLE VALLEY BC,5000137619,"2,516.00"
Communities & Local Government,DCLG,13/08/2010,Area Based Grants,"Local Gov & Reg(LG DEL,AME, RfR2)",RICHMONDSHIRE DC,5000137620,"3,216.00"
Communities & Local Government,DCLG,13/08/2010,Area Based Grants,"Local Gov & Reg(LG DEL,AME, RfR2)",ROTHER DC (HSG),5000137621,"2,516.00"
Communities & Local Government,DCLG,13/08/2010,Area Based Grants,"Local Gov & Reg(LG DEL,AME, RfR2)",RUSHCLIFFE BC,5000137622,"2,516.00"
Communities & Local Government,DCLG,13/08/2010,Area Based Grants,"Local Gov & Reg(LG DEL,AME, RfR2)",RYEDALE DC,5000137623,"2,516.00"
Communities & Local Government,DCLG,13/08/2010,Area Based Grants,"Local Gov & Reg(LG DEL,AME, RfR2)",SCARBOROUGH BC,5000137624,"1,414.00"
Communities & Local Government,DCLG,13/08/2010,Area Based Grants,"Local Gov & Reg(LG DEL,AME, RfR2)",SEDGEMOOR DC,5000137625,"2,113.00"
Communities & Local Government,DCLG,13/08/2010,Area Based Grants,"Local Gov & Reg(LG DEL,AME, RfR2)",SELBY DC,5000137626,"2,113.00"
Communities & Local Government,DCLG,13/08/2010,Area Based Grants,"Local Gov & Reg(LG DEL,AME, RfR2)",SEVENOAKS DC,5000137627,"2,516.00"
Communities & Local Government,DCLG,13/08/2010,Area Based Grants,"Local Gov & Reg(LG DEL,AME, RfR2)",SHEPWAY DISTRICT COUNCIL,5000137628,"34,715.00"
Communities & Local Government,DCLG,13/08/2010,Area Based Grants,"Local Gov & Reg(LG DEL,AME, RfR2)",SOUTH BUCKS DC (HSG),5000137629,"2,516.00"
Communities & Local Government,DCLG,13/08/2010,Area Based Grants,"Local Gov & Reg(LG DEL,AME, RfR2)",SOUTH CAMBRIDGESHIRE DC,5000137630,"3,216.00"
Communities & Local Government,DCLG,13/08/2010,Area Based Grants,"Local Gov & Reg(LG DEL,AME, RfR2)",SOUTH DERBYSHIRE D C,5000137631,"3,216.00"
Communities & Local Government,DCLG,13/08/2010,Area Based Grants,"Local Gov & Reg(LG DEL,AME, RfR2)",SOUTH GLOUCESTERSHIRE DC (HSG),5000137632,"640,599.00"
Communities & Local Government,DCLG,13/08/2010,Area Based Grants,"Local Gov & Reg(LG DEL,AME, RfR2)",SOUTH HAMS DC,5000137633,"2,516.00"
Communities & Local Government,DCLG,13/08/2010,Area Based Grants,"Local Gov & Reg(LG DEL,AME, RfR2)",SOUTH KESTEVEN DC (HSG),5000137634,"2,113.00"
Communities & Local Government,DCLG,13/08/2010,Area Based Grants,"Local Gov & Reg(LG DEL,AME, RfR2)",SOUTH LAKELAND DC,5000137635,"3,216.00"
Communities & Local Government,DCLG,13/08/2010,Area Based Grants,"Local Gov & Reg(LG DEL,AME, RfR2)",SOUTH NORFOLK DC,5000137636,"2,516.00"
Communities & Local Government,DCLG,13/08/2010,Area Based Grants,"Local Gov & Reg(LG DEL,AME, RfR2)",SOUTH NORTHAMPTONSHIRE DC,5000137637,"2,516.00"
Communities & Local Government,DCLG,13/08/2010,Area Based Grants,"Local Gov & Reg(LG DEL,AME, RfR2)",SOUTH OXFORDSHIRE DC,5000137638,"2,516.00"
Communities & Local Government,DCLG,13/08/2010,Area Based Grants,"Local Gov & Reg(LG DEL,AME, RfR2)",SOUTH SOMERSET DC,5000137639,"1,414.00"
Communities & Local Government,DCLG,13/08/2010,Area Based Grants,"Local Gov & Reg(LG DEL,AME, RfR2)",SOUTH STAFFORDSHIRE DC,5000137640,"2,516.00"
Communities & Local Government,DCLG,13/08/2010,Area Based Grants,"Local Gov & Reg(LG DEL,AME, RfR2)",SPELTHORNE DC,5000137641,"2,516.00"
Communities & Local Government,DCLG,13/08/2010,Area Based Grants,"Local Gov & Reg(LG DEL,AME, RfR2)",ST EDMUNDSBURY (HSG),5000137642,"2,516.00"
Communities & Local Government,DCLG,13/08/2010,Area Based Grants,"Local Gov & Reg(LG DEL,AME, RfR2)",STAFFORDSHIRE MOORLANDS DC,5000137643,"2,516.00"
Communities & Local Government,DCLG,13/08/2010,Area Based Grants,"Local Gov & Reg(LG DEL,AME, RfR2)",STOCKTON-ON-TEES BC (HSG),5000137644,"644,464.00"
Communities & Local Government,DCLG,13/08/2010,Area Based Grants,"Local Gov & Reg(LG DEL,AME, RfR2)",STROUD DC (HSG),5000137645,"3,216.00"
Communities & Local Government,DCLG,13/08/2010,Area Based Grants,"Local Gov & Reg(LG DEL,AME, RfR2)",SUFFOLK CC (SOCIAL CARE SERV) (H,5000137646,"2,316,645.00"
Communities & Local Government,DCLG,13/08/2010,Area Based Grants,"Local Gov & Reg(LG DEL,AME, RfR2)",SUFFOLK COASTAL DC (HSG),5000137647,"2,516.00"
Communities & Local Government,DCLG,13/08/2010,Area Based Grants,"Local Gov & Reg(LG DEL,AME, RfR2)",TANDRIDGE DC,5000137648,"3,216.00"
Communities & Local Government,DCLG,13/08/2010,Area Based Grants,"Local Gov & Reg(LG DEL,AME, RfR2)",TAUNTON DEANE BC,5000137649,"3,216.00"
Communities & Local Government,DCLG,13/08/2010,Area Based Grants,"Local Gov & Reg(LG DEL,AME, RfR2)",TEIGNBRIDGE DC,5000137650,"2,516.00"
Communities & Local Government,DCLG,13/08/2010,Area Based Grants,"Local Gov & Reg(LG DEL,AME, RfR2)",TENDRING DC,5000137651,"1,288.00"
Communities & Local Government,DCLG,13/08/2010,Area Based Grants,"Local Gov & Reg(LG DEL,AME, RfR2)",TEST VALLEY BC,5000137652,"2,516.00"
Communities & Local Government,DCLG,13/08/2010,Area Based Grants,"Local Gov & Reg(LG DEL,AME, RfR2)",TEWKESBURY BC,5000137653,"2,516.00"
Communities & Local Government,DCLG,13/08/2010,Area Based Grants,"Local Gov & Reg(LG DEL,AME, RfR2)",THANET DC,5000137654,"68,589.00"
Communities & Local Government,DCLG,13/08/2010,Area Based Grants,"Local Gov & Reg(LG DEL,AME, RfR2)",TONBRIDGE & MALLING BC,5000137655,"2,516.00"
Communities & Local Government,DCLG,13/08/2010,Area Based Grants,"Local Gov & Reg(LG DEL,AME, RfR2)",TORRIDGE DC,5000137656,"2,516.00"
Communities & Local Government,DCLG,13/08/2010,Area Based Grants,"Local Gov & Reg(LG DEL,AME, RfR2)",TOWER HAMLETS LB (HSG),5000137657,"2,118,313.00"
Communities & Local Government,DCLG,13/08/2010,Area Based Grants,"Local Gov & Reg(LG DEL,AME, RfR2)",TUNBRIDGE WELLS BC,5000137659,"2,516.00"
Communities & Local Government,DCLG,13/08/2010,Area Based Grants,"Local Gov & Reg(LG DEL,AME, RfR2)",UTTLESFORD DC,5000137660,"3,216.00"
Communities & Local Government,DCLG,13/08/2010,Area Based Grants,"Local Gov & Reg(LG DEL,AME, RfR2)",VALE OF WHITE HORSE DC,5000137661,"2,516.00"
Communities & Local Government,DCLG,13/08/2010,Area Based Grants,"Local Gov & Reg(LG DEL,AME, RfR2)",WAVENEY DISTRICT COUNCIL,5000137662,"2,113.00"
Communities & Local Government,DCLG,13/08/2010,Area Based Grants,"Local Gov & Reg(LG DEL,AME, RfR2)",WAVERLEY BC V177,5000137663,"3,216.00"
Communities & Local Government,DCLG,13/08/2010,Area Based Grants,"Local Gov & Reg(LG DEL,AME, RfR2)",WEALDEN DC,5000137664,"3,216.00"
Communities & Local Government,DCLG,13/08/2010,Area Based Grants,"Local Gov & Reg(LG DEL,AME, RfR2)",WELWYN HATFIELD COUNCIL,5000137665,"3,216.00"
Communities & Local Government,DCLG,13/08/2010,Area Based Grants,"Local Gov & Reg(LG DEL,AME, RfR2)",WEST DEVON BC,5000137666,"2,516.00"
Communities & Local Government,DCLG,13/08/2010,Area Based Grants,"Local Gov & Reg(LG DEL,AME, RfR2)",WEST DORSET DC,5000137667,"2,516.00"
Communities & Local Government,DCLG,13/08/2010,Area Based Grants,"Local Gov & Reg(LG DEL,AME, RfR2)",WEST LINDSEY DC,5000137668,"2,516.00"
Communities & Local Government,DCLG,13/08/2010,Area Based Grants,"Local Gov & Reg(LG DEL,AME, RfR2)",WEST OXFORDSHIRE DC,5000137669,"2,516.00"
Communities & Local Government,DCLG,13/08/2010,Area Based Grants,"Local Gov & Reg(LG DEL,AME, RfR2)",WEST SOMERSET DC,5000137670,"12,685.00"
Communities & Local Government,DCLG,13/08/2010,Area Based Grants,"Local Gov & Reg(LG DEL,AME, RfR2)",WINCHESTER CITY CNCL,5000137671,"3,216.00"
Communities & Local Government,DCLG,13/08/2010,Area Based Grants,"Local Gov & Reg(LG DEL,AME, RfR2)",WINDSOR & MAIDENHEAD (HSG),5000137672,"239,349.00"
Communities & Local Government,DCLG,13/08/2010,Area Based Grants,"Local Gov & Reg(LG DEL,AME, RfR2)",WYCHAVON DISTRICT COUNCIL,5000137673,"2,516.00"
Communities & Local Government,DCLG,13/08/2010,Area Based Grants,"Local Gov & Reg(LG DEL,AME, RfR2)",WYRE BC,5000137674,"2,516.00"
Communities & Local Government,DCLG,13/08/2010,Area Based Grants,"Local Gov & Reg(LG DEL,AME, RfR2)",ADUR DC,5000137675,"3,216.00"
Communities & Local Government,DCLG,13/08/2010,Area Based Grants,"Local Gov & Reg(LG DEL,AME, RfR2)",ALLERDALE BC,5000137676,"2,516.00"
Communities & Local Government,DCLG,13/08/2010,Area Based Grants,"Local Gov & Reg(LG DEL,AME, RfR2)",AMBER VALLEY BC,5000137677,"1,414.00"
Communities & Local Government,DCLG,13/08/2010,Area Based Grants,"Local Gov & Reg(LG DEL,AME, RfR2)",BARNET LBC,5000137678,"1,069,184.00"
Communities & Local Government,DCLG,13/08/2010,Area Based Grants,"Local Gov & Reg(LG DEL,AME, RfR2)",BARNSLEY MBC,5000137679,"1,030,198.00"
Communities & Local Government,DCLG,13/08/2010,Area Based Grants,"Local Gov & Reg(LG DEL,AME, RfR2)",BARROW BC,5000137680,"135,819.00"
Communities & Local Government,DCLG,13/08/2010,Area Based Grants,"Local Gov & Reg(LG DEL,AME, RfR2)",BASILDON DISTRICT COUNCIL,5000137681,"1,157.00"
Communities & Local Government,DCLG,13/08/2010,Area Based Grants,"Local Gov & Reg(LG DEL,AME, RfR2)",BASINGSTOKE & DEANE BC,5000137682,"2,516.00"
Communities & Local Government,DCLG,13/08/2010,Area Based Grants,"Local Gov & Reg(LG DEL,AME, RfR2)",BIRMINGHAM CITY CNCL,5000137683,"7,522,277.00"
Communities & Local Government,DCLG,13/08/2010,Area Based Grants,"Local Gov & Reg(LG DEL,AME, RfR2)",BLACKBURN WITH DARWEN BC,5000137686,"707,880.00"
Communities & Local Government,DCLG,13/08/2010,Area Based Grants,"Local Gov & Reg(LG DEL,AME, RfR2)",BLACKPOOL BC,5000137687,"943,057.00"
Communities & Local Government,DCLG,13/08/2010,Area Based Grants,"Local Gov & Reg(LG DEL,AME, RfR2)",BOLSOVER DC,5000137688,"110,592.00"
Communities & Local Government,DCLG,13/08/2010,Area Based Grants,"Local Gov & Reg(LG DEL,AME, RfR2)",BOLTON MBC,5000137689,"1,185,636.00"
Communities & Local Government,DCLG,13/08/2010,Area Based Grants,"Local Gov & Reg(LG DEL,AME, RfR2)",BOURNEMOUTH DC,5000137690,"966,922.00"
Communities & Local Government,DCLG,13/08/2010,Area Based Grants,"Local Gov & Reg(LG DEL,AME, RfR2)",BRACKNELL FOREST DC,5000137691,"210,105.00"
Communities & Local Government,DCLG,13/08/2010,Area Based Grants,"Local Gov & Reg(LG DEL,AME, RfR2)",BRADFORD MBC,5000137692,"2,762,566.00"
Communities & Local Government,DCLG,13/08/2010,Area Based Grants,"Local Gov & Reg(LG DEL,AME, RfR2)",BRENTWOOD BC,5000137693,"3,216.00"
Communities & Local Government,DCLG,13/08/2010,Area Based Grants,"Local Gov & Reg(LG DEL,AME, RfR2)",BRIGHTON & HOVE CITY COUNCIL,5000137694,"1,237,627.00"
Communities & Local Government,DCLG,13/08/2010,Area Based Grants,"Local Gov & Reg(LG DEL,AME, RfR2)",BROMLEY LB,5000137695,"741,723.00"
Communities & Local Government,DCLG,13/08/2010,Area Based Grants,"Local Gov & Reg(LG DEL,AME, RfR2)",BROXBOURNE BC,5000137696,"2,516.00"
Communities & Local Government,DCLG,13/08/2010,Area Based Grants,"Local Gov & Reg(LG DEL,AME, RfR2)",BROXTOWE BC,5000137697,"3,216.00"
Communities & Local Government,DCLG,13/08/2010,Area Based Grants,"Local Gov & Reg(LG DEL,AME, RfR2)",BUCKINGHAMSHIRE CC,5000137698,"928,253.00"
Communities & Local Government,DCLG,13/08/2010,Area Based Grants,"Local Gov & Reg(LG DEL,AME, RfR2)",BURNLEY BC,5000137699,"103,265.00"
Communities & Local Government,DCLG,13/08/2010,Area Based Grants,"Local Gov & Reg(LG DEL,AME, RfR2)",GMRB,5000137700,"659,656.00"
Communities & Local Government,DCLG,13/08/2010,Area Based Grants,"Local Gov & Reg(LG DEL,AME, RfR2)",CALDERDALE MBC,5000137701,"774,383.00"
Communities & Local Government,DCLG,13/08/2010,Area Based Grants,"Local Gov & Reg(LG DEL,AME, RfR2)",CAMBRIDGESHIRE COUNTY CNCL,5000137702,"1,603,310.00"
Communities & Local Government,DCLG,13/08/2010,Area Based Grants,"Local Gov & Reg(LG DEL,AME, RfR2)",CAMDEN LB,5000137703,"2,919,628.00"
Communities & Local Government,DCLG,13/08/2010,Area Based Grants,"Local Gov & Reg(LG DEL,AME, RfR2)",CANNOCK CHASE DC,5000137704,"3,216.00"
Communities & Local Government,DCLG,13/08/2010,Area Based Grants,"Local Gov & Reg(LG DEL,AME, RfR2)",CASTLE POINT BC,5000137705,"3,216.00"
Communities & Local Government,DCLG,13/08/2010,Area Based Grants,"Local Gov & Reg(LG DEL,AME, RfR2)",CHELMSFORD BC,5000137706,"2,516.00"
Communities & Local Government,DCLG,13/08/2010,Area Based Grants,"Local Gov & Reg(LG DEL,AME, RfR2)",CHELTENHAM BC,5000137707,"3,216.00"
Communities & Local Government,DCLG,13/08/2010,Area Based Grants,"Local Gov & Reg(LG DEL,AME, RfR2)",CHESTERFIELD BC,5000137708,"72,790.00"
Communities & Local Government,DCLG,13/08/2010,Area Based Grants,"Local Gov & Reg(LG DEL,AME, RfR2)",CHORLEY DC,5000137709,"2,516.00"
Communities & Local Government,DCLG,13/08/2010,Area Based Grants,"Local Gov & Reg(LG DEL,AME, RfR2)",COLCHESTER BC,5000137710,"3,216.00"
Communities & Local Government,DCLG,13/08/2010,Area Based Grants,"Local Gov & Reg(LG DEL,AME, RfR2)",COVENTRY CITY CNCL,5000137711,"1,402,800.00"
Communities & Local Government,DCLG,13/08/2010,Area Based Grants,"Local Gov & Reg(LG DEL,AME, RfR2)",CROYDON LB,5000137714,"1,066,128.00"
Communities & Local Government,DCLG,13/08/2010,Area Based Grants,"Local Gov & Reg(LG DEL,AME, RfR2)",CUMBRIA COUNTY CNCL,5000137715,"1,587,621.00"
Communities & Local Government,DCLG,13/08/2010,Area Based Grants,"Local Gov & Reg(LG DEL,AME, RfR2)",DACORUM BC,5000137716,"3,216.00"
Communities & Local Government,DCLG,13/08/2010,Area Based Grants,"Local Gov & Reg(LG DEL,AME, RfR2)",DARLINGTON BC,5000137717,"425,308.00"
Communities & Local Government,DCLG,13/08/2010,Area Based Grants,"Local Gov & Reg(LG DEL,AME, RfR2)",DERBY CITY CNCL,5000137718,"1,111,086.00"
Communities & Local Government,DCLG,13/08/2010,Area Based Grants,"Local Gov & Reg(LG DEL,AME, RfR2)",DERBYSHIRE COUNTYCOUNCIL,5000137721,"2,591,987.00"
Communities & Local Government,DCLG,13/08/2010,Area Based Grants,"Local Gov & Reg(LG DEL,AME, RfR2)",DEVON COUNTY CNCL,5000137722,"2,972,921.00"
Communities & Local Government,DCLG,13/08/2010,Area Based Grants,"Local Gov & Reg(LG DEL,AME, RfR2)",DONCASTER MBC,5000137723,"1,563,622.00"
Communities & Local Government,DCLG,13/08/2010,Area Based Grants,"Local Gov & Reg(LG DEL,AME, RfR2)",DORSET COUNTY CNCL,5000137726,"1,168,845.00"
Communities & Local Government,DCLG,13/08/2010,Area Based Grants,"Local Gov & Reg(LG DEL,AME, RfR2)",DUDLEY MBC,5000137727,"958,146.00"
Communities & Local Government,DCLG,13/08/2010,Area Based Grants,"Local Gov & Reg(LG DEL,AME, RfR2)",EALING LB,5000137728,"1,317,627.00"
Communities & Local Government,DCLG,13/08/2010,Area Based Grants,"Local Gov & Reg(LG DEL,AME, RfR2)",EAST DORSET DC,5000137729,"2,516.00"
Communities & Local Government,DCLG,13/08/2010,Area Based Grants,"Local Gov & Reg(LG DEL,AME, RfR2)",EAST SUSSEX COUNTY CNCL,5000137730,"1,808,304.00"
Communities & Local Government,DCLG,13/08/2010,Area Based Grants,"Local Gov & Reg(LG DEL,AME, RfR2)",EASTBOURNE BC,5000137731,"3,216.00"
Communities & Local Government,DCLG,13/08/2010,Area Based Grants,"Local Gov & Reg(LG DEL,AME, RfR2)",EASTLEIGH BOROUGH COUNCIL,5000137732,"2,516.00"
Communities & Local Government,DCLG,13/08/2010,Area Based Grants,"Local Gov & Reg(LG DEL,AME, RfR2)",ENFIELD LB,5000137733,"1,287,918.00"
Communities & Local Government,DCLG,13/08/2010,Area Based Grants,"Local Gov & Reg(LG DEL,AME, RfR2)",EPPING FOREST DC,5000137734,"3,216.00"
Communities & Local Government,DCLG,13/08/2010,Area Based Grants,"Local Gov & Reg(LG DEL,AME, RfR2)",EPSOM & EWELL BC,5000137735,"2,516.00"
Communities & Local Government,DCLG,13/08/2010,Area Based Grants,"Local Gov & Reg(LG DEL,AME, RfR2)",EREWASH BC,5000137736,"1,414.00"
Communities & Local Government,DCLG,13/08/2010,Area Based Grants,"Local Gov & Reg(LG DEL,AME, RfR2)",ESSEX COUNTY CNCL,5000137737,"3,744,463.00"
Communities & Local Government,DCLG,13/08/2010,Area Based Grants,"Local Gov & Reg(LG DEL,AME, RfR2)",EXETER CITY CNCL,5000137738,"2,787.00"
Communities & Local Government,DCLG,13/08/2010,Area Based Grants,"Local Gov & Reg(LG DEL,AME, RfR2)",FYLDE BC,5000137739,"2,516.00"
Communities & Local Government,DCLG,13/08/2010,Area Based Grants,"Local Gov & Reg(LG DEL,AME, RfR2)",GATESHEAD MBC,5000137740,"1,002,290.00"
Communities & Local Government,DCLG,13/08/2010,Area Based Grants,"Local Gov & Reg(LG DEL,AME, RfR2)",GEDLING BC,5000137741,"2,516.00"
Communities & Local Government,DCLG,13/08/2010,Area Based Grants,"Local Gov & Reg(LG DEL,AME, RfR2)",GLOUCESTERSHIRE COUNTY CNCL,5000137742,"2,622,562.00"
Communities & Local Government,DCLG,13/08/2010,Area Based Grants,"Local Gov & Reg(LG DEL,AME, RfR2)",GOSPORT BOROUGH COUNCIL,5000137743,"2,113.00"
Communities & Local Government,DCLG,13/08/2010,Area Based Grants,"Local Gov & Reg(LG DEL,AME, RfR2)",GRAVESHAM BC,5000137744,"2,113.00"
Communities & Local Government,DCLG,13/08/2010,Area Based Grants,"Local Gov & Reg(LG DEL,AME, RfR2)",GREAT YARMOUTH BC,5000137745,"86,669.00"
Communities & Local Government,DCLG,13/08/2010,Area Based Grants,"Local Gov & Reg(LG DEL,AME, RfR2)",GREENWICH LB,5000137746,"1,388,648.00"
Communities & Local Government,DCLG,13/08/2010,Area Based Grants,"Local Gov & Reg(LG DEL,AME, RfR2)",LONDON BOROUGH OF HACKNEY,5000137747,"2,799,010.00"
Communities & Local Government,DCLG,13/08/2010,Area Based Grants,"Local Gov & Reg(LG DEL,AME, RfR2)",HAMMERSMITH & FULHAM LB,5000137748,"1,217,212.00"
Communities & Local Government,DCLG,13/08/2010,Area Based Grants,"Local Gov & Reg(LG DEL,AME, RfR2)",HAMPSHIRE COUNTY COUNCIL,5000137751,"3,681,789.00"
Communities & Local Government,DCLG,13/08/2010,Area Based Grants,"Local Gov & Reg(LG DEL,AME, RfR2)",HARINGEY LB,5000137752,"2,215,821.00"
Communities & Local Government,DCLG,13/08/2010,Area Based Grants,"Local Gov & Reg(LG DEL,AME, RfR2)",HARLOW DISTRICT COUNCIL,5000137754,"1,436.00"
Communities & Local Government,DCLG,13/08/2010,Area Based Grants,"Local Gov & Reg(LG DEL,AME, RfR2)",HARROW LB,5000137755,"560,899.00"
Communities & Local Government,DCLG,13/08/2010,Area Based Grants,"Local Gov & Reg(LG DEL,AME, RfR2)",HART DC,5000137756,"2,516.00"
Communities & Local Government,DCLG,13/08/2010,Area Based Grants,"Local Gov & Reg(LG DEL,AME, RfR2)",HARTLEPOOL BOROUGH COUNCIL,5000137757,"650,640.00"
Communities & Local Government,DCLG,13/08/2010,Area Based Grants,"Local Gov & Reg(LG DEL,AME, RfR2)",HASTINGS BC,5000137760,"109,735.00"
Communities & Local Government,DCLG,13/08/2010,Area Based Grants,"Local Gov & Reg(LG DEL,AME, RfR2)",HAVANT BC,5000137761,"1,414.00"
Communities & Local Government,DCLG,13/08/2010,Area Based Grants,"Local Gov & Reg(LG DEL,AME, RfR2)",HAVERING LB,5000137762,"472,481.00"
Communities & Local Government,DCLG,13/08/2010,Area Based Grants,"Local Gov & Reg(LG DEL,AME, RfR2)",HERTFORDSHIRE COUNTY CNCL,5000137763,"2,983,009.00"
Communities & Local Government,DCLG,13/08/2010,Area Based Grants,"Local Gov & Reg(LG DEL,AME, RfR2)",HILLINGDON LB,5000137765,"714,289.00"
Communities & Local Government,DCLG,13/08/2010,Area Based Grants,"Local Gov & Reg(LG DEL,AME, RfR2)",HOUNSLOW LB,5000137766,"697,683.00"
Communities & Local Government,DCLG,13/08/2010,Area Based Grants,"Local Gov & Reg(LG DEL,AME, RfR2)",HYNDBURN BC,5000137767,"55,970.00"
Communities & Local Government,DCLG,13/08/2010,Area Based Grants,"Local Gov & Reg(LG DEL,AME, RfR2)",IPSWICH BC,5000137768,"2,721.00"
Communities & Local Government,DCLG,13/08/2010,Area Based Grants,"Local Gov & Reg(LG DEL,AME, RfR2)",ISLE OF WIGHT CNCL,5000137769,"736,136.00"
Communities & Local Government,DCLG,13/08/2010,Area Based Grants,"Local Gov & Reg(LG DEL,AME, RfR2)",ISLES OF SCILLY COUNCIL,5000137770,"13,390.00"
Communities & Local Government,DCLG,13/08/2010,Area Based Grants,"Local Gov & Reg(LG DEL,AME, RfR2)",ISLINGTON LB,5000137771,"1,941,179.00"
Communities & Local Government,DCLG,13/08/2010,Area Based Grants,"Local Gov & Reg(LG DEL,AME, RfR2)",ROYAL BOROUGH OF KENSINGTON & CHELS,5000137774,"1,043,440.00"
Communities & Local Government,DCLG,13/08/2010,Area Based Grants,"Local Gov & Reg(LG DEL,AME, RfR2)",KENT COUNTY CNCL,5000137775,"4,572,974.00"
Communities & Local Government,DCLG,13/08/2010,Area Based Grants,"Local Gov & Reg(LG DEL,AME, RfR2)",KETTERING BC,5000137776,"3,216.00"
Communities & Local Government,DCLG,13/08/2010,Area Based Grants,"Local Gov & Reg(LG DEL,AME, RfR2)",HULL CITY COUNCIL,5000137777,"1,801,471.00"
Communities & Local Government,DCLG,13/08/2010,Area Based Grants,"Local Gov & Reg(LG DEL,AME, RfR2)",KNOWSLEY MBC,5000137778,"1,354,911.00"
Communities & Local Government,DCLG,13/08/2010,Area Based Grants,"Local Gov & Reg(LG DEL,AME, RfR2)",LONDON BOROUGH OF LAMBETH,5000137781,"2,441,449.00"
Communities & Local Government,DCLG,13/08/2010,Area Based Grants,"Local Gov & Reg(LG DEL,AME, RfR2)",LANCASHIRE COUNTY CNCL,5000137784,"3,939,219.00"
Communities & Local Government,DCLG,13/08/2010,Area Based Grants,"Local Gov & Reg(LG DEL,AME, RfR2)",LEEDS CITY CNCL,5000137785,"3,296,982.00"
Communities & Local Government,DCLG,13/08/2010,Area Based Grants,"Local Gov & Reg(LG DEL,AME, RfR2)",LEICESTERSHIRE COUNTY CNCL,5000137786,"1,278,724.00"
Communities & Local Government,DCLG,13/08/2010,Area Based Grants,"Local Gov & Reg(LG DEL,AME, RfR2)",LICHFIELD DC,5000137787,"2,516.00"
Communities & Local Government,DCLG,13/08/2010,Area Based Grants,"Local Gov & Reg(LG DEL,AME, RfR2)",CITY OF LINCOLN COUNCIL,5000137788,"2,113.00"
Communities & Local Government,DCLG,13/08/2010,Area Based Grants,"Local Gov & Reg(LG DEL,AME, RfR2)",LINCOLNSHIRE COUNTY CNCL,5000137789,"2,796,732.00"
Communities & Local Government,DCLG,13/08/2010,Area Based Grants,"Local Gov & Reg(LG DEL,AME, RfR2)",LIVERPOOL CITY COUNCIL,5000137790,"5,324,569.00"
Communities & Local Government,DCLG,13/08/2010,Area Based Grants,"Local Gov & Reg(LG DEL,AME, RfR2)",LUTON BC,5000137791,"521,004.00"
Communities & Local Government,DCLG,13/08/2010,Area Based Grants,"Local Gov & Reg(LG DEL,AME, RfR2)",MALVERN HILLS DC,5000137794,"2,516.00"
Communities & Local Government,DCLG,13/08/2010,Area Based Grants,"Local Gov & Reg(LG DEL,AME, RfR2)",MANSFIELD DC,5000137795,"2,113.00"
Communities & Local Government,DCLG,13/08/2010,Area Based Grants,"Local Gov & Reg(LG DEL,AME, RfR2)",MERTON LB,5000137796,"467,538.00"
Communities & Local Government,DCLG,13/08/2010,Area Based Grants,"Local Gov & Reg(LG DEL,AME, RfR2)",MIDDLESBROUGH BC,5000137797,"1,029,486.00"
Communities & Local Government,DCLG,13/08/2010,Area Based Grants,"Local Gov & Reg(LG DEL,AME, RfR2)",MILTON KEYNES BC,5000137798,"585,911.00"
Communities & Local Government,DCLG,13/08/2010,Area Based Grants,"Local Gov & Reg(LG DEL,AME, RfR2)",NEWCASTLE UNDER LYME BC,5000137799,"1,414.00"
Communities & Local Government,DCLG,13/08/2010,Area Based Grants,"Local Gov & Reg(LG DEL,AME, RfR2)",NEWCASTLE UPON TYNE DC,5000137800,"2,062,903.00"
Communities & Local Government,DCLG,13/08/2010,Area Based Grants,"Local Gov & Reg(LG DEL,AME, RfR2)",LONDON BOROUGH OF NEWHAM,5000137801,"1,973,603.00"
Communities & Local Government,DCLG,13/08/2010,Area Based Grants,"Local Gov & Reg(LG DEL,AME, RfR2)",NORFOLK COUNTY COUNCIL,5000137802,"2,605,615.00"
Communities & Local Government,DCLG,13/08/2010,Area Based Grants,"Local Gov & Reg(LG DEL,AME, RfR2)",NORTH EAST DERBYSHIRE DC,5000137803,"3,216.00"
Communities & Local Government,DCLG,13/08/2010,Area Based Grants,"Local Gov & Reg(LG DEL,AME, RfR2)",NORTH KESTEVEN DC,5000137804,"3,216.00"
Communities & Local Government,DCLG,13/08/2010,Area Based Grants,"Local Gov & Reg(LG DEL,AME, RfR2)",NORTH SOMERSET DC,5000137805,"862,261.00"
Communities & Local Government,DCLG,13/08/2010,Area Based Grants,"Local Gov & Reg(LG DEL,AME, RfR2)",NORTH TYNESIDE MBC,5000137806,"930,731.00"
Communities & Local Government,DCLG,13/08/2010,Area Based Grants,"Local Gov & Reg(LG DEL,AME, RfR2)",NORTH YORKSHIRE CC (DL7 8AL),5000137807,"2,183,557.00"
Communities & Local Government,DCLG,13/08/2010,Area Based Grants,"Local Gov & Reg(LG DEL,AME, RfR2)",NORTHAMPTONSHIRE COUNTY COUNCIL,5000137808,"1,918,231.00"
Communities & Local Government,DCLG,13/08/2010,Area Based Grants,"Local Gov & Reg(LG DEL,AME, RfR2)",NOTTINGHAM CITY COUNCIL,5000137809,"2,764,292.00"
Communities & Local Government,DCLG,13/08/2010,Area Based Grants,"Local Gov & Reg(LG DEL,AME, RfR2)",NOTTINGHAMSHIRE COUNTY CNCL,5000137810,"2,809,948.00"
Communities & Local Government,DCLG,13/08/2010,Area Based Grants,"Local Gov & Reg(LG DEL,AME, RfR2)",NUNEATON & BEDWORTH BC,5000137811,"1,157.00"
Communities & Local Government,DCLG,13/08/2010,Area Based Grants,"Local Gov & Reg(LG DEL,AME, RfR2)",OLDHAM MBC,5000137812,"1,115,846.00"
Communities & Local Government,DCLG,13/08/2010,Area Based Grants,"Local Gov & Reg(LG DEL,AME, RfR2)",OXFORDSHIRE CC,5000137815,"2,123,490.00"
Communities & Local Government,DCLG,13/08/2010,Area Based Grants,"Local Gov & Reg(LG DEL,AME, RfR2)",PENDLE BC,5000137816,"63,006.00"
Communities & Local Government,DCLG,13/08/2010,Area Based Grants,"Local Gov & Reg(LG DEL,AME, RfR2)",PETERBOROUGH CITY CNCL,5000137817,"573,296.00"
Communities & Local Government,DCLG,13/08/2010,Area Based Grants,"Local Gov & Reg(LG DEL,AME, RfR2)",PLYMOUTH CITY CNCL,5000137818,"1,075,639.00"
Communities & Local Government,DCLG,13/08/2010,Area Based Grants,"Local Gov & Reg(LG DEL,AME, RfR2)",PORTSMOUTH CITY COUNCIL,5000137821,"868,558.00"
Communities & Local Government,DCLG,13/08/2010,Area Based Grants,"Local Gov & Reg(LG DEL,AME, RfR2)",PRESTON BC,5000137822,"133,673.00"
Communities & Local Government,DCLG,13/08/2010,Area Based Grants,"Local Gov & Reg(LG DEL,AME, RfR2)",READING BC,5000137823,"484,876.00"
Communities & Local Government,DCLG,13/08/2010,Area Based Grants,"Local Gov & Reg(LG DEL,AME, RfR2)",LONDON BOROUGH OF REDBRIDGE,5000137824,"740,605.00"
Communities & Local Government,DCLG,13/08/2010,Area Based Grants,"Local Gov & Reg(LG DEL,AME, RfR2)",REDCAR & CLEVELAND BOROUGH COUNCIL,5000137825,"586,008.00"
Communities & Local Government,DCLG,13/08/2010,Area Based Grants,"Local Gov & Reg(LG DEL,AME, RfR2)",REDDITCH BC,5000137826,"2,113.00"
Communities & Local Government,DCLG,13/08/2010,Area Based Grants,"Local Gov & Reg(LG DEL,AME, RfR2)",REIGATE & BANSTEAD BC,5000137827,"2,516.00"
Communities & Local Government,DCLG,13/08/2010,Area Based Grants,"Local Gov & Reg(LG DEL,AME, RfR2)",RICHMOND UPON THAMES LB,5000137828,"416,803.00"
Communities & Local Government,DCLG,13/08/2010,Area Based Grants,"Local Gov & Reg(LG DEL,AME, RfR2)",ROCHDALE MBC,5000137829,"1,706,537.00"
Communities & Local Government,DCLG,13/08/2010,Area Based Grants,"Local Gov & Reg(LG DEL,AME, RfR2)",ROCHFORD DISTRICT COUNCIL,5000137832,"2,516.00"
Communities & Local Government,DCLG,13/08/2010,Area Based Grants,"Local Gov & Reg(LG DEL,AME, RfR2)",ROTHERHAM MBC,5000137833,"881,282.00"
Communities & Local Government,DCLG,13/08/2010,Area Based Grants,"Local Gov & Reg(LG DEL,AME, RfR2)",RUGBY BC,5000137834,"3,216.00"
Communities & Local Government,DCLG,13/08/2010,Area Based Grants,"Local Gov & Reg(LG DEL,AME, RfR2)",RUNNYMEDE BOROUGH COUNCIL,5000137835,"3,216.00"
Communities & Local Government,DCLG,13/08/2010,Area Based Grants,"Local Gov & Reg(LG DEL,AME, RfR2)",RUTLAND CC,5000137837,"98,860.00"
Communities & Local Government,DCLG,13/08/2010,Area Based Grants,"Local Gov & Reg(LG DEL,AME, RfR2)",SALFORD CITY CNCL,5000137838,"1,810,734.00"
Communities & Local Government,DCLG,13/08/2010,Area Based Grants,"Local Gov & Reg(LG DEL,AME, RfR2)",SANDWELL MBC,5000137841,"1,696,673.00"
Communities & Local Government,DCLG,13/08/2010,Area Based Grants,"Local Gov & Reg(LG DEL,AME, RfR2)",SEFTON MBC,5000137842,"1,470,777.00"
Communities & Local Government,DCLG,13/08/2010,Area Based Grants,"Local Gov & Reg(LG DEL,AME, RfR2)",SHEFFIELD CITY CNCL,5000137843,"3,231,265.00"
Communities & Local Government,DCLG,13/08/2010,Area Based Grants,"Local Gov & Reg(LG DEL,AME, RfR2)",SLOUGH BOROUGH COUNCIL,5000137845,"381,706.00"
Communities & Local Government,DCLG,13/08/2010,Area Based Grants,"Local Gov & Reg(LG DEL,AME, RfR2)",SOLIHULL MBC,5000137846,"478,250.00"
Communities & Local Government,DCLG,13/08/2010,Area Based Grants,"Local Gov & Reg(LG DEL,AME, RfR2)",SOMERSET COUNTY CNCL,5000137847,"1,988,018.00"
Communities & Local Government,DCLG,13/08/2010,Area Based Grants,"Local Gov & Reg(LG DEL,AME, RfR2)",SOUTH RIBBLE BC,5000137848,"2,516.00"
Communities & Local Government,DCLG,13/08/2010,Area Based Grants,"Local Gov & Reg(LG DEL,AME, RfR2)",SOUTH TYNESIDE COUNCIL,5000137849,"901,584.00"
Communities & Local Government,DCLG,13/08/2010,Area Based Grants,"Local Gov & Reg(LG DEL,AME, RfR2)",SOUTHAMPTON CITY CNCL,5000137850,"968,347.00"
Communities & Local Government,DCLG,13/08/2010,Area Based Grants,"Local Gov & Reg(LG DEL,AME, RfR2)",SOUTHEND ON SEA BC,5000137853,"610,153.00"
Communities & Local Government,DCLG,13/08/2010,Area Based Grants,"Local Gov & Reg(LG DEL,AME, RfR2)",SOUTHWARK LB,5000137854,"2,322,351.00"
Communities & Local Government,DCLG,13/08/2010,Area Based Grants,"Local Gov & Reg(LG DEL,AME, RfR2)",ST HELENS MBC,5000137855,"1,177,367.00"
Communities & Local Government,DCLG,13/08/2010,Area Based Grants,"Local Gov & Reg(LG DEL,AME, RfR2)",STAFFORD BC,5000137856,"2,516.00"
Communities & Local Government,DCLG,13/08/2010,Area Based Grants,"Local Gov & Reg(LG DEL,AME, RfR2)",STAFFORDSHIRE COUNTY CNCL,5000137857,"2,098,455.00"
Communities & Local Government,DCLG,13/08/2010,Area Based Grants,"Local Gov & Reg(LG DEL,AME, RfR2)",STEVENAGE BC,5000137858,"3,216.00"
Communities & Local Government,DCLG,13/08/2010,Area Based Grants,"Local Gov & Reg(LG DEL,AME, RfR2)",STOCKPORT MBC,5000137859,"946,625.00"
Communities & Local Government,DCLG,13/08/2010,Area Based Grants,"Local Gov & Reg(LG DEL,AME, RfR2)",STOKE ON TRENT CITY COUNCIL,5000137860,"1,237,853.00"
Communities & Local Government,DCLG,13/08/2010,Area Based Grants,"Local Gov & Reg(LG DEL,AME, RfR2)",STRATFORD ON AVON DC,5000137861,"2,516.00"
Communities & Local Government,DCLG,13/08/2010,Area Based Grants,"Local Gov & Reg(LG DEL,AME, RfR2)",SURREY COUNTY CNCL,5000137862,"2,660,426.00"
Communities & Local Government,DCLG,13/08/2010,Area Based Grants,"Local Gov & Reg(LG DEL,AME, RfR2)",SURREY HEATH BC,5000137863,"2,516.00"
Communities & Local Government,DCLG,13/08/2010,Area Based Grants,"Local Gov & Reg(LG DEL,AME, RfR2)",SUTTON LB,5000137864,"505,403.00"
Communities & Local Government,DCLG,13/08/2010,Area Based Grants,"Local Gov & Reg(LG DEL,AME, RfR2)",SWINDON BC,5000137866,"594,379.00"
Communities & Local Government,DCLG,13/08/2010,Area Based Grants,"Local Gov & Reg(LG DEL,AME, RfR2)",TAMESIDE MBC,5000137867,"981,860.00"
Communities & Local Government,DCLG,13/08/2010,Area Based Grants,"Local Gov & Reg(LG DEL,AME, RfR2)",TAMWORTH BOROUGH COUNCIL,5000137868,"2,113.00"
Communities & Local Government,DCLG,13/08/2010,Area Based Grants,"Local Gov & Reg(LG DEL,AME, RfR2)",TELFORD & WREKIN DC,5000137869,"454,566.00"
Communities & Local Government,DCLG,13/08/2010,Area Based Grants,"Local Gov & Reg(LG DEL,AME, RfR2)",THREE RIVERS DC,5000137870,"2,516.00"
Communities & Local Government,DCLG,13/08/2010,Area Based Grants,"Local Gov & Reg(LG DEL,AME, RfR2)",THURROCK  BOROUGH COUNCIL,5000137871,"346,683.00"
Communities & Local Government,DCLG,13/08/2010,Area Based Grants,"Local Gov & Reg(LG DEL,AME, RfR2)",TORBAY BC,5000137872,"685,910.00"
Communities & Local Government,DCLG,13/08/2010,Area Based Grants,"Local Gov & Reg(LG DEL,AME, RfR2)",TRAFFORD MBC,5000137873,"646,471.00"
Communities & Local Government,DCLG,13/08/2010,Area Based Grants,"Local Gov & Reg(LG DEL,AME, RfR2)",CITY OF WAKEFIELD MDC,5000137874,"951,230.00"
Communities & Local Government,DCLG,13/08/2010,Area Based Grants,"Local Gov & Reg(LG DEL,AME, RfR2)",WALSALL MBC,5000137875,"1,136,088.00"
Communities & Local Government,DCLG,13/08/2010,Area Based Grants,"Local Gov & Reg(LG DEL,AME, RfR2)",WALTHAM FOREST LB,5000137878,"1,071,079.00"
Communities & Local Government,DCLG,13/08/2010,Area Based Grants,"Local Gov & Reg(LG DEL,AME, RfR2)",WANDSWORTH LB,5000137879,"1,297,172.00"
Communities & Local Government,DCLG,13/08/2010,Area Based Grants,"Local Gov & Reg(LG DEL,AME, RfR2)",WARRINGTON BC,5000137880,"738,762.00"
Communities & Local Government,DCLG,13/08/2010,Area Based Grants,"Local Gov & Reg(LG DEL,AME, RfR2)",WARWICK,5000137881,"3,216.00"
Communities & Local Government,DCLG,13/08/2010,Area Based Grants,"Local Gov & Reg(LG DEL,AME, RfR2)",WARWICKSHIRE COUNTY CNCL,5000137882,"1,510,476.00"
Communities & Local Government,DCLG,13/08/2010,Area Based Grants,"Local Gov & Reg(LG DEL,AME, RfR2)",WELLINGBOROUGH,5000137883,"2,516.00"
Communities & Local Government,DCLG,13/08/2010,Area Based Grants,"Local Gov & Reg(LG DEL,AME, RfR2)",WEST BERKSHIRE COUNCIL,5000137884,"563,768.00"
Communities & Local Government,DCLG,13/08/2010,Area Based Grants,"Local Gov & Reg(LG DEL,AME, RfR2)",WEST LANCASHIRE BC,5000137885,"3,216.00"
Communities & Local Government,DCLG,13/08/2010,Area Based Grants,"Local Gov & Reg(LG DEL,AME, RfR2)",WEST SUSSEX CC,5000137886,"2,118,207.00"
Communities & Local Government,DCLG,13/08/2010,Area Based Grants,"Local Gov & Reg(LG DEL,AME, RfR2)",WESTMINSTER CITY CNCL,5000137887,"1,894,597.00"
Communities & Local Government,DCLG,13/08/2010,Area Based Grants,"Local Gov & Reg(LG DEL,AME, RfR2)",WEYMOUTH & PORTLAND BC,5000137888,"1,414.00"
Communities & Local Government,DCLG,13/08/2010,Area Based Grants,"Local Gov & Reg(LG DEL,AME, RfR2)",WIGAN MBC,5000137889,"1,434,859.00"
Communities & Local Government,DCLG,13/08/2010,Area Based Grants,"Local Gov & Reg(LG DEL,AME, RfR2)",WIRRAL MBC,5000137890,"1,821,924.00"
Communities & Local Government,DCLG,13/08/2010,Area Based Grants,"Local Gov & Reg(LG DEL,AME, RfR2)",WOKINGHAM DC,5000137891,"253,482.00"
Communities & Local Government,DCLG,13/08/2010,Area Based Grants,"Local Gov & Reg(LG DEL,AME, RfR2)",WOLVERHAMPTON MBC,5000137892,"1,276,130.00"
Communities & Local Government,DCLG,13/08/2010,Area Based Grants,"Local Gov & Reg(LG DEL,AME, RfR2)",WORCESTER CITY CNCL,5000137895,"2,516.00"
Communities & Local Government,DCLG,13/08/2010,Area Based Grants,"Local Gov & Reg(LG DEL,AME, RfR2)",WORCESTERSHIRE COUNTY COUNCIL,5000137896,"2,008,535.00"
Communities & Local Government,DCLG,13/08/2010,Area Based Grants,"Local Gov & Reg(LG DEL,AME, RfR2)",WORTHING BC,5000137897,"1,414.00"
Communities & Local Government,DCLG,13/08/2010,Area Based Grants,"Local Gov & Reg(LG DEL,AME, RfR2)",WYRE FOREST DISTRICT COUNCIL,5000137898,"20,913.00"
Communities & Local Government,DCLG,13/08/2010,Area Based Grants,"Local Gov & Reg(LG DEL,AME, RfR2)",YORK CITY CNCL,5000137899,"817,654.00"
Communities & Local Government,DCLG,13/08/2010,Area Based Grants,"Local Gov & Reg(LG DEL,AME, RfR2)",GREATER LONDON AUTHORITY (RSG),5000137900,"198,325.00"
Communities & Local Government,DCLG,13/08/2010,Area Based Grants,"Local Gov & Reg(LG DEL,AME, RfR2)",WILTSHIRE COUNCIL,5000137901,"1,150,981.00"
Communities & Local Government,DCLG,13/08/2010,Area Based Grants,"Local Gov & Reg(LG DEL,AME, RfR2)",NORTHUMBERLAND COUNTY COUNCIL,5000137902,"1,131,963.00"
Communities & Local Government,DCLG,13/08/2010,Area Based Grants,"Local Gov & Reg(LG DEL,AME, RfR2)",CENTRAL BEDFORDSHIRE COUNCIL,5000137903,"465,958.00"
Communities & Local Government,DCLG,13/08/2010,Area Based Grants,"Local Gov & Reg(LG DEL,AME, RfR2)",CHESHIRE EAST COUNCIL,5000137904,"1,189,640.00"
Communities & Local Government,DCLG,13/08/2010,Area Based Grants,"Local Gov & Reg(LG DEL,AME, RfR2)",CHESHIRE WEST & CHESTER COUNCIL,5000137905,"1,106,339.00"
Communities & Local Government,DCLG,13/08/2010,Area Based Grants,"Local Gov & Reg(LG DEL,AME, RfR2)",BEDFORD UNITARY AUTHORITY,5000137906,"563,220.00"
Communities & Local Government,DCLG,13/08/2010,Area Based Grants,"Local Gov & Reg(LG DEL,AME, RfR2)",SHROPSHIRE UNITARY AUTHORITY,5000137907,"948,765.00"
Communities & Local Government,DCLG,13/08/2010,Area Based Grants,"Local Gov & Reg(LG DEL,AME, RfR2)",CORNWALL UNITARY AUTHORITY,5000137908,"2,024,464.00"
Communities & Local Government,DCLG,13/08/2010,Area Based Grants,"Local Gov & Reg(LG DEL,AME, RfR2)",DURHAM UNITARY AUTHORITY,5000137909,"2,535,647.00"
Communities & Local Government,DCLG,16/08/2010,Agency Staff,Finance and Corporate Services,BADENOCH & CLARK,5106143821,"1,427.63"
Communities & Local Government,DCLG,16/08/2010,Agency Staff,Finance and Corporate Services,SQUARE ONE RESOURCES LTD,5106143357,"2,799.26"
Communities & Local Government,DCLG,16/08/2010,Agency Staff,Finance and Corporate Services,SQUARE ONE RESOURCES LTD,5106143564,"2,799.26"
Communities & Local Government,DCLG,16/08/2010,Agency Staff,Finance and Corporate Services,VENN GROUP,5106143820,"1,426.45"
Communities & Local Government,DCLG,16/08/2010,Agency Staff,Finance and Corporate Services,CAPITA RESOURCING LTD,5106143592,"3,450.15"
Communities & Local Government,DCLG,16/08/2010,Agency Staff,Finance and Corporate Services,CAPITA RESOURCING LTD,5106143634,"9,424.97"
Communities & Local Government,DCLG,16/08/2010,Agency Staff,Finance and Corporate Services,ALLEN LANE FINANCIAL RECRUITMENT,5106143838,"3,172.50"
Communities & Local Government,DCLG,16/08/2010,Agency Staff,Communities Group,ALPINE RESOURCING LTD,2100194115,"-16,757.92"
Communities & Local Government,DCLG,16/08/2010,Agency Staff,Communities Group,ALPINE RESOURCING LTD,5106142336,"16,757.92"
Communities & Local Government,DCLG,16/08/2010,Travel and Subsistence Account,Communities Group,GALLUP INC,5106143720,834.24
Communities & Local Government,DCLG,16/08/2010,Current (non AEF) Grants to Local Authorities,Housing and Planning,BARKING & DAGENHAM LB (HSG),5000136555,"50,000.00"
Communities & Local Government,DCLG,16/08/2010,Current (non AEF) Grants to Local Authorities,Housing and Planning,BEXLEY LB (HSG),5000136556,"25,000.00"
Communities & Local Government,DCLG,16/08/2010,Current (non AEF) Grants to Local Authorities,Housing and Planning,BRENT LB (HSG),5000136557,"50,000.00"
Communities & Local Government,DCLG,16/08/2010,Current (non AEF) Grants to Local Authorities,Housing and Planning,BRISTOL CITY CNCL (HSG),5000136559,"25,000.00"
Communities & Local Government,DCLG,16/08/2010,Current (non AEF) Grants to Local Authorities,Housing and Planning,KINGSTON UPON THAMES  (HSG),5000136561,"50,000.00"
Communities & Local Government,DCLG,16/08/2010,Current (non AEF) Grants to Local Authorities,Housing and Planning,KIRKLEES COUNCIL (HSG),5000136562,"40,000.00"
Communities & Local Government,DCLG,16/08/2010,Current (non AEF) Grants to Local Authorities,Housing and Planning,LEICESTER CITY CNCL (HSG),5000136563,"40,000.00"
Communities & Local Government,DCLG,16/08/2010,Current (non AEF) Grants to Local Authorities,Housing and Planning,LEWISHAM LB (HSG),5000136564,"40,000.00"
Communities & Local Government,DCLG,16/08/2010,Current (non AEF) Grants to Local Authorities,Housing and Planning,MANCHESTER CITY CNCL (HSG),5000136565,"60,000.00"
Communities & Local Government,DCLG,16/08/2010,Current (non AEF) Grants to Local Authorities,Housing and Planning,MEDWAY TOWNS D C (HSG),5000136566,"25,000.00"
Communities & Local Government,DCLG,16/08/2010,Current (non AEF) Grants to Local Authorities,Housing and Planning,TOWER HAMLETS LB (HSG),5000136569,"60,000.00"
Communities & Local Government,DCLG,16/08/2010,Current (non AEF) Grants to Local Authorities,Housing and Planning,BARNET LBC,5000136571,"50,000.00"
Communities & Local Government,DCLG,16/08/2010,Current (non AEF) Grants to Local Authorities,Housing and Planning,BIRMINGHAM CITY CNCL,5000136574,"60,000.00"
Communities & Local Government,DCLG,16/08/2010,Current (non AEF) Grants to Local Authorities,Housing and Planning,BRADFORD MBC,5000136575,"50,000.00"
Communities & Local Government,DCLG,16/08/2010,Current (non AEF) Grants to Local Authorities,Housing and Planning,BROMLEY LB,5000136577,"40,000.00"
Communities & Local Government,DCLG,16/08/2010,Current (non AEF) Grants to Local Authorities,Housing and Planning,CAMDEN LB,5000136580,"60,000.00"
Communities & Local Government,DCLG,16/08/2010,Current (non AEF) Grants to Local Authorities,Housing and Planning,CROYDON LB,5000136581,"50,000.00"
Communities & Local Government,DCLG,16/08/2010,Current (non AEF) Grants to Local Authorities,Housing and Planning,DUDLEY MBC,5000136582,"25,000.00"
Communities & Local Government,DCLG,16/08/2010,Current (non AEF) Grants to Local Authorities,Housing and Planning,EALING LB,5000136583,"50,000.00"
Communities & Local Government,DCLG,16/08/2010,Current (non AEF) Grants to Local Authorities,Housing and Planning,ENFIELD LB,5000136584,"50,000.00"
Communities & Local Government,DCLG,16/08/2010,Current (non AEF) Grants to Local Authorities,Housing and Planning,GREENWICH LB,5000136585,"60,000.00"
Communities & Local Government,DCLG,16/08/2010,Current (non AEF) Grants to Local Authorities,Housing and Planning,LONDON BOROUGH OF HACKNEY,5000136586,"60,000.00"
Communities & Local Government,DCLG,16/08/2010,Current (non AEF) Grants to Local Authorities,Housing and Planning,HAMMERSMITH & FULHAM LB,5000136587,"60,000.00"
Communities & Local Government,DCLG,16/08/2010,Current (non AEF) Grants to Local Authorities,Housing and Planning,HARINGEY LB,5000136589,"50,000.00"
Communities & Local Government,DCLG,16/08/2010,Current (non AEF) Grants to Local Authorities,Housing and Planning,HARROW LB,5000136590,"40,000.00"
Communities & Local Government,DCLG,16/08/2010,Current (non AEF) Grants to Local Authorities,Housing and Planning,HAVERING LB,5000136591,"40,000.00"
Communities & Local Government,DCLG,16/08/2010,Current (non AEF) Grants to Local Authorities,Housing and Planning,HILLINGDON LB,5000136592,"60,000.00"
Communities & Local Government,DCLG,16/08/2010,Current (non AEF) Grants to Local Authorities,Housing and Planning,HOUNSLOW LB,5000136593,"50,000.00"
Communities & Local Government,DCLG,16/08/2010,Current (non AEF) Grants to Local Authorities,Housing and Planning,ISLINGTON LB,5000136594,"60,000.00"
Communities & Local Government,DCLG,16/08/2010,Current (non AEF) Grants to Local Authorities,Housing and Planning,ROYAL BOROUGH OF KENSINGTON & CHELS,5000136595,"50,000.00"
Communities & Local Government,DCLG,16/08/2010,Current (non AEF) Grants to Local Authorities,Housing and Planning,KNOWSLEY MBC,5000136596,"25,000.00"
Communities & Local Government,DCLG,16/08/2010,Current (non AEF) Grants to Local Authorities,Housing and Planning,LONDON BOROUGH OF LAMBETH,5000136598,"40,000.00"
Communities & Local Government,DCLG,16/08/2010,Current (non AEF) Grants to Local Authorities,Housing and Planning,LEEDS CITY CNCL,5000136599,"50,000.00"
Communities & Local Government,DCLG,16/08/2010,Current (non AEF) Grants to Local Authorities,Housing and Planning,LIVERPOOL CITY COUNCIL,5000136600,"25,000.00"
Communities & Local Government,DCLG,16/08/2010,Current (non AEF) Grants to Local Authorities,Housing and Planning,LUTON BC,5000136601,"25,000.00"
Communities & Local Government,DCLG,16/08/2010,Current (non AEF) Grants to Local Authorities,Housing and Planning,MERTON LB,5000136603,"25,000.00"
Communities & Local Government,DCLG,16/08/2010,Current (non AEF) Grants to Local Authorities,Housing and Planning,LONDON BOROUGH OF NEWHAM,5000136605,"50,000.00"
Communities & Local Government,DCLG,16/08/2010,Current (non AEF) Grants to Local Authorities,Housing and Planning,NOTTINGHAM CITY COUNCIL,5000136606,"40,000.00"
Communities & Local Government,DCLG,16/08/2010,Current (non AEF) Grants to Local Authorities,Housing and Planning,OLDHAM MBC,5000136608,"40,000.00"
Communities & Local Government,DCLG,16/08/2010,Current (non AEF) Grants to Local Authorities,Housing and Planning,LONDON BOROUGH OF REDBRIDGE,5000136612,"25,000.00"
Communities & Local Government,DCLG,16/08/2010,Current (non AEF) Grants to Local Authorities,Housing and Planning,RICHMOND UPON THAMES LB,5000136614,"25,000.00"
Communities & Local Government,DCLG,16/08/2010,Current (non AEF) Grants to Local Authorities,Housing and Planning,ROCHDALE MBC,5000136615,"25,000.00"
Communities & Local Government,DCLG,16/08/2010,Current (non AEF) Grants to Local Authorities,Housing and Planning,SANDWELL MBC,5000136616,"50,000.00"
Communities & Local Government,DCLG,16/08/2010,Current (non AEF) Grants to Local Authorities,Housing and Planning,SHEFFIELD CITY CNCL,5000136617,"40,000.00"
Communities & Local Government,DCLG,16/08/2010,Current (non AEF) Grants to Local Authorities,Housing and Planning,SLOUGH BOROUGH COUNCIL,5000136618,"40,000.00"
Communities & Local Government,DCLG,16/08/2010,Current (non AEF) Grants to Local Authorities,Housing and Planning,SOUTHAMPTON CITY CNCL,5000136619,"40,000.00"
Communities & Local Government,DCLG,16/08/2010,Current (non AEF) Grants to Local Authorities,Housing and Planning,SOUTHWARK LB,5000136621,"60,000.00"
Communities & Local Government,DCLG,16/08/2010,Current (non AEF) Grants to Local Authorities,Housing and Planning,SUTTON LB,5000136623,"40,000.00"
Communities & Local Government,DCLG,16/08/2010,Current (non AEF) Grants to Local Authorities,Housing and Planning,WALSALL MBC,5000136624,"40,000.00"
Communities & Local Government,DCLG,16/08/2010,Current (non AEF) Grants to Local Authorities,Housing and Planning,WALTHAM FOREST LB,5000136625,"50,000.00"
Communities & Local Government,DCLG,16/08/2010,Current (non AEF) Grants to Local Authorities,Housing and Planning,WANDSWORTH LB,5000136626,"10,000.00"
Communities & Local Government,DCLG,16/08/2010,Current (non AEF) Grants to Local Authorities,Housing and Planning,WESTMINSTER CITY CNCL,5000136628,"50,000.00"
Communities & Local Government,DCLG,16/08/2010,Current (non AEF) Grants to Local Authorities,Housing and Planning,WIGAN MBC,5000136629,"25,000.00"
Communities & Local Government,DCLG,16/08/2010,Current (non AEF) Grants to Local Authorities,Communities Group,BRENT LB (HSG),5000137543,"72,960.00"
Communities & Local Government,DCLG,16/08/2010,Current (non AEF) Grants to Local Authorities,Communities Group,CITY OF SUNDERLAND (HSG),5000137557,"189,280.00"
Communities & Local Government,DCLG,16/08/2010,Current (non AEF) Grants to Local Authorities,Communities Group,LEWISHAM LB (HSG),5000137594,"106,648.00"
Communities & Local Government,DCLG,16/08/2010,Current (non AEF) Grants to Local Authorities,Communities Group,BIRMINGHAM CITY CNCL,5000137684,"319,963.00"
Communities & Local Government,DCLG,16/08/2010,Current (non AEF) Grants to Local Authorities,Communities Group,COVENTRY CITY CNCL,5000137712,"140,320.00"
Communities & Local Government,DCLG,16/08/2010,Current (non AEF) Grants to Local Authorities,Communities Group,DERBY CITY CNCL,5000137720,"63,120.00"
Communities & Local Government,DCLG,16/08/2010,Current (non AEF) Grants to Local Authorities,Communities Group,DONCASTER MBC,5000137724,"245,600.00"
Communities & Local Government,DCLG,16/08/2010,Current (non AEF) Grants to Local Authorities,Communities Group,HAMMERSMITH & FULHAM LB,5000137750,"73,371.00"
Communities & Local Government,DCLG,16/08/2010,Current (non AEF) Grants to Local Authorities,Communities Group,HARINGEY LB,5000137753,"22,000.00"
Communities & Local Government,DCLG,16/08/2010,Current (non AEF) Grants to Local Authorities,Communities Group,HARTLEPOOL BOROUGH COUNCIL,5000137758,"82,240.00"
Communities & Local Government,DCLG,16/08/2010,Current (non AEF) Grants to Local Authorities,Communities Group,ISLINGTON LB,5000137772,"151,440.00"
Communities & Local Government,DCLG,16/08/2010,Current (non AEF) Grants to Local Authorities,Communities Group,KNOWSLEY MBC,5000137780,"103,360.00"
Communities & Local Government,DCLG,16/08/2010,Current (non AEF) Grants to Local Authorities,Communities Group,LONDON BOROUGH OF LAMBETH,5000137783,"99,588.00"
Communities & Local Government,DCLG,16/08/2010,Current (non AEF) Grants to Local Authorities,Communities Group,LUTON BC,5000137792,"177,251.00"
Communities & Local Government,DCLG,16/08/2010,Current (non AEF) Grants to Local Authorities,Communities Group,OLDHAM MBC,5000137814,"53,882.00"
Communities & Local Government,DCLG,16/08/2010,Current (non AEF) Grants to Local Authorities,Communities Group,PLYMOUTH CITY CNCL,5000137820,"238,800.00"
Communities & Local Government,DCLG,16/08/2010,Current (non AEF) Grants to Local Authorities,Communities Group,ROCHDALE MBC,5000137830,"180,080.00"
Communities & Local Government,DCLG,16/08/2010,Current (non AEF) Grants to Local Authorities,Communities Group,SALFORD CITY CNCL,5000137840,"92,000.00"
Communities & Local Government,DCLG,16/08/2010,Current (non AEF) Grants to Local Authorities,Communities Group,SHEFFIELD CITY CNCL,5000137844,"6,808.00"
Communities & Local Government,DCLG,16/08/2010,Current (non AEF) Grants to Local Authorities,Communities Group,SOUTHAMPTON CITY CNCL,5000137852,"88,160.00"
Communities & Local Government,DCLG,16/08/2010,Current (non AEF) Grants to Local Authorities,Communities Group,WALSALL MBC,5000137877,"119,360.00"
Communities & Local Government,DCLG,16/08/2010,Current (non AEF) Grants to Local Authorities,Communities Group,WOLVERHAMPTON MBC,5000137894,"132,000.00"
Communities & Local Government,DCLG,16/08/2010,Subsidies to Central Govt and Local Auth bodies,Housing and Planning,BRAINTREE DC,5000136344,"113,911.00"
Communities & Local Government,DCLG,16/08/2010,Subsidies to Central Govt and Local Auth bodies,Housing and Planning,BRENT LB (HSG),5000136345,"742,747.00"
Communities & Local Government,DCLG,16/08/2010,Subsidies to Central Govt and Local Auth bodies,Housing and Planning,CITY OF LONDON (HSG),5000136347,"22,319.00"
Communities & Local Government,DCLG,16/08/2010,Subsidies to Central Govt and Local Auth bodies,Housing and Planning,KIRKLEES COUNCIL (HSG),5000136364,"731,014.00"
Communities & Local Government,DCLG,16/08/2010,Subsidies to Central Govt and Local Auth bodies,Housing and Planning,LEWISHAM LB (HSG),5000136369,"1,660,065.00"
Communities & Local Government,DCLG,16/08/2010,Subsidies to Central Govt and Local Auth bodies,Housing and Planning,MANCHESTER CITY CNCL (HSG),5000136370,"2,133,446.00"
Communities & Local Government,DCLG,16/08/2010,Subsidies to Central Govt and Local Auth bodies,Housing and Planning,STOCKTON-ON-TEES BC (HSG),5000136390,"127,143.00"
Communities & Local Government,DCLG,16/08/2010,Subsidies to Central Govt and Local Auth bodies,Housing and Planning,TOWER HAMLETS LB (HSG),5000136395,"1,618,416.00"
Communities & Local Government,DCLG,16/08/2010,Subsidies to Central Govt and Local Auth bodies,Housing and Planning,ASHFIELD DC,5000136404,"195,469.00"
Communities & Local Government,DCLG,16/08/2010,Subsidies to Central Govt and Local Auth bodies,Housing and Planning,BARNSLEY MBC,5000136406,"245,744.00"
Communities & Local Government,DCLG,16/08/2010,Subsidies to Central Govt and Local Auth bodies,Housing and Planning,BLACKPOOL BC,5000136410,"167,564.00"
Communities & Local Government,DCLG,16/08/2010,Subsidies to Central Govt and Local Auth bodies,Housing and Planning,BOLTON MBC,5000136413,"112,774.00"
Communities & Local Government,DCLG,16/08/2010,Subsidies to Central Govt and Local Auth bodies,Housing and Planning,CAMDEN LB,5000136421,"742,203.00"
Communities & Local Government,DCLG,16/08/2010,Subsidies to Central Govt and Local Auth bodies,Housing and Planning,DONCASTER MBC,5000136432,"211,422.00"
Communities & Local Government,DCLG,16/08/2010,Subsidies to Central Govt and Local Auth bodies,Housing and Planning,EALING LB,5000136434,"660,696.00"
Communities & Local Government,DCLG,16/08/2010,Subsidies to Central Govt and Local Auth bodies,Housing and Planning,EASTBOURNE BC,5000136435,"117,708.00"
Communities & Local Government,DCLG,16/08/2010,Subsidies to Central Govt and Local Auth bodies,Housing and Planning,LONDON BOROUGH OF HACKNEY,5000136445,"4,449,569.00"
Communities & Local Government,DCLG,16/08/2010,Subsidies to Central Govt and Local Auth bodies,Housing and Planning,HAMMERSMITH & FULHAM LB,5000136446,"1,364,940.00"
Communities & Local Government,DCLG,16/08/2010,Subsidies to Central Govt and Local Auth bodies,Housing and Planning,HARINGEY LB,5000136447,"1,754,602.00"
Communities & Local Government,DCLG,16/08/2010,Subsidies to Central Govt and Local Auth bodies,Housing and Planning,HOUNSLOW LB,5000136452,"132,109.00"
Communities & Local Government,DCLG,16/08/2010,Subsidies to Central Govt and Local Auth bodies,Housing and Planning,ISLINGTON LB,5000136454,"6,027,386.00"
Communities & Local Government,DCLG,16/08/2010,Subsidies to Central Govt and Local Auth bodies,Housing and Planning,ROYAL BOROUGH OF KENSINGTON & CHELS,5000136455,"464,511.00"
Communities & Local Government,DCLG,16/08/2010,Subsidies to Central Govt and Local Auth bodies,Housing and Planning,LEEDS CITY CNCL,5000136459,"2,952,857.00"
Communities & Local Government,DCLG,16/08/2010,Subsidies to Central Govt and Local Auth bodies,Housing and Planning,NEWCASTLE UPON TYNE DC,5000136463,"1,850,583.00"
Communities & Local Government,DCLG,16/08/2010,Subsidies to Central Govt and Local Auth bodies,Housing and Planning,LONDON BOROUGH OF NEWHAM,5000136464,"537,948.00"
Communities & Local Government,DCLG,16/08/2010,Subsidies to Central Govt and Local Auth bodies,Housing and Planning,LONDON BOROUGH OF NEWHAM,5000136465,"3,057,247.00"
Communities & Local Government,DCLG,16/08/2010,Subsidies to Central Govt and Local Auth bodies,Housing and Planning,NOTTINGHAM CITY COUNCIL,5000136471,"450,712.00"
Communities & Local Government,DCLG,16/08/2010,Subsidies to Central Govt and Local Auth bodies,Housing and Planning,OLDHAM MBC,5000136473,"303,020.00"
Communities & Local Government,DCLG,16/08/2010,Subsidies to Central Govt and Local Auth bodies,Housing and Planning,OLDHAM MBC,5000136474,"1,694,578.00"
Communities & Local Government,DCLG,16/08/2010,Subsidies to Central Govt and Local Auth bodies,Housing and Planning,PLYMOUTH CITY CNCL,5000136476,"7,701.00"
Communities & Local Government,DCLG,16/08/2010,Subsidies to Central Govt and Local Auth bodies,Housing and Planning,ROCHDALE MBC,5000136482,"808,847.00"
Communities & Local Government,DCLG,16/08/2010,Subsidies to Central Govt and Local Auth bodies,Housing and Planning,ROTHERHAM MBC,5000136483,"85,418.00"
Communities & Local Government,DCLG,16/08/2010,Subsidies to Central Govt and Local Auth bodies,Housing and Planning,RUTLAND CC,5000136486,"3,875.00"
Communities & Local Government,DCLG,16/08/2010,Subsidies to Central Govt and Local Auth bodies,Housing and Planning,SALFORD CITY CNCL,5000136487,"15,262.00"
Communities & Local Government,DCLG,16/08/2010,Subsidies to Central Govt and Local Auth bodies,Housing and Planning,SANDWELL MBC,5000136488,"271,974.00"
Communities & Local Government,DCLG,16/08/2010,Subsidies to Central Govt and Local Auth bodies,Housing and Planning,SHEFFIELD CITY CNCL,5000136489,"3,540,304.00"
Communities & Local Government,DCLG,16/08/2010,Subsidies to Central Govt and Local Auth bodies,Housing and Planning,SOUTHWARK LB,5000136495,"3,283,707.00"
Communities & Local Government,DCLG,16/08/2010,Subsidies to Central Govt and Local Auth bodies,Housing and Planning,WALTHAM FOREST LB,5000136504,"288,109.00"
Communities & Local Government,DCLG,16/08/2010,Subsidies to Central Govt and Local Auth bodies,Housing and Planning,WESTMINSTER CITY CNCL,5000136510,"204,321.00"
Communities & Local Government,DCLG,16/08/2010,Subsidies to Central Govt and Local Auth bodies,Housing and Planning,WIGAN MBC,5000136511,"17,048.00"
Communities & Local Government,DCLG,16/08/2010,Subsidies to Central Govt and Local Auth bodies,Housing and Planning,NORTHUMBERLAND COUNTY COUNCIL,5000136517,"68,054.00"
Communities & Local Government,DCLG,16/08/2010,Professional services,Human Resources,NATIONAL SCHOOL OF GOVERNMENT,5106143844,"16,920.00"
Communities & Local Government,DCLG,16/08/2010,Rent,Communities Group,HUMBERSIDE FIRE BRIGADE,5106143803,"1,126.67"
Communities & Local Government,DCLG,16/08/2010,Research,Communities Group,HOME OFFICE,5106143835,"10,000.00"
Communities & Local Government,DCLG,16/08/2010,Research,"Local Gov & Reg(LG DEL,AME, RfR2)",KENNEDY CATER LEGAL,5106143905,"2,820.00"
Communities & Local Government,DCLG,16/08/2010,Training,Human Resources,NATIONAL SCHOOL OF GOVERNMENT,5106143826,"1,998.00"
Communities & Local Government,DCLG,16/08/2010,Training,Human Resources,NATIONAL SCHOOL OF GOVERNMENT,5106143829,"2,280.00"
Communities & Local Government,DCLG,16/08/2010,Training,Human Resources,NATIONAL SCHOOL OF GOVERNMENT,5106143831,"2,280.00"
Communities & Local Government,DCLG,16/08/2010,Training,Human Resources,NATIONAL SCHOOL OF GOVERNMENT,5106143899,"1,998.00"
Communities & Local Government,DCLG,16/08/2010,Cap Grants to Local Authorities (DEL),Communities Group,BRENT LB (HSG),5000137544,"218,370.00"
Communities & Local Government,DCLG,16/08/2010,Cap Grants to Local Authorities (DEL),Communities Group,CITY OF SUNDERLAND (HSG),5000137556,"108,720.00"
Communities & Local Government,DCLG,16/08/2010,Cap Grants to Local Authorities (DEL),Communities Group,LEWISHAM LB (HSG),5000137595,"4,365.00"
Communities & Local Government,DCLG,16/08/2010,Cap Grants to Local Authorities (DEL),Communities Group,TOWER HAMLETS LB (HSG),5000137658,"400,000.00"
